{"text_format":"1","workbook":"xlsx","n_sheets":26,"sheets":["Form 120P","Summary","Multiple Sites","Option to Assign Payment","Lodging & Foodservice Equipment","Grocery Equipment","Computer Equipment","HVAC & Water Heating Equipment","Insulation","Service Shop & Warehouse","Optional Demographic Questions","Admin Tools","Lookups","Showerhead-wand Lookup","Bathroom Aerator Lookup","Kitchen Aerator Lookup","Laundry Lookup","Vent Hood Lookup","Dish Under Counter Lookup","Dish Single Upright Lookup","Dish Single Conveyor Lookup","Dish Multi Conveyor Lookup","Dish Pot Pan Lookup","Add Doors Lookup","New Doors Lookup","Eligible Spaces"],"not_rendered":{"charts":0,"images":15,"macros":1,"external_links":1,"defined_names":73,"comments":0,"pivot_tables":0},"unopened":[],"bounds":{"document_bytes":16777216,"sheet_cells":100000,"rows_first":2000,"rows_last":500,"rows_between":2000,"halvings":0,"cell_chars":16384,"cell_head_chars":4096},"cells_cut":0,"cells_raw":0,"read":"whole","date_system":"1900"}

{"sheet":"Form 120P","index":0,"n_rows":135,"n_cols":43,"rows_kept":135,"cut":false,"hidden":false,"merged":[[24,34,24,35],[67,7,67,9],[37,21,37,38],[44,34,44,38],[46,24,46,38],[57,15,58,16],[24,30,24,33],[24,21,24,29],[24,37,24,38],[59,11,59,15],[59,16,59,19],[59,6,59,9],[56,1,56,10],[56,11,56,15],[65,1,65,6],[65,7,65,9],[59,30,59,38],[67,1,67,6],[27,21,27,28],[27,30,27,38],[59,1,59,5],[32,29,32,32],[32,21,32,28],[31,21,31,33],[69,1,69,6],[69,7,69,9],[63,1,63,39],[49,32,49,38],[60,1,61,9],[60,11,61,19],[54,1,54,19],[56,30,56,38],[56,18,56,19],[57,18,58,19],[57,11,58,14],[51,24,51,31],[51,32,51,35],[51,36,51,38],[69,33,69,38],[57,1,58,8],[115,1,116,21],[116,23,116,38],[142,23,145,38],[146,23,148,38],[84,1,97,21],[84,23,94,38],[95,23,100,38],[98,1,106,21],[101,23,104,38],[105,23,108,38],[107,1,110,21],[109,23,112,38],[111,1,114,21],[113,23,115,38],[78,1,78,30],[80,1,80,27],[80,28,80,38],[77,1,77,38],[71,1,71,38],[74,2,74,15],[74,17,74,32],[74,34,74,37],[72,2,72,38],[15,21,15,38],[11,34,11,38],[11,25,11,31],[21,21,21,29],[21,31,21,38],[18,21,18,38]]}
[]
[null,"Standard Incentives"]
[null,"Existing Buildings | Incentive Application | Form 120P"]
[]
[null,"To be completed by Participant"]
[]
[null,"TRC is a Program Management Contractor for Energy Trust of Oregon."]
[]
[]
[]
[null,null,null,null,null,null,null,null,null,null,null,null,null,null,null,null,null,null,null,null,null,"Program Use Only",null,null,null,null,null,null,null,null,null,null,null,null,null,null,null,null,{"$f":"Version","v":"v2024.4"}]
[null,null,null,null,null,null,null,null,null,null,null,null,null,null,null,null,null,null,null,null,null,"Reference ID",null,null,null,null,null,null,null,null,null,null,"PT ID"]
[]
[null,null,null,null,null,null,null,null,null,null,null,null,null,null,null,null,null,null,null,null,null,"Participant Information"]
[]
[]
[null,null,null,null,null,null,null,null,null,null,null,null,null,null,null,null,null,null,null,null,null,"Legal Business Name (must match Participant's submitted W-9)"]
[]
[]
[null,null,null,null,null,null,null,null,null,null,null,null,null,null,null,null,null,null,null,null,null,"Assumed Business Name or DBA"]
[]
[]
[null,null,null,null,null,null,null,null,null,null,null,null,null,null,null,null,null,null,null,null,null,"Contact Name",null,null,null,null,null,null,null,null,null,"Title"]
[]
[]
[null,null,null,null,null,null,null,null,null,null,null,null,null,null,null,null,null,null,null,null,null,"Participant Mailing Address",null,null,null,null,null,null,null,null,"City",null,null,null,null,"State",null,"Zip"]
[]
[]
[null,null,null,null,null,null,null,null,null,null,null,null,null,null,null,null,null,null,null,null,null,"Primary Phone",null,null,null,null,null,null,null,null,"Email Address"]
[]
[null,null,null,null,null,null,null,null,null,null,null,null,null,null,null,null,null,null,null,null,null,"Business Type:"]
[null,null,null,null,null,null,null,null,null,null,null,null,null,null,null,null,null,null,null,null,null,"Does the business have less than 20 employees?"]
[null,null,null,null,null,null,null,null,null,null,null,null,null,null,null,null,null,null,null,null,null,"If yes, how many employees?"]
[null,null,null,null,null,null,null,null,null,null,null,null,null,null,null,null,null,null,null,null,null,"Participant Role:"]
[null,null,null,null,null,null,null,null,null,null,null,null,null,null,null,null,null,null,null,null,null,"Project Type:"]
[]
[]
[]
[null,null,null,null,null,null,null,null,null,null,null,null,null,null,null,null,null,null,null,null,null,"Business/Project Name"]
[]
[null,null,null,null,null,null,null,null,null,null,null,null,null,null,null,null,null,null,null,null,null,"Utility Information "]
[null,null,null,null,null,null,null,null,null,null,null,null,null,null,null,null,null,null,null,null,null,null,null,null,null,null,null,null,null,null,null,null,null,null,null,null,null,null,null,null,null,0]
[null,null,null,null,null,null,null,null,null,null,null,null,null,null,null,null,null,null,null,null,null,null,null,null,null,null,null,null,null,null,null,null,null,null,null,null,null,null,null,null,null,0]
[]
[null,null,null,null,null,null,null,null,null,null,null,null,null,null,null,null,null,null,null,null,null,"Electric Utility:",null,null,null,null,null,null,null,null,null,null,null,null,null,null,null,null,null,null,null,0,{"$f":"VLOOKUP(AP45,Lookups!A33:B36,2)","v":"(select)"}]
[null,null,null,null,null,null,null,null,null,null,null,null,null,null,null,null,null,null,null,null,null,null,null,null,null,null,null,null,null,null,null,null,null,null,null,null,null,null,null,null,null,0]
[null,null,null,null,null,null,null,null,null,null,null,null,null,null,null,null,null,null,null,null,null,"Account #:",null,null,null,null,null,null,null,null,null,null,null,null,null,null,null,null,null,null,null,0]
[]
[null,null,null,null,null,null,null,null,null,null,null,null,null,null,null,null,null,null,null,null,null,"Gas Utility:",null,null,null,null,null,null,null,null,null,null,null,null,null,null,null,null,null,null,null,0,{"$f":"VLOOKUP(AP49,Lookups!A39:B43,2)","v":"(select)"}]
[]
[]
[null,null,null,null,null,null,null,null,null,null,null,null,null,null,null,null,null,null,null,null,null,"Account #:",null,null,null,null,null,null,null,null,null,null,"Rate Schedule:"]
[]
[null,null,null,null,null,null,null,null,null,null,null,null,null,null,null,null,null,null,null,null,null,null,null,null,null,null,null,null,null,null,null,null,null,null,null,null,null,null,null,null,null,0]
[null,"Project and Site Information",null,null,null,null,null,null,null,null,null,null,null,null,null,null,null,null,null,null,null,"Primary Space Heating Fuel Source"]
[null,null,null,null,null,null,null,null,null,null,null,null,null,null,null,null,null,null,null,null,null,null,null,null,null,null,null,null,null,null,null,null,null,null,null,null,null,null,null,null,null,0]
[null,null,null,null,null,null,null,null,null,null,null,null,null,null,null,null,null,null,null,null,null,null,null,null,null,null,null,null,null,null,null,null,null,null,null,null,null,null,null,null,null,0,{"$f":"VLOOKUP($AP57,Lookups!$A$2:$B$5,2)","v":"None"}]
[null,"Site Address*",null,null,null,null,null,null,null,null,null,"City",null,null,null,"State",null,null,"Zip"]
[null,null,null,null,null,null,null,null,null,null,null,null,null,null,null,null,null,null,null,null,null,"Water Heating Fuel Source"]
[null,null,null,null,null,null,null,null,null,null,null,null,null,null,null,null,null,null,null,null,null,null,null,null,null,null,null,null,null,null,null,null,null,null,null,null,null,null,null,null,null,0,{"$f":"VLOOKUP($AP60,Lookups!$A$2:$B$5,2)","v":"None"}]
[null,"Contact name for Site Visit",null,null,null,null,null,null,null,null,null,"Phone number for Site Visit"]
[]
[]
[null,"*If requesting incentives for multiple locations, use the Multiple Sites section to list each location's site address, utility information and heating fuel sources"]
[]
[null,"Building Square Footage",null,null,null,null,null,null,null,null,null,"Building Use Type:"]
[]
[null,"Year Built"]
[]
[]
[]
[null,"Participant Signature Please sign below either manually (ex. handwritten) or electronically (ex. typing your name, drawing your signature on a touchpad or touchscreen, inserting a digital signature, or, if available, by clicking the box)."]
[]
[]
[null,null,null,null,null,null,null,null,null,null,null,null,null,null,null,null,null,{"$f":"IF(ContactName=\"\",\"\",ContactName)","v":""}]
[null,null,"Authorized Representative Signature",null,null,null,null,null,null,null,null,null,null,null,null,null,null,"Name (printed)",null,null,null,null,null,null,null,null,null,null,null,null,null,null,null,null,"Date"]
[]
[null,"Grant Funding"]
[null,"Did you receive any other external funding, such as grants, that reduced your final out-of-pocket purchase/installation costs for any energy saving equipment listed in this application (See Project Cost Documentation for more information)?"]
[]
[null,"If yes, what is the total amount of external funding, Include additional information with submitted invoices."]
[]
[]
[null,"TERMS AND CONDITIONS"]
[]
[]
[]
[]
[]
[]
[]
[]
[]
[]
[]
[]
[]
[]
[]
[]
[]
[]
[]
[]
[]
[]
[]
[]
[]
[]
[]
[]
[]
[]
[]
[]
[]
[]
[]
[]
[]
[]
[]
[]
[]
[]
[]
[]
[]
[]
[]
[]
[]
[]
[null,"TERMS AND CONDITIONS CONTINUED"]

{"sheet":"Summary","index":1,"n_rows":36,"n_cols":7,"rows_kept":36,"cut":false,"hidden":false,"merged":[[36,2,36,6],[37,2,37,6],[38,1,39,6],[11,1,11,4],[12,1,12,4],[13,1,13,4],[14,1,14,4],[15,1,15,4],[27,1,27,4],[27,5,27,6],[28,1,28,4],[28,5,28,6],[34,1,34,4],[34,5,34,6],[35,1,35,4],[35,5,35,6],[10,1,10,6],[20,1,21,4],[29,2,29,6],[16,1,16,4],[17,1,17,4],[26,5,26,6],[26,1,26,4],[19,1,19,6],[33,2,33,6],[30,1,30,4],[30,5,30,6],[31,1,31,4],[31,5,31,6],[32,1,32,4],[32,5,32,6]]}
[]
[null,"Standard Incentives Summary"]
[null,"Existing Buildings | Incentive Application | Form 120P"]
[]
[]
[null,"TRC is a Program Management Contractor for Energy Trust of Oregon."]
[]
[null,null,null,"Program Use Only",null,null,{"$f":"Version","v":"v2024.4"}]
[null,null,null,"Reference ID",{"$f":"IF(ReferenceID=\"\",\"\",ReferenceID)","v":""},"PTID",{"$f":"IF(PTID=\"\",\"\",PTID)","v":""}]
[]
[null,"INCENTIVES"]
[null,"EQUIPMENT",null,null,null,"REQUESTED\nINCENTIVES","INSTALLED\nCOST"]
[null,"Lodging and Foodservice",null,null,null,{"$f":"TOTAL_LODGING_INCENTIVES","v":0},{"$f":"TOTAL_LODGING_INSTALLED_COST","v":0}]
[null,"Grocery",null,null,null,{"$f":"TOTAL_GROCERY_INCENTIVES","v":0},{"$f":"TOTAL_GROCERY_INSTALLED_COST","v":0}]
[null,"Computer",null,null,null,{"$f":"TOTAL_COMPUTER_INCENTIVES","v":0},{"$f":"TOTAL_COMPUTER_INSTALLED_COST","v":0}]
[null,"HVAC and Water Heating",null,null,null,{"$f":"TOTAL_HVAC_INCENTIVES","v":0},{"$f":"TOTAL_HVAC_INSTALLED_COST","v":0}]
[null,"Insulation",null,null,null,{"$f":"TOTAL_INSULATION_INCENTIVES","v":0},{"$f":"TOTAL_INSULATION_INSTALLED_COST","v":0}]
[null,"Service Shops and Warehouses",null,null,null,{"$f":"TOTAL_SERVICE_INCENTIVES","v":0},{"$f":"TOTAL_SERVICE_INSTALLED_COST","v":0}]
[]
[]
[null,"COMBINED TOTAL REQUESTED INCENTIVES",null,null,null,"TOTAL REQUESTED \nINCENTIVES","TOTAL\nINSTALLED COST"]
[null,null,null,null,null,{"$f":"SUM(F13:F18)","v":0},{"$f":"SUM(G13:G18)","v":0}]
[]
[null," "]
[]
[]
[null,"SITES SERVED BY A PARTICIPATING ELECTRIC UTILITY",null,null,null,"INCENTIVE LIMIT"]
[null,"Site served by Portland General Electric",null,null,null,12000]
[null,"Site served by Pacific Power",null,null,null,6000]
[]
[null,"SITES SERVED BY A GAS UTILITY",null,null,null,"INCENTIVE LIMIT"]
[null,"Site served by NW Natural",null,null,null,12000]
[null,"Site served by Avista (and not Pacific Power)",null,null,null,12000]
[]
[null,"For Program Use Only",null,null,null,"TOTAL INCENTIVES"]
[null,"Combined Total Incentive Approved"]

{"sheet":"Multiple Sites","index":2,"n_rows":98,"n_cols":14,"rows_kept":98,"cut":false,"hidden":false,"merged":[[96,11,96,12],[97,11,97,12],[90,11,90,12],[91,11,91,12],[92,11,92,12],[93,11,93,12],[94,11,94,12],[95,11,95,12],[84,11,84,12],[85,11,85,12],[86,11,86,12],[87,11,87,12],[88,11,88,12],[89,11,89,12],[79,11,79,12],[80,11,80,12],[81,11,81,12],[82,11,82,12],[83,11,83,12],[72,11,72,12],[73,11,73,12],[74,11,74,12],[75,11,75,12],[76,11,76,12],[77,11,77,12],[70,11,70,12],[71,11,71,12],[60,11,60,12],[61,11,61,12],[62,11,62,12],[63,11,63,12],[64,11,64,12],[65,11,65,12],[78,11,78,12],[49,11,49,12],[50,11,50,12],[51,11,51,12],[52,11,52,12],[53,11,53,12],[66,11,66,12],[67,11,67,12],[68,11,68,12],[69,11,69,12],[24,11,24,12],[25,11,25,12],[26,11,26,12],[27,11,27,12],[28,11,28,12],[29,11,29,12],[42,11,42,12],[43,11,43,12],[44,11,44,12],[36,11,36,12],[37,11,37,12],[38,11,38,12],[39,11,39,12],[40,11,40,12],[41,11,41,12],[65,7,65,8],[66,7,66,8],[67,7,67,8],[68,7,68,8],[69,7,69,8],[70,7,70,8],[59,7,59,8],[60,7,60,8],[30,11,30,12],[31,11,31,12],[32,11,32,12],[33,11,33,12],[34,11,34,12],[35,11,35,12],[45,11,45,12],[46,11,46,12],[47,11,47,12],[54,11,54,12],[55,11,55,12],[56,11,56,12],[57,11,57,12],[58,11,58,12],[59,11,59,12],[48,11,48,12],[95,7,95,8],[96,7,96,8],[97,7,97,8],[91,7,91,8],[92,7,92,8],[93,7,93,8],[94,7,94,8],[74,7,74,8],[75,7,75,8],[76,7,76,8],[17,11,17,12],[89,7,89,8],[90,7,90,8],[83,7,83,8],[84,7,84,8],[85,7,85,8],[86,7,86,8],[87,7,87,8],[88,7,88,8],[77,7,77,8],[78,7,78,8],[79,7,79,8],[80,7,80,8],[81,7,81,8],[82,7,82,8],[71,7,71,8],[72,7,72,8],[73,7,73,8],[18,11,18,12],[19,11,19,12],[20,11,20,12],[21,11,21,12],[22,11,22,12],[23,11,23,12],[61,7,61,8],[62,7,62,8],[63,7,63,8],[64,7,64,8],[53,7,53,8],[54,7,54,8],[55,7,55,8],[56,7,56,8],[57,7,57,8],[58,7,58,8],[47,7,47,8],[48,7,48,8],[49,7,49,8],[50,7,50,8],[51,7,51,8],[52,7,52,8],[41,7,41,8],[42,7,42,8],[43,7,43,8],[44,7,44,8],[45,7,45,8],[46,7,46,8],[35,7,35,8],[36,7,36,8],[37,7,37,8],[38,7,38,8],[39,7,39,8],[40,7,40,8],[29,7,29,8],[30,7,30,8],[31,7,31,8],[32,7,32,8],[33,7,33,8],[34,7,34,8],[23,7,23,8],[24,7,24,8],[25,7,25,8],[26,7,26,8],[27,7,27,8],[28,7,28,8],[17,7,17,8],[18,7,18,8],[19,7,19,8],[20,7,20,8],[21,7,21,8],[22,7,22,8],[11,7,11,8],[12,7,12,8],[13,7,13,8],[14,7,14,8],[15,7,15,8],[16,7,16,8],[7,12,7,13],[7,9,7,10],[10,7,10,8],[10,11,10,12],[9,11,9,12],[9,7,9,8],[11,11,11,12],[12,11,12,12],[13,11,13,12],[14,11,14,12],[15,11,15,12],[16,11,16,12]]}
[]
["Standard Incentives"]
["Existing Buildings | Incentive Application | Form 120P"]
[]
[]
[]
[null,null,null,null,null,null,null,null,"Program Use Only",null,null,null,null,{"$f":"Version","v":"v2024.4"}]
[null,null,null,null,null,null,null,null,"Reference ID",{"$f":"IF(ReferenceID=\"\",\"\",ReferenceID)","v":""},null,"PT ID",{"$f":"IF(PTID=\"\",\"\",PTID)","v":""}]
["Multiple Sites"]
["Location\n(Bldg Name / Store #)","Site Address","City","State","Zip","Electric \nUtility","Electric \nAccount Number","Gas \nUtility",null,"Gas Account Number","Gas Rate Schedule","Primary Heating \nFuel Source",null,"Water Heating \nFuel Source"]
[]
[]
[]
[]
[]
[]
[]
[]
[]
[]
[null,null,null,null,null,"(select)",null,"(select)",null,null,null,"(select)",null,"(select)"]
[null,null,null,null,null,"(select)",null,"(select)",null,null,null,"(select)",null,"(select)"]
[null,null,null,null,null,"(select)",null,"(select)",null,null,null,"(select)",null,"(select)"]
[null,null,null,null,null,"(select)",null,"(select)",null,null,null,"(select)",null,"(select)"]
[null,null,null,null,null,"(select)",null,"(select)",null,null,null,"(select)",null,"(select)"]
[null,null,null,null,null,"(select)",null,"(select)",null,null,null,"(select)",null,"(select)"]
[null,null,null,null,null,"(select)",null,"(select)",null,null,null,"(select)",null,"(select)"]
[null,null,null,null,null,"(select)",null,"(select)",null,null,null,"(select)",null,"(select)"]
[null,null,null,null,null,"(select)",null,"(select)",null,null,null,"(select)",null,"(select)"]
[null,null,null,null,null,"(select)",null,"(select)",null,null,null,"(select)",null,"(select)"]
[null,null,null,null,null,"(select)",null,"(select)",null,null,null,"(select)",null,"(select)"]
[null,null,null,null,null,"(select)",null,"(select)",null,null,null,"(select)",null,"(select)"]
[null,null,null,null,null,"(select)",null,"(select)",null,null,null,"(select)",null,"(select)"]
[null,null,null,null,null,"(select)",null,"(select)",null,null,null,"(select)",null,"(select)"]
[null,null,null,null,null,"(select)",null,"(select)",null,null,null,"(select)",null,"(select)"]
[null,null,null,null,null,"(select)",null,"(select)",null,null,null,"(select)",null,"(select)"]
[null,null,null,null,null,"(select)",null,"(select)",null,null,null,"(select)",null,"(select)"]
[null,null,null,null,null,"(select)",null,"(select)",null,null,null,"(select)",null,"(select)"]
[null,null,null,null,null,"(select)",null,"(select)",null,null,null,"(select)",null,"(select)"]
[null,null,null,null,null,"(select)",null,"(select)",null,null,null,"(select)",null,"(select)"]
[null,null,null,null,null,"(select)",null,"(select)",null,null,null,"(select)",null,"(select)"]
[null,null,null,null,null,"(select)",null,"(select)",null,null,null,"(select)",null,"(select)"]
[null,null,null,null,null,"(select)",null,"(select)",null,null,null,"(select)",null,"(select)"]
[null,null,null,null,null,"(select)",null,"(select)",null,null,null,"(select)",null,"(select)"]
[null,null,null,null,null,"(select)",null,"(select)",null,null,null,"(select)",null,"(select)"]
[null,null,null,null,null,"(select)",null,"(select)",null,null,null,"(select)",null,"(select)"]
[null,null,null,null,null,"(select)",null,"(select)",null,null,null,"(select)",null,"(select)"]
[null,null,null,null,null,"(select)",null,"(select)",null,null,null,"(select)",null,"(select)"]
[null,null,null,null,null,"(select)",null,"(select)",null,null,null,"(select)",null,"(select)"]
[null,null,null,null,null,"(select)",null,"(select)",null,null,null,"(select)",null,"(select)"]
[null,null,null,null,null,"(select)",null,"(select)",null,null,null,"(select)",null,"(select)"]
[null,null,null,null,null,"(select)",null,"(select)",null,null,null,"(select)",null,"(select)"]
[null,null,null,null,null,"(select)",null,"(select)",null,null,null,"(select)",null,"(select)"]
[null,null,null,null,null,"(select)",null,"(select)",null,null,null,"(select)",null,"(select)"]
[null,null,null,null,null,"(select)",null,"(select)",null,null,null,"(select)",null,"(select)"]
[null,null,null,null,null,"(select)",null,"(select)",null,null,null,"(select)",null,"(select)"]
[null,null,null,null,null,"(select)",null,"(select)",null,null,null,"(select)",null,"(select)"]
[null,null,null,null,null,"(select)",null,"(select)",null,null,null,"(select)",null,"(select)"]
[null,null,null,null,null,"(select)",null,"(select)",null,null,null,"(select)",null,"(select)"]
[null,null,null,null,null,"(select)",null,"(select)",null,null,null,"(select)",null,"(select)"]
[null,null,null,null,null,"(select)",null,"(select)",null,null,null,"(select)",null,"(select)"]
[null,null,null,null,null,"(select)",null,"(select)",null,null,null,"(select)",null,"(select)"]
[null,null,null,null,null,"(select)",null,"(select)",null,null,null,"(select)",null,"(select)"]
[null,null,null,null,null,"(select)",null,"(select)",null,null,null,"(select)",null,"(select)"]
[null,null,null,null,null,"(select)",null,"(select)",null,null,null,"(select)",null,"(select)"]
[null,null,null,null,null,"(select)",null,"(select)",null,null,null,"(select)",null,"(select)"]
[null,null,null,null,null,"(select)",null,"(select)",null,null,null,"(select)",null,"(select)"]
[null,null,null,null,null,"(select)",null,"(select)",null,null,null,"(select)",null,"(select)"]
[null,null,null,null,null,"(select)",null,"(select)",null,null,null,"(select)",null,"(select)"]
[null,null,null,null,null,"(select)",null,"(select)",null,null,null,"(select)",null,"(select)"]
[null,null,null,null,null,"(select)",null,"(select)",null,null,null,"(select)",null,"(select)"]
[null,null,null,null,null,"(select)",null,"(select)",null,null,null,"(select)",null,"(select)"]
[null,null,null,null,null,"(select)",null,"(select)",null,null,null,"(select)",null,"(select)"]
[null,null,null,null,null,"(select)",null,"(select)",null,null,null,"(select)",null,"(select)"]
[null,null,null,null,null,"(select)",null,"(select)",null,null,null,"(select)",null,"(select)"]
[null,null,null,null,null,"(select)",null,"(select)",null,null,null,"(select)",null,"(select)"]
[null,null,null,null,null,"(select)",null,"(select)",null,null,null,"(select)",null,"(select)"]
[null,null,null,null,null,"(select)",null,"(select)",null,null,null,"(select)",null,"(select)"]
[null,null,null,null,null,"(select)",null,"(select)",null,null,null,"(select)",null,"(select)"]
[null,null,null,null,null,"(select)",null,"(select)",null,null,null,"(select)",null,"(select)"]
[null,null,null,null,null,"(select)",null,"(select)",null,null,null,"(select)",null,"(select)"]
[null,null,null,null,null,"(select)",null,"(select)",null,null,null,"(select)",null,"(select)"]
[null,null,null,null,null,"(select)",null,"(select)",null,null,null,"(select)",null,"(select)"]
[null,null,null,null,null,"(select)",null,"(select)",null,null,null,"(select)",null,"(select)"]
[null,null,null,null,null,"(select)",null,"(select)",null,null,null,"(select)",null,"(select)"]
[null,null,null,null,null,"(select)",null,"(select)",null,null,null,"(select)",null,"(select)"]
[null,null,null,null,null,"(select)",null,"(select)",null,null,null,"(select)",null,"(select)"]
[null,null,null,null,null,"(select)",null,"(select)",null,null,null,"(select)",null,"(select)"]
[null,null,null,null,null,"(select)",null,"(select)",null,null,null,"(select)",null,"(select)"]
[null,null,null,null,null,"(select)",null,"(select)",null,null,null,"(select)",null,"(select)"]
[null,null,null,null,null,"(select)",null,"(select)",null,null,null,"(select)",null,"(select)"]
[null,null,null,null,null,"(select)",null,"(select)",null,null,null,"(select)",null,"(select)"]
[null,null,null,null,null,"(select)",null,"(select)",null,null,null,"(select)",null,"(select)"]
[null,null,null,null,null,"(select)",null,"(select)",null,null,null,"(select)",null,"(select)"]
[null,null,null,null,null,"(select)",null,"(select)",null,null,null,"(select)",null,"(select)"]
[null,null,null,null,null,"(select)",null,"(select)",null,null,null,"(select)",null,"(select)"]
[null,null,null,null,null,"(select)",null,"(select)",null,null,null,"(select)",null,"(select)"]
[null,null,null,null,null,"(select)",null,"(select)",null,null,null,"(select)",null,"(select)"]

{"sheet":"Option to Assign Payment","index":3,"n_rows":30,"n_cols":33,"rows_kept":30,"cut":false,"hidden":false,"merged":[[20,8,20,31],[25,8,25,31],[26,8,26,32],[25,1,26,7],[27,19,27,25],[27,6,27,18],[23,1,24,7],[23,8,23,16],[23,18,23,27],[23,29,23,31],[24,8,24,16],[24,18,24,27],[24,29,24,31],[21,8,21,32],[20,1,21,7],[27,29,27,31],[17,1,17,32],[18,1,19,7],[18,8,18,16],[18,18,18,27],[18,29,18,31],[19,8,19,16],[19,18,19,27],[19,29,19,31],[15,1,16,32],[9,15,9,17],[9,18,9,23],[9,24,9,26],[9,27,9,32],[11,1,12,32],[27,26,27,27],[29,22,30,31],[28,6,28,12],[29,1,30,3],[29,4,30,9],[29,20,30,21],[27,1,28,5]]}
[]
[null,"Standard Incentives"]
[null,"Existing Buildings | Option to Assign Payment | Form 120P"]
[]
[null,"To be completed by Participant"]
[]
[]
[]
[null,null,null,null,null,null,null,null,null,null,null,null,null,null,null,"Program Use Only",null,null,null,null,null,null,null,null,null,null,null,null,null,null,null,null,{"$f":"Version","v":"v2024.4"}]
[null,null,null,null,null,null,null,null,null,null,null,null,null,null,null,"Reference ID",null,null,{"$f":"IF(ReferenceID=\"\",\"\",ReferenceID)","v":""},null,null,null,null,null,"PT ID",null,null,{"$f":"IF(PTID=\"\",\"\",PTID)","v":""}]
[]
[null,"Option to Assign Incentive Payment\nPLEASE NOTE: The Energy Trust incentive payment will be made to Participant unless Participant and its designated Payee complete the section below to assign the payment to Payee. A complete, accurate and verifiable IRS Form W-9 (Request for Taxpayer Identification Number and Certification) for the Payee named below must be attached if this option is selected."]
[]
[]
[null,"PARTICIPANT AND PAYEE"]
[null,"Both Participant and Payee understand and agree that if this Option to Assign Incentive Payment is selected the incentive check will be issued to the Payee named below at the address listed below and Energy Trust is not responsible for any tax liabilities that may be associated with the incentive payment. In addition, Participant understands that, notwithstanding this assignment, responsibility for complying with the terms and conditions of this incentive agreement shall continue to be the obligation of Participant, and Energy Trust's sole responsibility under this incentive agreement shall be to Participant. Accordingly, Payee understands that it shall have no rights against Energy Trust or the PMC with respect to such assignment or the payment of the incentive, and in the event that Energy Trust does not pay the incentive as a result of Participant's failure to comply with this agreement, Payee's sole recourse shall be against Participant. Participant directs Energy Trust to pay any incentive to which it is entitled to the Payee named below and waives all rights to directly receive the Energy Trust incentives for the identified energy-efficiency project. "]
[]
[null,"SIGNATURES: By my signature below, I represent to Energy Trust that I have read this agreement and am duly authorized to sign this Option to Assign Incentive Payment on behalf of the party for whom I am signing."]
[null,"On behalf of Participant\n(Authorized Representative)",null,null,null,null,null,null,{"$f":"IF(ContactName=\"\",\"\",ContactName)","v":""}]
[null,null,null,null,null,null,null,null,"(printed)",null,null,null,null,null,null,null,null,null,"Signature",null,null,null,null,null,null,null,null,null,null,"Date"]
[null,"Participant ",null,null,null,null,null,null,{"$f":"IF(BusinessName=\"\",\"\",BusinessName)","v":""}]
[null,null,null,null,null,null,null,null,"(Legal business name as shown on W-9)"]
[]
[null,"On behalf of Payee\n(Authorized Representative)"]
[null,null,null,null,null,null,null,null,"(printed)",null,null,null,null,null,null,null,null,null,"Signature",null,null,null,null,null,null,null,null,null,null,"Date"]
[null,"Payee Name"]
[null,null,null,null,null,null,null,null,"\n(must match submitted IRS Form W-9)"]
[null,"Mailing Address                                        (for check)"]
[null,null,null,null,null,null,"Street",null,null,null,null,null,null,null,null,null,null,null,null,"City",null,null,null,null,null,null,null,"State",null,"Zip"]
[null,"Phone",null,null,null,null,null,null,null,null,null,null,null,null,null,null,null,null,null,null,"Email"]

{"sheet":"Lodging & Foodservice Equipment","index":4,"n_rows":103,"n_cols":18,"rows_kept":103,"cut":false,"hidden":false,"merged":[[67,16,68,16],[64,2,64,13],[63,2,63,13],[62,2,62,13],[61,2,61,13],[55,2,55,13],[54,2,54,13],[49,2,49,13],[57,2,57,13],[58,2,58,13],[59,2,59,13],[67,2,68,13],[56,2,56,13],[60,2,60,13],[78,2,78,13],[79,2,79,13],[76,2,76,13],[77,2,77,13],[75,1,77,1],[41,10,41,12],[38,10,39,12],[50,2,50,13],[38,7,39,9],[38,3,39,4],[38,5,39,6],[92,14,92,17],[93,2,93,13],[97,2,97,13],[96,2,96,13],[95,2,95,13],[94,2,94,13],[80,1,86,1],[80,2,80,13],[81,2,81,13],[87,2,87,13],[92,2,92,13],[86,2,86,6],[85,2,85,6],[84,2,84,6],[83,2,83,6],[83,7,83,13],[84,7,84,13],[85,7,85,13],[86,7,86,13],[82,2,82,6],[82,7,82,13],[80,14,82,17],[90,1,90,17],[91,2,91,13],[34,7,34,9],[17,2,17,6],[17,7,17,12],[34,10,34,12],[37,7,37,9],[74,2,74,13],[34,3,35,4],[34,5,35,6],[27,2,28,13],[36,5,37,6],[36,7,36,9],[35,7,35,9],[35,10,35,12],[36,10,36,12],[37,10,37,12],[13,8,13,12],[31,2,31,8],[33,3,33,4],[16,15,18,15],[19,14,26,14],[19,15,26,15],[19,16,26,16],[19,17,26,17],[33,5,33,6],[33,7,33,9],[23,2,24,4],[25,2,25,4],[27,14,27,17],[16,16,18,16],[16,17,18,17],[29,2,29,4],[30,2,30,4],[31,9,31,11],[104,1,104,17],[75,2,75,13],[59,1,64,1],[41,7,41,9],[65,2,65,13],[67,17,68,17],[69,2,69,13],[48,1,48,17],[67,15,68,15],[44,2,44,13],[45,2,45,13],[101,1,102,15],[50,14,50,17],[100,1,100,17],[53,2,53,13],[52,2,52,13],[51,2,51,13],[59,14,59,17],[73,1,73,17],[50,1,53,1],[66,1,68,1],[66,2,66,13],[92,1,97,1],[27,1,46,1],[10,1,10,17],[43,2,43,13],[46,2,46,13],[12,17,15,17],[11,2,11,13],[16,2,16,13],[12,2,12,13],[12,14,15,14],[12,16,15,16],[16,1,17,1],[12,1,15,1],[33,10,33,12],[36,3,37,4],[40,3,41,4],[40,5,41,6],[40,7,40,9],[15,7,15,13],[12,15,15,15],[14,2,14,9],[19,2,19,13],[40,10,40,12],[19,1,26,1],[13,2,13,6],[16,14,18,14]]}
[]
[null,"Standard Incentives"]
[null,"Existing Buildings | Incentive Application | Form 120P"]
[]
[]
[null,"TRC is a Program Management Contractor for Energy Trust of Oregon."]
[]
[null,null,null,null,null,null,null,null,null,null,null,null,null,null,"Program Use Only",null,null,{"$f":"Version","v":"v2024.4"}]
[null,null,null,null,null,null,null,null,null,null,null,null,null,null,"Reference ID",{"$f":"IF(ReferenceID=\"\",\"\",ReferenceID)","v":""},"PTID",{"$f":"IF(PTID=\"\",\"\",PTID)","v":""}]
[]
[null,"LODGING AND FOODSERVICE"]
[null,"EQUIPMENT","REQUIREMENTS",null,null,null,null,null,null,null,null,null,null,null,"INCENTIVE PER UNIT","QUANTITY","INCENTIVE\nTOTAL","INSTALLED\nCOST"]
[null," Ductless Heat\n Pump (DHP) ",null,null,null,null,null,null,null,null,null,null,null,null,500,null,{"$f":"P13*O13","v":0}]
[null,null,"Total lodging rooms on site:"]
[null,null,"Is baseboard heating present at this site?"]
[]
[null," Packaged Terminal \n Heat Pump (PTHP)",null,null,null,null,null,null,null,null,null,null,null,null,800,null,{"$f":"O17*P17","v":0}]
[null,null,"Total lodging rooms on site:"]
[]
[null," Commercial Pool\n Cover ",null,null,null,null,null,null,null,null,null,null,null,null,6,null,{"$f":"O20*P20","v":0}]
[]
[]
[]
[null,null,"  Pool Location: "]
[]
[null,null,"  Pool Heater Type:"]
[]
[null," Commercial\n Swimming Pool\n Heater ",null,null,null,null,null,null,null,null,null,null,null,null,"Minimum Pool Area Requirements:"]
[]
[null,null,"    Pool Location:"]
[null,null,"    Pool Cover:"]
[null,null,"Number of heaters serving the pool:"]
[]
[null,null,null,"Covered Pool",null,"Heater Type",null,"Pool Location",null,null,"Minimum Required Pool sq. ft."]
[null,null,null,"No",null,"Condensing",null,"Indoor",null,null,1275]
[null,null,null,null,null,null,null,"Outdoor",null,null,700]
[null,null,null,"Yes",null,"Condensing",null,"Indoor",null,null,2150]
[null,null,null,null,null,null,null,"Outdoor",null,null,1050]
[null,null,null,"No",null,"Non-condensing",null,"Indoor or Outdoor",null,null,500]
[]
[null,null,null,"Yes",null,"Non-condensing",null,"Indoor",null,null,850]
[null,null,null,null,null,null,null,"Outdoor",null,null,500]
[]
[null,null,"Non-condensing Heater, Covered",null,null,null,null,null,null,null,null,null,null,null,0.9,null,{"$f":"P44*O44","v":0}]
[null,null,"Non-condensing Heater, Not covered",null,null,null,null,null,null,null,null,null,null,null,1,null,{"$f":"P45*O45","v":0}]
[null,null,"Condensing Heater, Covered",null,null,null,null,null,null,null,null,null,null,null,3,null,{"$f":"P46*O46","v":0}]
[null,null,"Condensing Heater, Not covered",null,null,null,null,null,null,null,null,null,null,null,5,null,{"$f":"P47*O47","v":0}]
[]
[null,"LODGING AND FOODSERVICE continued"]
[null,"EQUIPMENT","REQUIREMENTS",null,null,null,null,null,null,null,null,null,null,null,"INCENTIVE PER UNIT","QUANTITY","INCENTIVE\nTOTAL","INSTALLED\nCOST"]
[null," Gas-fired Automatic\n Conveyor Broiler "]
[null,null," Total conveyor belt width less than 20”",null,null,null,null,null,null,null,null,null,null,null,2500,null,{"$f":"P52*O52","v":0}]
[null,null," Total conveyor belt width 20” to 26”",null,null,null,null,null,null,null,null,null,null,null,3000,null,0]
[null,null," Total conveyor belt width greater than 26”",null,null,null,null,null,null,null,null,null,null,null,3500,null,0]
[null," Electric\n Combination Oven -\n 3-4 Pan Capacity",null,null,null,null,null,null,null,null,null,null,null,null,500,null,0]
[null," Electric\n Combination Oven -\n 5-40 Pan Capacity",null,null,null,null,null,null,null,null,null,null,null,null,1000,null,0]
[null," Double Rack\n Gas Oven",null,null,null,null,null,null,null,null,null,null,null,null,2000,null,0]
[null," Electric\n Convection Oven-\n Full-size",null,null,null,null,null,null,null,null,null,null,null,null,500,null,{"$f":"P58*O58","v":0}]
[null," Electric\n Convection Oven -\n Half-size ",null,null,null,null,null,null,null,null,null,null,null,null,300,null,{"$f":"P59*O59","v":0}]
[null," Commercial Ice\n Maker "]
[null,null,"Batch Self-contained Unit (SCU) - 200-4,000 lbs. per day",null,null,null,null,null,null,null,null,null,null,null,180,null,{"$f":"P61*O61","v":0}]
[null,null,"Batch Remote Condensing Unit (RCU) - 988-4,000 lbs. per day",null,null,null,null,null,null,null,null,null,null,null,400,null,0]
[null,null,"Continuous Remote Condensing Unit (RCU) - 800-4,000 lbs. per day",null,null,null,null,null,null,null,null,null,null,null,400,null,0]
[null,null,"Batch Ice-Making Head (IMH) - 1,500-4,000 lbs. per day",null,null,null,null,null,null,null,null,null,null,null,400,null,{"$f":"P64*O64","v":0}]
[null,null,"Continuous Ice-Making Head (IMH) - 820-4,000 lbs. per day",null,null,null,null,null,null,null,null,null,null,null,400,null,0]
[null," Electric Hot Food\n Cabinet - Half-size",null,null,null,null,null,null,null,null,null,null,null,null,450,null,{"$f":"P66*O66","v":0}]
[null," Gas Steam\n Cooker",null,null,null,null,null,null,null,null,null,null,null,null,3400,null,{"$f":"P67*O67","v":0}]
[null,null,null,null,null,null,null,null,null,null,null,null,null,null,"Bonus Incentive:",null,{"$f":"P68*O69","v":0}]
[null,null,null,null,null,null,null,null,null,null,null,null,null,null,1000]
[null," Electric Steam\n Cooker ",null,null,null,null,null,null,null,null,null,null,null,null,2500,null,{"$f":"P70*O70","v":0}]
[]
[]
[]
[null,"LODGING AND FOODSERVICE continued"]
[null,"EQUIPMENT","REQUIREMENTS",null,null,null,null,null,null,null,null,null,null,null,"INCENTIVE PER UNIT","QUANTITY","INCENTIVE\nTOTAL","INSTALLED\nCOST"]
[null," Commercial\n Vent Hood Retrofit\n with Demand\n Controlled\n Ventilation "]
[null,null,"Gas heat or electric heat",null,null,null,null,null,null,null,null,null,null,null,1500,null,{"$f":"P77*O77","v":0}]
[null,null,"Gas or non-electric heat in electric only territory",null,null,null,null,null,null,null,null,null,null,null,900,null,{"$f":"P78*O78","v":0}]
[null," Dishwasher,\n Single-Tank\n Conveyor",null,null,null,null,null,null,null,null,null,null,null,null,900,null,{"$f":"P79*O79","v":0}]
[null," Dishwasher,\n Multi-Tank\n Conveyor",null,null,null,null,null,null,null,null,null,null,null,null,900,null,{"$f":"P80*O80","v":0}]
[null," ENERGY STAR\n Commercial\n Laundry Washer,\n Common Areas"]
[null,null,"Water Heating Fuel Source: "]
[null,null,"Dryer Type",null,null,null,null,"Participating Utility"]
[null,null,"Electric",null,null,null,null,"Gas and Electric",null,null,null,null,null,null,400,null,{"$f":"P84*O84","v":0}]
[null,null,"Gas",null,null,null,null,"Gas and Electric",null,null,null,null,null,null,350,null,{"$f":"P85*O85","v":0}]
[null,null,"Electric/ Gas",null,null,null,null,"Electric Only",null,null,null,null,null,null,150,null,{"$f":"P86*O86","v":0}]
[null,null,"Electric/ Gas",null,null,null,null,"Gas Only",null,null,null,null,null,null,100,null,{"$f":"P87*O87","v":0}]
[null,"Two-stage Gas Valve on Clothes Dryers",null,null,null,null,null,null,null,null,null,null,null,null,700,null,{"$f":"P88*O88","v":0}]
[]
[]
[null,"LODGING AND FOODSERVICE continued"]
[null,"EQUIPMENT","REQUIREMENTS",null,null,null,null,null,null,null,null,null,null,null,"INCENTIVE PER UNIT","QUANTITY","INCENTIVE\nTOTAL","INSTALLED\nCOST"]
[null,"Ozone Laundry Systems"]
[null,null,"Total laundry capacity is less than 75 lbs:",null,null,null,null,null,null,null,null,null,null,null,5000,null,{"$f":"P94*O94","v":0}]
[null,null,"Total laundry capacity is between 75 and 125 lbs:",null,null,null,null,null,null,null,null,null,null,null,7500,null,{"$f":"P95*O95","v":0}]
[null,null,"Total laundry capacity is between 126 and 400 lbs:",null,null,null,null,null,null,null,null,null,null,null,15000,null,{"$f":"P96*O96","v":0}]
[null,null,"Total laundry capacity is between 401 and 600 lbs:",null,null,null,null,null,null,null,null,null,null,null,25000,null,{"$f":"P97*O97","v":0}]
[null,null,"Total laundry capacity is greater than 600 lbs:",null,null,null,null,null,null,null,null,null,null,null,30000,null,{"$f":"P98*O98","v":0}]
[]
[]
[null,"Requested incentives are subject to per-site, per-year incentive limits. See Terms & Conditions for details."]
[null,"TOTALS FOR LODGING AND FOODSERVICE",null,null,null,null,null,null,null,null,null,null,null,null,null,null,"TOTAL REQUESTED \nINCENTIVES","TOTAL\nINSTALLED COST"]
[null,null,null,null,null,null,null,null,null,null,null,null,null,null,null,null,{"$f":"SUM(Q13:Q27,Q44:Q47,Q52:Q59,Q61:Q70,Q84:Q88,Q94:Q98,Q79:Q80,Q77:Q78)","v":0},{"$f":"SUM(R13:R27,R44:R47,R52:R59,R61:R70,R84:R88,R94:R98,R79:R80,R77:R78)","v":0}]

{"sheet":"Grocery Equipment","index":5,"n_rows":83,"n_cols":20,"rows_kept":83,"cut":false,"hidden":false,"merged":[[57,2,57,10],[76,1,76,14],[73,1,74,12],[72,1,72,14],[70,2,70,10],[67,11,67,14],[36,1,36,14],[64,1,66,1],[64,2,64,10],[64,11,64,14],[58,1,60,1],[58,2,58,10],[58,11,58,14],[61,1,63,1],[37,2,37,10],[65,2,65,10],[66,2,66,10],[61,2,61,10],[61,11,61,14],[62,2,62,10],[63,2,63,10],[47,2,47,10],[53,11,53,14],[56,1,56,14],[53,1,54,1],[67,16,69,16],[67,15,69,15],[61,16,63,16],[64,15,66,15],[64,16,66,16],[17,14,18,14],[14,14,15,14],[17,13,18,13],[14,13,15,13],[61,15,63,15],[58,15,60,15],[58,16,60,16],[30,11,31,14],[17,12,18,12],[19,11,22,14],[14,12,15,12],[46,11,48,14],[27,11,27,14],[24,2,24,10],[46,2,46,10],[54,2,54,10],[46,1,52,1],[52,2,52,10],[25,2,25,10],[41,2,41,4],[31,2,31,4],[12,1,18,1],[67,0,69,0],[67,2,67,10],[69,2,69,10],[68,2,68,10],[67,1,69,1],[64,0,66,0],[31,5,31,7],[31,8,31,10],[60,2,60,10],[58,0,60,0],[59,2,59,10],[61,0,63,0],[30,1,34,1],[43,2,43,4],[45,8,45,10],[45,5,45,7],[45,2,45,4],[44,5,44,7],[44,8,44,10],[41,8,41,10],[28,2,28,10],[27,1,29,1],[27,2,27,10],[29,2,29,10],[38,1,45,1],[42,2,42,4],[43,8,43,10],[10,1,10,14],[16,2,16,10],[26,2,26,10],[12,11,12,14],[23,2,23,10],[19,1,26,1],[38,11,41,14],[11,2,11,10],[19,2,19,10],[13,2,13,10],[38,2,38,10],[20,2,20,5],[20,6,20,9],[21,2,21,8],[17,2,18,10],[14,2,15,10],[12,2,12,10],[53,2,53,10],[40,2,40,10],[44,2,44,4],[30,2,30,10],[34,2,34,10],[33,2,33,10],[32,2,32,10],[39,5,39,7],[51,2,51,10],[50,2,50,10],[49,2,49,10],[48,2,48,10],[41,5,41,7],[43,5,43,7],[39,2,39,4],[42,8,42,10],[42,5,42,7]]}
[]
[null,"Standard Incentives"]
[null,"Existing Buildings | Incentive Application | Form 120P"]
[]
[]
[null,"TRC is a Program Management Contractor for Energy Trust of Oregon."]
[]
[null,null,null,null,null,null,null,null,null,null,null,"Program Use Only",null,null,{"$f":"Version","v":"v2024.4"}]
[null,null,null,null,null,null,null,null,null,null,null,"Reference ID",{"$f":"IF(ReferenceID=\"\",\"\",ReferenceID)","v":""},"PTID",{"$f":"IF(PTID=\"\",\"\",PTID)","v":""}]
[]
[null,"GROCERY EQUIPMENT - Refrigeration"]
[null,"EQUIPMENT","REQUIREMENTS",null,null,null,null,null,null,null,null,"INCENTIVE PER UNIT","QUANTITY","INCENTIVE\nTOTAL","INSTALLED\nCOST"]
[null," Anti-Sweat Heater\n Controls (ASH) "]
[null,null," Low temperature case (below 0°F)",null,null,null,null,null,null,null,null,80,null,{"$f":"M14*L14","v":0}]
[null,null,null,null,null,null,null,null,null,null,null,"Bonus Incentive: ",null,{"$f":"L16*M15","v":0}]
[null,null,null,null,null,null,null,null,null,null,null,30]
[null,null," Medium temperature case (between 1°F and 35°F)",null,null,null,null,null,null,null,null,60,null,{"$f":"M17*L17","v":0}]
[null,null,null,null,null,null,null,null,null,null,null,"Bonus Incentive: ",null,{"$f":"L19*M18","v":0}]
[null,null,null,null,null,null,null,null,null,null,null,20]
[null," Evaporator Fan \n Motors "]
[null,null,"  Case Temperature:"]
[null,null,"ECM or PMSM Horsepower (if applicable):"]
[]
[null,null,"Walk-in case, from a SP",null,null,null,null,null,null,null,null,180,null,{"$f":"M24*L24","v":0}]
[null,null," Walk-in case, from a PSC",null,null,null,null,null,null,null,null,180,null,{"$f":"M25*L25","v":0}]
[null,null," Reach-in case, from a SP",null,null,null,null,null,null,null,null,150,null,{"$f":"M26*L26","v":0}]
[null,null," Reach-in case, from a PSC",null,null,null,null,null,null,null,null,150,null,{"$f":"M27*L27","v":0}]
[null," Strip Curtains "]
[null,null,"Walk-in cooler for grocery stores and warehouses",null,null,null,null,null,null,null,null,12,null,{"$f":"M29*L29","v":0}]
[null,null," Walk-in freezer for grocery stores and restaurants",null,null,null,null,null,null,null,null,12,null,{"$f":"M30*L30","v":0}]
[null," New Cooler Cases\n with Doors"]
[null,null," Building \nHeating Fuel ",null,null," Participating\n Electric Utility",null,null," Participating\n Gas Utility"]
[null,null,"Vertical cases - Coolers only",null,null,null,null,null,null,null,null,150,null,{"$f":"M33*L33","v":0}]
[null,null,"Horizontal cases - Coolers or Freezers",null,null,null,null,null,null,null,null,150,null,{"$f":"M34*L34","v":0}]
[null,null,"Self-Contained Unit - Horizontal Freezer \nat site with gas heat, with no participating gas provider",null,null,null,null,null,null,null,null,150,null,{"$f":"M35*L35","v":0}]
[]
[null,"GROCERY EQUIPMENT - Refrigeration continued"]
[null,"EQUIPMENT","REQUIREMENTS",null,null,null,null,null,null,null,null,"INCENTIVE PER UNIT","QUANTITY","INCENTIVE\nTOTAL","INSTALLED\nCOST"]
[null," Retrofit Doors on\n Freezers or\n Refrigerated Cases"]
[null,null,"Heat type: "]
[null,null,"            Horizontal hinge OR           Vertical hinge"]
[null,null,"Building Heat Type ",null,null,"Participating Electric Service",null,null,"Case Temperature"]
[null,null,"Vertical",null,null,"Electric or Gas",null,null,"Medium",null,null,200,null,{"$f":"M43*L43","v":0},null,null,null,null,null,"Remove electric only"]
[null,null,"Gas",null,null,"Yes",null,null,"Medium or Low",null,null,400,null,{"$f":"M44*L44","v":0}]
[null,null,"Electric or \nNon-participating Gas",null,null,"Yes",null,null,"Medium or Low",null,null,350,null,{"$f":"M45*L45","v":0}]
[null,null,"Gas",null,null,"No",null,null,"Medium or Low",null,null,160,null,{"$f":"M46*L46","v":0}]
[null," ENERGY STAR®\n Vertical Reach-in\n Freezer"]
[null,null,"How is your site heated?"]
[null,null,"Total Case Volume (cubic feet/ ft3):"]
[null,null,"Less than 15 cubic feet",null,null,null,null,null,null,null,null,40,null,{"$f":"M50*L50","v":0}]
[null,null,"15 - 29.9 cubic feet",null,null,null,null,null,null,null,null,80,null,{"$f":"M51*L51","v":0}]
[null,null,"30 - 49.9 cubic feet",null,null,null,null,null,null,null,null,190,null,{"$f":"M52*L52","v":0}]
[null,null,"At least 50 cubic feet",null,null,null,null,null,null,null,null,325,null,0]
[null," ENERGY STAR\n Vertical Reach-in\n Refrigerator"]
[null,null,"How is your site heated?",null,null,null,null,null,null,null,null,20,null,{"$f":"M55*L55","v":0}]
[]
[null,"GROCERY EQUIPMENT - Refrigeration continued"]
[null,"EQUIPMENT","REQUIREMENTS",null,null,null,null,null,null,null,null,"INCENTIVE PER UNIT","QUANTITY","INCENTIVE\nTOTAL","INSTALLED\nCOST"]
[null,"Condenser Fan Variable Frequency\n Drive (VFD) Retrofit,\n Compressor Rack ",null,null,null,null,null,null,null,null,null,null,null,null,null,null,0]
[null,null,"Air Cooled Condenser",null,null,null,null,null,null,null,null,850,null,{"$f":"M60*L60","v":0}]
[null,null,"Evaporatively Cooled Condenser",null,null,null,null,null,null,null,null,850,null,{"$f":"M61*L61","v":0}]
[null," Floating Head\n Pressure Control\n (FHPC) Retrofit,\n Compressor Rack ",null,null,null,null,null,null,null,null,null,null,null,null,null,null,0]
[null,null,"Air Cooled Condenser",null,null,null,null,null,null,null,null,60,null,{"$f":"M63*L63","v":0}]
[null,null,"Evaporatively Cooled Condenser",null,null,null,null,null,null,null,null,60,null,{"$f":"M64*L64","v":0}]
[null," Floating Suction\n Pressure Controls\n (FSPC) Retrofit,\n Compressor Rack ",null,null,null,null,null,null,null,null,null,null,null,null,null,null,0]
[null,null,"Air Cooled Condenser",null,null,null,null,null,null,null,null,60,null,{"$f":"M66*L66","v":0}]
[null,null,"Evaporatively Cooled Condenser",null,null,null,null,null,null,null,null,60,null,{"$f":"M67*L67","v":0}]
[null," FHPC and FSPC\n Retrofit, Compressor\n Rack ",null,null,null,null,null,null,null,null,null,null,null,null,null,null,0]
[null,null,"Air Cooled Condenser",null,null,null,null,null,null,null,null,130,null,{"$f":"M69*L69","v":0}]
[null,null,"Evaporatively Cooled Condenser",null,null,null,null,null,null,null,null,130,null,{"$f":"M70*L70","v":0}]
[null," On-Demand\n Overwrapper ",null,null,null,null,null,null,null,null,null,350,null,{"$f":"M71*L71","v":0}]
[]
[null,"Requested incentives are subject to per-site, per-year incentive limits. See Terms & Conditions for details."]
[null,"TOTALS FOR GROCERY",null,null,null,null,null,null,null,null,null,null,null,"TOTAL REQUESTED \nINCENTIVES","TOTAL\nINSTALLED COST"]
[null,null,null,null,null,null,null,null,null,null,null,null,null,{"$f":"SUM(N14:N17,N24:N27,N29:N30,N33:N35,N44:N46,N50:N53,N55,N60:N61,N63:N64,N66:N67,N69:N71)","v":0},{"$f":"SUM(O14:O17,O24:O27,O29:O30,O33:O35,O44:O46,O50:O53,O55,O60:O61,O63:O64,O66:O67,O69:O71)","v":0}]
[]
[]
[]
[]
[]
[]
[]
[null,null,null,null,null,null,null," "]

{"sheet":"Computer Equipment","index":6,"n_rows":26,"n_cols":12,"rows_kept":26,"cut":false,"hidden":false,"merged":[[35,1,36,11],[28,2,28,11],[29,2,29,11],[30,2,30,11],[31,2,31,11],[32,2,32,11],[10,1,10,11],[33,2,33,11],[34,2,34,11],[21,1,21,11],[12,1,18,1],[12,2,12,7],[17,2,17,7],[18,2,18,7],[12,8,16,11],[13,2,13,3],[22,1,23,9],[13,4,13,5],[11,2,11,7]]}
[]
[null,"Standard Incentives"]
[null,"Existing Buildings | Incentive Application | Form 120P"]
[]
[]
[null,"TRC is a Program Management Contractor for Energy Trust of Oregon."]
[]
[null,null,null,null,null,null,null,null,"Program Use Only",null,null,{"$f":"Version","v":"v2024.4"}]
[null,null,null,null,null,null,null,null,"Reference ID",{"$f":"IF(ReferenceID=\"\",\"\",ReferenceID)","v":""},"PTID",{"$f":"IF(PTID=\"\",\"\",PTID)","v":""}]
[]
[null,"COMPUTER"]
[null,"EQUIPMENT","REQUIREMENTS",null,null,null,null,null,"INCENTIVE \nPER UNIT","QUANTITY","INCENTIVE\nTOTAL","INSTALLED\nCOST"]
[null," Server/Telecom\n Room - \n Mini-Split Air\n Conditioning"]
[null,null,"Server closet design load (kW)"]
[]
[null,null,"SEER rating",null,"OR","SEER2 rating"]
[]
[null,null,"Server Closet Mini-split Air Conditioner ",null,null,null,null,null,250,null,{"$f":"I18*J18","v":0}]
[null,null,"Server Closet Mini-split Heat Pump",null,null,null,null,null,250,null,{"$f":"I19*J19","v":0}]
[]
[]
[null,"Requested incentives are subject to per-site, per-year incentive limits. See Terms & Conditions for details."]
[null,"TOTALS FOR COMPUTER",null,null,null,null,null,null,null,null,"TOTAL REQUESTED \nINCENTIVES","TOTAL\nINSTALLED COST"]
[null,null,null,null,null,null,null,null,null,null,{"$f":"SUM(K18:K19)","v":0},{"$f":"SUM(L18:L19)","v":0}]
[]
[null," "]

{"sheet":"HVAC & Water Heating Equipment","index":7,"n_rows":166,"n_cols":19,"rows_kept":166,"cut":false,"hidden":false,"merged":[[149,13,152,13],[149,14,152,14],[149,15,152,15],[153,13,161,13],[153,14,161,14],[153,15,161,15],[96,2,96,3],[49,16,51,16],[47,7,48,11],[48,2,48,6],[49,15,51,15],[49,14,51,14],[52,15,53,15],[82,2,82,11],[83,2,83,11],[123,2,127,5],[128,2,128,5],[133,2,139,5],[140,2,146,5],[114,1,114,15],[111,2,112,5],[107,2,108,5],[132,12,132,15],[117,1,117,15],[94,12,96,12],[94,15,96,15],[77,15,78,15],[85,12,85,15],[80,13,81,13],[40,5,40,9],[44,2,44,6],[52,13,53,13],[57,8,57,9],[55,2,56,11],[40,2,40,4],[51,2,51,11],[43,2,43,6],[43,7,44,11],[47,2,47,6],[42,2,42,6],[42,7,42,11],[45,2,45,6],[45,7,46,11],[46,2,46,6],[80,2,81,11],[93,2,93,11],[68,1,68,15],[69,2,69,11],[52,14,53,14],[54,1,60,1],[72,5,72,7],[72,8,72,9],[92,1,92,15],[62,13,63,13],[77,14,78,14],[80,15,81,15],[76,2,76,11],[82,1,84,1],[79,1,81,1],[49,17,51,17],[49,12,51,12],[49,13,51,13],[39,12,42,15],[38,2,38,11],[49,2,49,11],[50,2,50,11],[27,8,27,11],[28,8,29,11],[32,8,32,11],[33,8,33,11],[32,5,33,7],[39,2,39,11],[88,17,89,17],[85,16,87,16],[85,17,87,17],[70,16,72,16],[70,17,72,17],[88,16,89,16],[54,17,60,17],[54,16,60,16],[110,6,110,11],[62,14,63,14],[61,2,61,11],[102,2,103,11],[62,15,63,15],[97,2,97,11],[75,2,75,11],[70,2,70,11],[70,13,74,13],[70,12,74,12],[72,2,73,3],[77,13,78,13],[79,2,79,11],[82,12,82,15],[109,2,110,5],[109,6,109,11],[12,17,14,17],[15,16,17,16],[15,17,17,17],[19,16,20,16],[19,17,20,17],[12,16,14,16],[27,5,27,7],[28,5,29,7],[30,5,31,7],[24,12,27,15],[10,1,10,15],[37,1,37,15],[28,13,29,15],[11,2,11,11],[14,2,14,11],[24,2,24,11],[15,12,15,15],[17,2,17,11],[16,2,16,11],[15,2,15,11],[15,1,18,1],[34,1,34,15],[21,1,23,1],[22,2,22,11],[23,2,23,11],[21,12,21,15],[12,12,12,15],[19,12,19,15],[18,2,18,11],[18,12,18,15],[25,2,25,4],[39,1,48,1],[19,0,20,0],[12,2,12,11],[19,2,19,11],[19,1,20,1],[13,2,13,11],[12,1,14,1],[20,2,20,11],[25,5,25,9],[15,0,17,0],[12,0,14,0],[24,1,33,1],[27,2,27,4],[28,2,28,4],[30,8,30,11],[31,8,31,11],[29,2,29,4],[30,2,30,4],[31,2,31,4],[32,2,32,4],[33,2,33,4],[70,0,72,0],[49,0,51,0],[87,2,87,11],[86,2,86,11],[85,2,85,11],[52,8,53,11],[54,0,60,0],[62,2,63,11],[54,2,54,11],[74,2,74,11],[70,1,74,1],[59,2,59,11],[60,2,60,11],[49,1,53,1],[77,2,78,11],[57,4,57,5],[64,1,64,15],[71,2,71,11],[80,14,81,14],[76,1,78,1],[85,0,87,0],[85,1,89,1],[70,15,74,15],[70,14,74,14],[88,0,89,0],[94,14,96,14],[106,12,108,15],[101,1,105,1],[101,12,103,15],[89,2,89,11],[88,2,88,11],[132,1,146,1],[106,1,113,1],[119,12,120,15],[146,6,146,11],[145,6,145,11],[125,6,125,11],[126,6,126,11],[127,6,127,11],[107,6,107,10],[123,6,123,11],[129,6,129,11],[142,6,142,11],[135,6,135,11],[134,6,134,11],[95,2,95,11],[94,1,96,1],[94,13,96,13],[150,2,159,11],[106,2,106,11],[129,2,131,5],[122,6,122,11],[130,6,130,11],[131,6,131,11],[124,6,124,11],[121,6,121,11],[147,1,147,15],[120,2,120,11],[140,6,140,11],[141,6,141,11],[133,6,133,11],[144,6,144,11],[139,6,139,11],[121,2,122,5],[111,6,111,11],[112,6,112,11],[132,2,132,11],[149,1,161,1],[149,2,149,11],[161,2,161,11],[148,2,148,11],[160,2,160,11],[153,12,161,12],[149,12,152,12],[84,2,84,11],[164,1,165,13],[94,2,94,11],[98,1,100,1],[98,2,98,11],[98,12,98,15],[99,2,99,11],[100,2,100,11],[163,1,163,15],[101,2,101,11],[104,2,104,11],[105,2,105,11],[113,2,113,3],[119,1,131,1],[119,2,119,11],[118,2,118,11],[143,6,143,11],[128,6,128,11],[138,6,138,11],[137,6,137,11],[136,6,136,11],[162,1,162,15]]}
[]
[null,"Standard Incentives"]
[null,"Existing Buildings | Incentive Application | Form 120P"]
[]
[]
[null,"TRC is a Program Management Contractor for Energy Trust of Oregon."]
[]
[null,null,null,null,null,null,null,null,null,null,null,null,"Program Use Only",null,null,{"$f":"Version","v":"v2024.4"}]
[null,null,null,null,null,null,null,null,null,null,null,null,"Reference ID",{"$f":"IF(ReferenceID=\"\",\"\",ReferenceID)","v":""},"PTID",{"$f":"IF(PTID=\"\",\"\",PTID)","v":""}]
[]
[null,"HVAC AND WATER HEATING"]
[null,"EQUIPMENT","REQUIREMENTS",null,null,null,null,null,null,null,null,null,"INCENTIVE \nPER UNIT","QUANTITY","INCENTIVE\nTOTAL","INSTALLED\nCOST"]
[null," New Rooftop Unit\n (RTU) with\n Economizer "]
[null,null,"Space heated by electric heat pump ",null,null,null,null,null,null,null,null,null,30,null,{"$f":"M14*N14","v":0}]
[null,null,"Space heated by gas furnace",null,null,null,null,null,null,null,null,null,30,null,{"$f":"M15*N15","v":0}]
[null," New Rooftop Unit\n (RTU) with\n Demand Control\n Ventilation (DCV) "]
[null,null,"Space heated by electric heat pump ",null,null,null,null,null,null,null,null,null,29,null,{"$f":"M17*N17","v":0}]
[null,null,"Space heated by gas furnace",null,null,null,null,null,null,null,null,null,29,null,{"$f":"M18*N18","v":0}]
[null,null,"*Describe the space that the RTU will serve:\n (contact Energy Trust for eligible space types)"]
[null," New Rooftop Unit\n (RTU) with \n Variable Speed\n Supply Fan "]
[null,null,"Space heated by electric heat pump ",null,null,null,null,null,null,null,null,null,100,null,{"$f":"M21*N21","v":0}]
[null," Infrared Radiant\n Heater"]
[null,null,"Non-Modulating",null,null,null,null,null,null,null,null,null,1.25,null,{"$f":"M23*N23","v":0}]
[null,null,"Modulating",null,null,null,null,null,null,null,null,null,2.25,null,{"$f":"M24*N24","v":0}]
[null," Advanced Rooftop \n Controls (ARC) - \n Lite Retrofit "]
[null,null,"Annual operating hours:"]
[]
[null,null,"Rooftop Unit Heating Fuel",null,null,"Participating Utilities",null,null,"Required Minimum Annual Operating Hours:"]
[null,null,"Electric Heat",null,null,"Gas Only",null,null,null,null,null,null,"Not eligible"]
[null,null,"Gas Heat",null,null,null,null,null,null,null,null,null,"Not eligible"]
[null,null,"Electric Heat ",null,null,"Electric Only",null,null,"2,500 hrs",null,null,null,200,null,{"$f":"M31*N31","v":0}]
[null,null,"Gas Heat",null,null,null,null,null,"2,500 hrs",null,null,null,200,null,{"$f":"M32*N32","v":0}]
[null,null,"Electric Heat",null,null,"Gas and Electric",null,null,"2,500 hrs",null,null,null,200,null,{"$f":"M33*N33","v":0}]
[null,null,"Gas Heat",null,null,null,null,null,"3,500 hrs",null,null,null,200,null,{"$f":"M34*N34","v":0}]
[]
[]
[]
[null,"HVAC AND WATER HEATING continued"]
[null,"EQUIPMENT","REQUIREMENTS",null,null,null,null,null,null,null,null,null,"INCENTIVE \nPER UNIT","QUANTITY","INCENTIVE\nTOTAL","INSTALLED\nCOST"]
[null," Advanced Rooftop\n Controls (ARC)\n - Full Retrofit "]
[null,null,"Annual operating hours:"]
[]
[null,null,"Rooftop Unit Heating Fuel",null,null,null,null,"Participating Utilities"]
[null,null,"Electric Heat",null,null,null,null,"Gas Only",null,null,null,null,"Not eligible"]
[null,null,"Gas Heat",null,null,null,null,null,null,null,null,null,300,null,{"$f":"M45*N45","v":0}]
[null,null,"Electric Heat ",null,null,null,null,"Electric Only",null,null,null,null,300,null,{"$f":"M46*N46","v":0}]
[null,null,"Gas Heat",null,null,null,null,null,null,null,null,null,300,null,0]
[null,null,"Electric Heat",null,null,null,null,"Gas and Electric",null,null,null,null,300,null,0]
[null,null,"Gas Heat",null,null,null,null,null,null,null,null,null,300,null,0]
[null," Air-Cooled\n Variable\n Refrigerant Flow\n (VRF) Multi-Split\n Ductless Heat\n Pump ",null,null,null,null,null,null,null,null,null,null,1,null,{"$f":"M50*N50","v":0}]
[null,null,"Standard DOAS: \nMinimum fan efficiency 40% or minimum fan efficiency index target 0.82  "]
[null,null,"High Efficiency DOAS: \nMinimum fan efficiency 65% or minimum fan efficiency index target 1.55 "]
[null,null,"\n",null,null,null,null,null,"Ducted heat pump\n for office building",null,null,null,"Bonus incentive:",null,{"$f":"N53*M54","v":0}]
[null,null,null,null,null,null,null,null,null,null,null,null,4]
[null," Steam Trap "]
[]
[]
[null,null," Psig:",null,"Trap size:",null,null,null,"Occupied 24/7:"]
[]
[null,null,"Replaced steam trap",null,null,null,null,null,null,null,null,null,500,null,{"$f":"M60*N60","v":0}]
[null,null,"Repaired steam trap",null,null,null,null,null,null,null,null,null,400,null,{"$f":"M61*N61","v":0}]
[null," Commercial\n Condensing Tank \n Water Heater",null,null,null,null,null,null,null,null,null,null,3.5,null,{"$f":"M62*N62","v":0}]
[null,null,null,null,null,null,null,null,null,null,null,null,"Bonus Incentive: ",null,{"$f":"M64*N63","v":0}]
[null,null,null,null,null,null,null,null,null,null,null,null,0.35]
[]
[]
[]
[]
[null,"HVAC AND WATER HEATING continued"]
[null,"EQUIPMENT","REQUIREMENTS",null,null,null,null,null,null,null,null,null,"INCENTIVE \nPER UNIT","QUANTITY","INCENTIVE\nTOTAL","INSTALLED\nCOST"]
[null," Commercial\n Condensing\n Tankless\n Water Heater\n under 200 kBtu/h\n input ",null,null,null,null,null,null,null,null,null,null,140,null,{"$f":"M71*N71","v":0},null,null,1]
[null,null,"   Is there an existing water storage tank attached?"]
[null,null,null,null,null,"If yes, what is the capacity?"]
[]
[null,null,"Installed at any qualfying site, on or after September 1, 2023, UEF at least 0.94"]
[null," Commercial\n Condensing\n Tankless Water\n Heater/Boiler\n at least 200 kBtu/h\n input ",null,null,null,null,null,null,null,null,null,null,1.4,null,{"$f":"M76*N76","v":0}]
[null," Gas-fired\n High-Efficiency\n Condensing\n HVAC Boiler",null,null,null,null,null,null,null,null,null,null,6.5,null,{"$f":"M77*N77","v":0}]
[null,null,null,null,null,null,null,null,null,null,null,null,"Bonus Incentive:",null,{"$f":"N78*M79","v":0}]
[null,null,null,null,null,null,null,null,null,null,null,null,3.75]
[null," Modulating\n Boiler Burner",null,null,null,null,null,null,null,null,null,null,10,null,{"$f":"M80*N80","v":0}]
[null,null,null,null,null,null,null,null,null,null,null,null,"Bonus Incentive:",null,{"$f":"M82*N81","v":0}]
[null,null,null,null,null,null,null,null,null,null,null,null,5]
[null," Commercial\n Condensing Gas\n Furnace"]
[null,null,"Gas heating with gas and electricity provided by participating utilities",null,null,null,null,null,null,null,null,null,8.25,null,{"$f":"M84*N84","v":0}]
[null,null,"Gas heating with only gas provided by a participating utility ",null,null,null,null,null,null,null,null,null,8,null,{"$f":"M85*N85","v":0}]
[null," Hydronic Heating\n Circulator Pumps"]
[null,null,"Single Speed ECM: more than 3/4 HP - 2.5 HP or less",null,null,null,null,null,null,null,null,null,200,null,{"$f":"M87*N87","v":0}]
[null,null,"Single Speed ECM: more than 2.5 HP",null,null,null,null,null,null,null,null,null,300,null,0]
[null,null,"Variable Speed ECM: more than 1/2 HP - 2.5 HP or less",null,null,null,null,null,null,null,null,null,300,null,{"$f":"M89*N89","v":0}]
[null,null,"Variable Speed ECM: more than 2.5 HP ",null,null,null,null,null,null,null,null,null,750,null,0]
[]
[]
[null,"HVAC AND WATER HEATING continued"]
[null,"EQUIPMENT","REQUIREMENTS",null,null,null,null,null,null,null,null,null,"INCENTIVE \nPER UNIT","QUANTITY","INCENTIVE\nTOTAL","INSTALLED\nCOST"]
[null,"Commercial \nDucted or Ductless Heat Pump - Retrofit  ",null,null,null,null,null,null,null,null,null,null,500,null,{"$f":"N95*M95","v":0},null,null,null,"Removed retrofit measure"]
[null,null,"   \u009f Did the space served have existing cooling capabilities?"]
[]
[null," Commercial\n Ductless Heat\n Pump - New or\n Replacement",null,null,null,null,null,null,null,null,null,null,300,null,{"$f":"N98*M98","v":0}]
[null," Commercial Heat\n Pump Water\n Heater (HPWH) "]
[null,null,"Ducted HPWH",null,null,null,null,null,null,null,null,null,800,null,{"$f":"M100*N100","v":0}]
[null,null,"Non-ducted HPWH",null,null,null,null,null,null,null,null,null,800,null,{"$f":"M101*N101","v":0}]
[null," Garage Exhaust\n Ventilation\n Controls"]
[null,null,"   \u009fWere the exhaust fans retrofitted to add VFD controls?"]
[]
[null,null,"Spaces less than 30,000 sq. ft., unconditioned ",null,null,null,null,null,null,null,null,null,0.5,null,{"$f":"M105*N105","v":0}]
[null,null,"Spaces at least 30,000 sq. ft. OR conditioned",null,null,null,null,null,null,null,null,null,0.1,null,{"$f":"M106*N106","v":0}]
[null," Forced Circulation\n Generator Block\n Heater"]
[null,null,"   Heater size in Kilowatts (kW):"]
[]
[null,null,"Retrofit ",null,null,null,"2.5 to 3.0 kW",null,null,null,null,null,400,null,{"$f":"M110*N110","v":0}]
[null,null,null,null,null,null,"3.1 to 9.0 kW",null,null,null,null,null,1400,null,{"$f":"M111*N111","v":0}]
[null,null,"End-of-life Replacement or \nNew applications ",null,null,null,"0 to 3.0 kW",null,null,null,null,null,400,null,{"$f":"M112*N112","v":0}]
[null,null,null,null,null,null,"3.1 to 9.0 kW",null,null,null,null,null,1400,null,{"$f":"M113*N113","v":0}]
[]
[]
[]
[]
[null,"HVAC AND WATER HEATING continued"]
[null,"EQUIPMENT","REQUIREMENTS",null,null,null,null,null,null,null,null,null,"INCENTIVE \nPER UNIT","QUANTITY","INCENTIVE\nTOTAL","INSTALLED\nCOST"]
[null," Commercial \n Pump  Variable\n Frequency\n Drive (VFD) -\n New Pump"]
[null,null,"            Pump application:"]
[null,null,"Cooling and Heating applications only",null,null,null,"0.50 to 0.75 hp",null,null,null,null,null,200,null,{"$f":"M122*N122","v":0}]
[null,null,null,null,null,null,"0.76 to 1.25 hp",null,null,null,null,null,250,null,0]
[null,null,"All eligible pump applications",null,null,null,"1.26 to 1.75 hp",null,null,null,null,null,300,null,0]
[null,null,null,null,null,null,"1.76 to 2.5 hp",null,null,null,null,null,350,null,0]
[null,null,null,null,null,null,"2.51 to 3.5 hp",null,null,null,null,null,400,null,0]
[null,null,null,null,null,null,"3.51 to 4.5 hp",null,null,null,null,null,500,null,0]
[null,null,null,null,null,null,"4.51 to 6.0 hp",null,null,null,null,null,550,null,0]
[null,null,"Heating, Pressure Boost and Cooling Tower applications only",null,null,null,"6.01 to 8.0 hp",null,null,null,null,null,700,null,0]
[null,null,"Pressure Boost or Cooling Tower applications only",null,null,null,"8.01 to 12.5 hp",null,null,null,null,null,800,null,{"$f":"M130*N130","v":0}]
[null,null,null,null,null,null,"12.51 to 17.5 hp",null,null,null,null,null,950,null,{"$f":"M131*N131","v":0}]
[null,null,null,null,null,null,"17.51 to 22.5 hp",null,null,null,null,null,1100,null,{"$f":"M132*N132","v":0}]
[null," Irrigation Pump\n Variable\n Frequency\n Drive (VFD) - New\n or Retrofit"]
[null,null,"Retrofit Pump VFD",null,null,null,"2.0 to 4.9 hp",null,null,null,null,null,1000,null,{"$f":"M134*N134","v":0}]
[null,null,null,null,null,null,"5.0 to 7.49 hp",null,null,null,null,null,2000,null,{"$f":"M135*N135","v":0}]
[null,null,null,null,null,null,"7.5 to 9.9 hp",null,null,null,null,null,3000,null,{"$f":"M136*N136","v":0}]
[null,null,null,null,null,null,"10.0 to 14.9 hp",null,null,null,null,null,3500,null,0]
[null,null,null,null,null,null,"15.0 to 19.9 hp",null,null,null,null,null,4500,null,0]
[null,null,null,null,null,null,"20.0 to 24.9 hp",null,null,null,null,null,5000,null,0]
[null,null,null,null,null,null,"25.0 hp",null,null,null,null,null,6000,null,0]
[null,null,"New Construction Pump VFD",null,null,null,"2.0 to 4.9 hp",null,null,null,null,null,750,null,0]
[null,null,null,null,null,null,"5.0 to 7.49 hp",null,null,null,null,null,1250,null,0]
[null,null,null,null,null,null,"7.5 to 9.9 hp",null,null,null,null,null,1750,null,0]
[null,null,null,null,null,null,"10.0 to 14.9 hp",null,null,null,null,null,2250,null,0]
[null,null,null,null,null,null,"15.0 to 19.9 hp",null,null,null,null,null,2750,null,0]
[null,null,null,null,null,null,"20.0 to 24.9 hp",null,null,null,null,null,3250,null,{"$f":"M146*N146","v":0}]
[null,null,null,null,null,null,"25.0 hp",null,null,null,null,null,3750,null,0]
[null,"HVAC AND WATER HEATING continued"]
[null,"EQUIPMENT","REQUIREMENTS",null,null,null,null,null,null,null,null,null,"INCENTIVE \nPER UNIT","QUANTITY","INCENTIVE\nTOTAL","INSTALLED\nCOST"]
[null," Commercial\n Smart Thermostat",null,null,null,null,null,null,null,null,null,null,400,null,{"$f":"M150*N150","v":0}]
[]
[]
[]
[null,null,null,null,null,null,null,null,null,null,null,null,500,null,{"$f":"N154*M154","v":0}]
[]
[]
[]
[]
[]
[]
[null,null,"How is your site heated?"]
[null,null,"Is there cooling onsite?"]
[]
[null,"Requested incentives are subject to per-site, per-year incentive limits. See Terms & Conditions for details."]
[null,"TOTALS FOR HVAC AND WATER HEATING",null,null,null,null,null,null,null,null,null,null,null,null,"TOTAL REQUESTED \nINCENTIVES","TOTAL\nINSTALLED COST"]
[null,null,null,null,null,null,null,null,null,null,null,null,null,null,{"$f":"SUM(O14:O15,O17:O18,O21:O21,O23:O24,O31:O34,O45:O52,O60:O62,O71:O80,O87:O90,O98,O100:O101,O105:O106,O110:O113,O122:O132,O134:O147,O150:O162,O84:O85)","v":0},{"$f":"SUM(P14:P15,P17:P18,P21:P21,P23:P24,P31:P34,P45:P52,P60:P62,P71:P80,P87:P90,P98,P100:P101,P105:P106,P110:P113,P122:P132,P134:P147,P84:P85,P150,P154)","v":0}]

{"sheet":"Insulation","index":8,"n_rows":80,"n_cols":10,"rows_kept":80,"cut":false,"hidden":false,"merged":[[18,2,19,2],[25,2,26,2],[31,2,32,2],[40,2,41,2],[17,7,22,7],[11,8,16,8],[11,7,16,7],[11,6,16,6],[39,7,44,7],[39,8,44,8],[24,8,29,8],[30,6,35,6],[30,7,35,7],[30,8,35,8],[10,2,10,4],[59,7,60,7],[59,8,60,8],[56,6,57,6],[56,7,57,7],[56,8,57,8],[59,6,60,6],[38,2,38,4],[30,2,30,4],[24,2,24,4],[24,6,29,6],[24,7,29,7],[17,8,22,8],[18,3,18,4],[19,3,19,4],[17,6,22,6],[65,8,66,8],[62,6,63,6],[45,1,66,1],[68,1,68,8],[62,7,63,7],[62,8,63,8],[65,6,66,6],[50,4,52,4],[64,2,64,5],[61,2,61,5],[58,2,58,5],[55,2,55,5],[48,4,48,5],[50,5,52,5],[39,1,44,1],[40,3,40,4],[41,3,41,4],[39,6,44,6],[65,7,66,7],[48,2,49,3],[50,2,50,3],[51,2,51,3],[52,2,52,3],[53,2,53,3],[45,2,45,5],[39,2,39,5],[69,1,70,6],[56,2,57,4],[59,2,60,4],[62,2,63,4],[65,2,66,4],[30,1,35,1],[17,1,22,1],[11,1,16,1],[24,1,29,1],[25,3,25,4],[26,3,26,4],[31,3,31,4],[32,3,32,4],[12,3,12,4],[13,3,13,4],[11,2,11,5],[14,2,14,5],[27,2,27,5],[17,2,17,5],[20,2,20,5],[12,2,13,2],[39,9,44,9],[30,9,35,9],[24,9,29,9],[17,9,22,9],[11,9,16,9]]}
[]
[null,"Standard Incentives"]
[null,"Existing Buildings | Incentive Application | Form 120P"]
[]
[]
[null,"TRC is a Program Management Contractor for Energy Trust of Oregon."]
[null,null,null,null,null,null,"Program Use Only",null,null,{"$f":"Version","v":"v2024.4"}]
[null,null,null,null,null,null,"Reference ID",{"$f":"IF(ReferenceID=\"\",\"\",ReferenceID)","v":""},"PTID",{"$f":"IF(PTID=\"\",\"\",PTID)","v":""}]
[]
[null,"INSULATION"]
[null,"EQUIPMENT","REQUIREMENTS",null,null,null,"INCENTIVE \nPER UNIT","QUANTITY","INCENTIVE\nTOTAL","INSTALLED\nCOST"]
[null," Attic Insulation,\n R-9 or less to\n R-25",null,null,null,null,0.9,null,{"$f":"G12*H12","v":0}]
[null,null,"Building\nheating fuel:"]
[" "]
[]
[null,null,"Existing R-Value:",null,"New R-Value: "]
[]
[null," Roof Insulation,\n R-0 to R-15",null,null,null,null,2.85,null,{"$f":"G18*H18","v":0}]
[null,null,"Building\nheating fuel:"]
[" "]
[]
[null,null,"Existing R-Value:",null,"New R-Value: "]
[]
[]
[null," Roof Insulation,\n R-0 to R-30",null,null,null,null,2.85,null,{"$f":"G25*H25","v":0}]
[null,null,"Building\nheating fuel:"]
[" "]
[]
[null,null,"Existing R-Value:",null,"New R-Value: "]
[]
[null," Roof Insulation,\n R-5 or less to\n R-30",null,null,null,null,1,null,{"$f":"G31*H31","v":0}]
[null,null,"Building\nheating fuel:"]
[" "]
[]
[null,null,"Existing R-Value:",null,"New R-Value: "]
[]
[]
[null,"INSULATION continued"]
[null,"EQUIPMENT","REQUIREMENTS",null,null,null,"INCENTIVE \nPER UNIT","QUANTITY","INCENTIVE\nTOTAL","INSTALLED\nCOST"]
[null," Wall Insulation,\n R-6 or less to\n R-20",null,null,null,null,1.3,null,{"$f":"G40*H40","v":0}]
[null,null,"Building\nheating fuel:"]
[" "]
[]
[null,null,"Existing R-Value:",null,"New R-Value: "]
[]
[null," Pipe Insulation  "]
[null,null,"Pipe Diameter:"]
[]
[null,null,"Fluid",null,"Pipe Diameter"]
[null,null,null,null,"1.5 inches or less","Greater than 1.5 inches"]
[null,null,"Domestic Hot Water",null,"1.5 Inches","2.0 Inches"]
[null,null,"Heating Hot Water"]
[null,null,"Low Pressure"]
[null,null,"Medium Pressure",null,"2.0 Inches","2.5 Inches"]
[]
[null,null,"Piping serves domestic hot water",null,null,null,18,null,{"$f":"G56*H56","v":0}]
[null,null,null,null,null,null,"Bonus Incentive:",null,{"$f":"G58*H57","v":0}]
[null,null,null,null,null,null,11]
[null,null,"Piping serves medium pressure steam (15-200 psig)",null,null,null,25,null,{"$f":"G59*H59","v":0}]
[null,null,null,null,null,null,"Bonus Incentive:",null,{"$f":"G61*H60","v":0}]
[null,null,null,null,null,null,3]
[null,null,"Piping serves heating hot water",null,null,null,25,null,{"$f":"G62*H62","v":0}]
[null,null,null,null,null,null,"Bonus Incentive:",null,{"$f":"G64*H63","v":0}]
[null,null,null,null,null,null,11]
[null,null,"Piping serves low pressure steam (less than 15 psig)",null,null,null,25,null,{"$f":"G65*H65","v":0}]
[null,null,null,null,null,null,"Bonus Incentive:",null,{"$f":"G67*H66","v":0}]
[null,null,null,null,null,null,7]
[]
[null,"Requested incentives are subject to per-site, per-year incentive limits. See Terms & Conditions for details."]
[null,"TOTALS FOR INSULATION",null,null,null,null,null,null,"TOTAL REQUESTED\nINCENTIVES","TOTAL\nINSTALLED COST"]
[null,null,null,null,null,null,null,null,{"$f":"SUM(I12:I30,I31,I40,I56:I67)","v":0},{"$f":"SUM(J12:J30,J31,J40,J56:J67)","v":0}]
[]
[]
[null,null,null,null,null,null,null,"PAC heat subtotal",{"$f":"IF(ELE=\"Pacific Power\",MIN(6000,SUM(#REF!,#REF!,I30:I30,I36:I36,I45:I45)),0)","v":0}]
[null,null,null,null,null,null,null,"PGE heat subtotal",{"$f":"IF(ELE=\"PGE\",MIN(10000,SUM(#REF!,#REF!,I30:I30,I36:I36,I45:I45)),0)","v":0}]
[null,null,null,null,null,null,null,"Other heat subtotal",{"$f":"IF(ELE=\"Other\",0,0)","v":0}]
[null,null,null,null,null,null,null,"GAS heat PAC subtotal",{"$f":"IF(ELE=\"Pacific Power\",MIN(10000,SUM(#REF!,#REF!,#REF!,#REF!,#REF!)),0)","v":0}]
[null,null,null,null,null,null,null,"GAS heat PGE subtotal",{"$f":"IF(ELE=\"PGE\",MIN(30000,SUM(#REF!,#REF!,#REF!,#REF!,#REF!)),0)","v":0}]
[null,null,null,null,null,null,null,"GAS heat Other subtotal",{"$f":"IF(ELE=\"Other\",0,0)","v":0}]
[null,null,null,null,null,null,null,"no cap subtotal",{"$f":"SUM(#REF!,#REF!,#REF!,#REF!,#REF!,I56:I65)","v":{"$error":"#REF!"}}]

{"sheet":"Service Shop & Warehouse","index":9,"n_rows":29,"n_cols":11,"rows_kept":29,"cut":false,"hidden":false,"merged":[[10,1,10,10],[25,1,26,8],[31,2,31,10],[12,2,12,6],[15,2,15,6],[12,1,14,1],[12,7,14,7],[12,8,14,8],[12,9,14,9],[12,10,14,10],[13,2,13,3],[13,4,13,5],[32,2,32,10],[24,1,24,10],[16,2,16,6],[35,2,35,10],[16,1,22,1],[16,7,22,7],[16,10,22,10],[16,9,22,9],[16,8,22,8],[36,2,36,10],[37,2,37,10],[38,1,39,10],[33,2,33,10],[34,2,34,10]]}
[]
[null,"Standard Incentives"]
[null,"Existing Buildings | Incentive Application | Form 120P"]
[]
[]
[null,"TRC is a Program Management Contractor for Energy Trust of Oregon."]
[]
[null,null,null,null,null,null,null,"Program Use Only",null,null,{"$f":"Version","v":"v2024.4"}]
[null,null,null,null,null,null,null,"Reference ID",{"$f":"IF(ReferenceID=\"\",\"\",ReferenceID)","v":""},"PTID",{"$f":"IF(PTID=\"\",\"\",PTID)","v":""}]
[]
[null,"SERVICE SHOPS AND WAREHOUSES"]
[null,"EQUIPMENT","REQUIREMENTS",null,null,null,null,"INCENTIVE PER UNIT","QUANTITY","INCENTIVE\nTOTAL","INSTALLED\nCOST"]
[null,"Inverter-Driven Welder ",null,null,null,null,null,2400,null,{"$f":"H13*I13","v":0}]
[null,null,"      Welder Amp Rating: "]
[]
[null,"Forklift Battery Charger ",null,null,null,null,null,3000,null,{"$f":"H16*I16","v":0}]
[null,"Steam Trap - Dry Cleaners",null,null,null,null,null,350,null,{"$f":"H17*I17","v":0}]
[null,null,"Psig: ",null,"Occupied 24/7:"]
[]
[]
[]
[null,null," Psig:",null,"Trap Size:"]
[]
[]
[null,"Requested incentives are subject to per-site, per-year incentive limits. See Terms & Conditions for details."]
[null,"TOTALS FOR SERVICE SHOPS AND WAREHOUSES",null,null,null,null,null,null,null,"TOTAL REQUESTED\nINCENTIVES","TOTAL\nINSTALLED COST"]
[null,null,null,null,null,null,null,null,null,{"$f":"SUM(J13:J17)","v":0},{"$f":"SUM(K13:K17)","v":0}]
[]
[null," "]

{"sheet":"Optional Demographic Questions","index":10,"n_rows":38,"n_cols":19,"rows_kept":38,"cut":false,"hidden":true,"merged":[[34,0,34,9],[1,0,1,31],[3,0,3,16],[3,17,4,31],[11,0,11,15],[15,7,15,14],[16,23,16,30],[17,0,17,15],[18,17,19,31],[28,0,28,15],[29,17,30,31],[33,0,33,16]]}
[]
["Optional Customer Demographic Information (If completed, choose all that apply)"]
[]
["1. Which of the following best describes your position at the business?",null,null,null,null,null,null,null,null,null,null,null,null,null,null,null,null,"6. What is the primary language(s) used at your business in Oregon? (select all that apply)"]
[null,"Owner"]
[null,"Executive or decision-maker",null,null,null,null,null,null,null,null,null,null,null,null,null,null,null,null,"Chinese"]
[null,"Manager",null,null,null,null,null,null,null,null,null,null,null,null,null,null,null,null,"English"]
[null,"Employee",null,null,null,null,null,null,null,null,null,null,null,null,null,null,null,null,"French"]
[null,"Other ",null,null,null,null,null,null,null,null,null,null,null,null,null,null,null,null,"German"]
[null,"Prefer not to answer",null,null,null,null,null,null,null,null,null,null,null,null,null,null,null,null,"Hindi"]
[null,null,null,null,null,null,null,null,null,null,null,null,null,null,null,null,null,null,"Japanese"]
["2.     What best describes your gender?",null,null,null,null,null,null,null,null,null,null,null,null,null,null,null,null,null,"Korean"]
[null,"Female ",null,null,null,null,null,null,null,null,null,null,null,null,null,null,null,null,"Russian"]
[null,"Male ",null,null,null,null,null,null,null,null,null,null,null,null,null,null,null,null,"Spanish"]
[null,"Non-binary/third gender ",null,null,null,null,null,null,null,null,null,null,null,null,null,null,null,null,"Tagalog"]
[null,"Prefer to self-describe      ",null,null,null,null,null,null,null,null,null,null,null,null,null,null,null,null,"Vietnamese "]
[null,null,null,null,null,null,null,null,null,null,null,null,null,null,null,null,null,null,"Another language:"]
["3.     What is the ownership structure of the business?"]
[null,"Individual",null,null,null,null,null,null,null,null,null,null,null,null,null,null,null,"7. Which of the following racial and ethnic backgrounds best describe you? (select all that apply)"]
[null,"Sole Proprietor"]
[null,"Trust/Estate",null,null,null,null,null,null,null,null,null,null,null,null,null,null,null,null,"Asian/Asian American"]
[null,"Public Entity/Government",null,null,null,null,null,null,null,null,null,null,null,null,null,null,null,null,"Black/African American"]
[null,"Corporation",null,null,null,null,null,null,null,null,null,null,null,null,null,null,null,null,"Hispanic or Latino/a/x"]
[null,"Non-profit Corporation",null,null,null,null,null,null,null,null,null,null,null,null,null,null,null,null,"Middle Eastern or North African"]
[null,"Partnership",null,null,null,null,null,null,null,null,null,null,null,null,null,null,null,null,"Native American/Alaskan Native"]
[null,"LLC",null,null,null,null,null,null,null,null,null,null,null,null,null,null,null,null,"Native Hawaiian/Pacific Islander"]
[null,"Unsure",null,null,null,null,null,null,null,null,null,null,null,null,null,null,null,null,"White"]
[null,null,null,null,null,null,null,null,null,null,null,null,null,null,null,null,null,null,"Some other race "]
["4.     Do you own or rent the space your business is in?"]
[null,"Own",null,null,null,null,null,null,null,null,null,null,null,null,null,null,null,"8. Which of the following describe your firm or organization? (select all that apply)  "]
[null,"Rent"]
[null,"Not sure",null,null,null,null,null,null,null,null,null,null,null,null,null,null,null,null,"Minority Owned "]
[null,null,null,null,null,null,null,null,null,null,null,null,null,null,null,null,null,null,"Women Owned"]
["5.     How many full-time employees work at your business in Oregon?",null,null,null,null,null,null,null,null,null,null,null,null,null,null,null,null,null,"Small Business"]
[null,null,null,null,null,null,null,null,null,null,null,null,null,null,null,null,null,null,"Service Disabled/Veteran Owned "]
[null,null,null,null,null,null,null,null,null,null,null,null,null,null,null,null,null,null,"Disadvantaged Business Enterprise "]
[null,null,null,null,null,null,null,null,null,null,null,null,null,null,null,null,null,null,"None of the above"]
[null,null,null,null,null,null,null,null,null,null,null,null,null,null,null,null,null,null,"Don’t know"]

{"sheet":"Admin Tools","index":11,"n_rows":0,"n_cols":0,"rows_kept":0,"cut":false,"hidden":false,"merged":[]}

{"sheet":"Lookups","index":12,"n_rows":54,"n_cols":5,"rows_kept":54,"cut":false,"hidden":true,"merged":[]}
["Heat"]
[0,"None"]
[1,"Electric"]
[2,"Gas"]
[3,"Other"]
[]
[]
["Building Use Type"]
["(select)"]
["Assembly"]
["Athletic Club"]
["Auto Services"]
["College/University"]
["Data Center"]
["Grocery"]
["Hospital"]
["Laundry / Dry Cleaners"]
["Lodging / Hotel / Motel"]
["Manufacturing"]
["Multifamily / Residential"]
["Office"]
["Other"]
["Parking Structure"]
["Religious / Spiritual"]
["Restaurant"]
["Retail"]
["Retirement Home"]
["Schools K-12"]
["Warehouse",null,null,null,{"$f":"B29&\", \"&C29&\", \"&D29","v":", , "}]
[]
[]
["Electric Utility"]
[0,"(select)"]
[1,"PGE"]
[2,"Pacific Power"]
[3,"Other"]
[]
["Gas Utility"]
[0,"(select)"]
[1,"NW Natural"]
[2,"Avista"]
[3,"Cascade Natural Gas"]
[4,"Other"]
[]
["Fuel Source"]
[0,"(select)"]
[1,"Electric"]
[2,"Gas"]
[3,"Other"]
[]
["Heat Pump"]
["(Select Heat Type)"]
[{"$f":"IF(HEAT_NUM=1,\"Heat Pump\",IF(HEAT_NUM=2,\"Gas Heat\",\"Other Heat\"))","v":"Other Heat"}]
[{"$f":"IF(HEAT_NUM=1,\"Other Electric Heat\",\"Other Heat\")","v":"Other Heat"}]

{"sheet":"Showerhead-wand Lookup","index":13,"n_rows":40,"n_cols":6,"rows_kept":40,"cut":false,"hidden":true,"merged":[[0,0,0,5]]}
["Showerhead/Showerwand"]
["Combined","Electric Utility","Gas Utility","Water Heating","Combined","Incentive"]
[{"$f":"CONCATENATE(B3,C3,D3)","v":"000"},{"$f":"IF(OR(ELE_NUM=1,ELE_NUM=2),1,IF(ELE_NUM=0,0,2))","v":0},{"$f":"IF(OR(GAS_NUM=1,GAS_NUM=2,GAS_NUM=3),1,(IF(GAS_NUM=0,0,2)))","v":0},{"$f":"WATERHEAT_NUM","v":0},{"$f":"VLOOKUP(A3,A5:F40,5)","v":"No Electric Selection, No Gas Selection, No Water Heating Selection"},7]
["Combined","Electric Utility","Gas Utility","Water Heating","Combined","Incentive"]
["000","No Electric Selection","No Gas Selection","No Water Heating Selection",{"$f":"B5&\", \"&C5&\", \"&D5","v":"No Electric Selection, No Gas Selection, No Water Heating Selection"}]
["001","No Electric Selection","No Gas Selection","Electric Water Heating",{"$f":"B6&\", \"&C6&\", \"&D6","v":"No Electric Selection, No Gas Selection, Electric Water Heating"}]
["002","No Electric Selection","No Gas Selection","Gas Water Heating","No Electric Selection, No Gas Selection, Gas Water Heating"]
["003","No Electric Selection","No Gas Selection","Other Water Heating",{"$f":"B8&\", \"&C8&\", \"&D8","v":"No Electric Selection, No Gas Selection, Other Water Heating"},"Does Not Qualify - Site's water heating fuel is not electric or gas"]
["010","No Electric Selection","Qualifying Gas","No Water Heating Selection","No Electric Selection, Qualifying Gas, No Water Heating Selection"]
["011","No Electric Selection","Qualifying Gas","Electric Water Heating","No Electric Selection, Qualifying Gas, Electric Water Heating"]
["012","No Electric Selection","Qualifying Gas","Gas Water Heating","No Electric Selection, Qualifying Gas, Gas Water Heating"]
["013","No Electric Selection","Qualifying Gas","Other Water Heating","No Electric Selection, Qualifying Gas, Other Water Heating","Does Not Qualify - Site's water heating fuel is not electric or gas"]
["020","No Electric Selection","Other Gas","No Water Heating Selection","No Electric Selection, Other Gas, No Water Heating Selection"]
["021","No Electric Selection","Other Gas","Electric Water Heating","No Electric Selection, Other Gas, Electric Water Heating"]
["022","No Electric Selection","Other Gas","Gas Water Heating","No Electric Selection, Other Gas, Gas Water Heating","Does Not Qualify - Site's water heating fuel is not provided by a participating utility"]
["023","No Electric Selection","Other Gas","Other Water Heating","No Electric Selection, Other Gas, Other Water Heating","Does Not Qualify - Site's water heating fuel is not electric or gas"]
["100","Qualifying Electric","No Gas Selection","No Water Heating Selection","Qualifying Electric, No Gas Selection, No Water Heating Selection"]
["101","Qualifying Electric","No Gas Selection","Electric Water Heating","Qualifying Electric, No Gas Selection, Electric Water Heating",7]
["102","Qualifying Electric","No Gas Selection","Gas Water Heating","Qualifying Electric, No Gas Selection, Gas Water Heating"]
["103","Qualifying Electric","No Gas Selection","Other Water Heating","Qualifying Electric, No Gas Selection, Other Water Heating","Does Not Qualify - Site's water heating fuel is not electric or gas"]
["110","Qualifying Electric","Qualifying Gas","No Water Heating Selection","Qualifying Electric, Qualifying Gas, No Water Heating Selection"]
["111","Qualifying Electric","Qualifying Gas","Electric Water Heating","Qualifying Electric, Qualifying Gas, Electric Water Heating",7]
["112","Qualifying Electric","Qualifying Gas","Gas Water Heating","Qualifying Electric, Qualifying Gas, Gas Water Heating",7]
["113","Qualifying Electric","Qualifying Gas","Other Water Heating","Qualifying Electric, Qualifying Gas, Other Water Heating","Does Not Qualify - Site's water heating fuel is not electric or gas"]
["120","Qualifying Electric","Other Gas","No Water Heating Selection","Qualifying Electric, Other Gas, No Water Heating Selection"]
["121","Qualifying Electric","Other Gas","Electric Water Heating","Qualifying Electric, Other Gas, Electric Water Heating",7]
["122","Qualifying Electric","Other Gas","Gas Water Heating","Qualifying Electric, Other Gas, Gas Water Heating","Does Not Qualify - Site's water heating fuel is not provided by a participating utility"]
["123","Qualifying Electric","Other Gas","Other Water Heating","Qualifying Electric, Other Gas, Other Water Heating","Does Not Qualify - Site's water heating fuel is not electric or gas"]
["200","Other Electric","No Gas Selection","No Water Heating Selection",{"$f":"B29&\", \"&C29&\", \"&D29","v":"Other Electric, No Gas Selection, No Water Heating Selection"}]
["201","Other Electric","No Gas Selection","Electric Water Heating","Other Electric, No Gas Selection, Electric Water Heating","Does Not Qualify - Site's water heating fuel is not provided by a participating utility"]
["202","Other Electric","No Gas Selection","Gas Water Heating","Other Electric, No Gas Selection, Gas Water Heating"]
["203","Other Electric","No Gas Selection","Other Water Heating","Other Electric, No Gas Selection, Other Water Heating","Does Not Qualify - Site's water heating fuel is not electric or gas"]
["210","Other Electric","Qualifying Gas","No Water Heating Selection","Other Electric, Qualifying Gas, No Water Heating Selection"]
["211","Other Electric","Qualifying Gas","Electric Water Heating","Other Electric, Qualifying Gas, Electric Water Heating","Does Not Qualify - Site's water heating fuel is not provided by a participating utility"]
["212","Other Electric","Qualifying Gas","Gas Water Heating","Other Electric, Qualifying Gas, Gas Water Heating",7]
["213","Other Electric","Qualifying Gas","Other Water Heating","Other Electric, Qualifying Gas, Other Water Heating","Does Not Qualify - Site's water heating fuel is not electric or gas"]
["220","Other Electric","Other Gas","No Water Heating Selection","Other Electric, Other Gas, No Water Heating Selection","Does Not Qualify - Site's utility providers are not participating utilities"]
["221","Other Electric","Other Gas","Electric Water Heating","Other Electric, Other Gas, Electric Water Heating","Does Not Qualify - Site's utility providers are not participating utilities"]
["222","Other Electric","Other Gas","Gas Water Heating","Other Electric, Other Gas, Gas Water Heating","Does Not Qualify - Site's utility providers are not participating utilities"]
["223","Other Electric","Other Gas","Other Water Heating","Other Electric, Other Gas, Other Water Heating","Does Not Qualify - Site's utility providers are not participating utilities"]

{"sheet":"Bathroom Aerator Lookup","index":14,"n_rows":40,"n_cols":6,"rows_kept":40,"cut":false,"hidden":true,"merged":[[0,0,0,5]]}
["Bathroom Faucet Aerator"]
["Combined","Electric Utility","Gas Utility","Water Heating","Combined","Incentive"]
[{"$f":"CONCATENATE(B3,C3,D3)","v":"000"},{"$f":"IF(OR(ELE_NUM=1,ELE_NUM=2),1,IF(ELE_NUM=0,0,2))","v":0},{"$f":"IF(OR(GAS_NUM=1,GAS_NUM=2,GAS_NUM=3),1,(IF(GAS_NUM=0,0,2)))","v":0},{"$f":"WATERHEAT_NUM","v":0},{"$f":"VLOOKUP(A3,A5:F40,5)","v":"No Electric Selection, No Gas Selection, No Water Heating Selection"},{"$f":"VLOOKUP(A3,A5:F40,6)","v":0}]
["Combined","Electric Utility","Gas Utility","Water Heating","Combined","Incentive"]
["000","No Electric Selection","No Gas Selection","No Water Heating Selection",{"$f":"B5&\", \"&C5&\", \"&D5","v":"No Electric Selection, No Gas Selection, No Water Heating Selection"}]
["001","No Electric Selection","No Gas Selection","Electric Water Heating",{"$f":"B6&\", \"&C6&\", \"&D6","v":"No Electric Selection, No Gas Selection, Electric Water Heating"}]
["002","No Electric Selection","No Gas Selection","Gas Water Heating","No Electric Selection, No Gas Selection, Gas Water Heating"]
["003","No Electric Selection","No Gas Selection","Other Water Heating","No Electric Selection, No Gas Selection, Other Water Heating","Does Not Qualify - Site's water heating fuel is not electric or gas"]
["010","No Electric Selection","Qualifying Gas","No Water Heating Selection","No Electric Selection, Qualifying Gas, No Water Heating Selection"]
["011","No Electric Selection","Qualifying Gas","Electric Water Heating","No Electric Selection, Qualifying Gas, Electric Water Heating"]
["012","No Electric Selection","Qualifying Gas","Gas Water Heating","No Electric Selection, Qualifying Gas, Gas Water Heating"]
["013","No Electric Selection","Qualifying Gas","Other Water Heating","No Electric Selection, Qualifying Gas, Other Water Heating","Does Not Qualify - Site's water heating fuel is not electric or gas"]
["020","No Electric Selection","Other Gas","No Water Heating Selection","No Electric Selection, Other Gas, No Water Heating Selection"]
["021","No Electric Selection","Other Gas","Electric Water Heating","No Electric Selection, Other Gas, Electric Water Heating"]
["022","No Electric Selection","Other Gas","Gas Water Heating","No Electric Selection, Other Gas, Gas Water Heating","Does Not Qualify - Site's water heating fuel is not provided by a participating utility"]
["023","No Electric Selection","Other Gas","Other Water Heating","No Electric Selection, Other Gas, Other Water Heating","Does Not Qualify - Site's water heating fuel is not electric or gas"]
["100","Qualifying Electric","No Gas Selection","No Water Heating Selection","Qualifying Electric, No Gas Selection, No Water Heating Selection"]
["101","Qualifying Electric","No Gas Selection","Electric Water Heating","Qualifying Electric, No Gas Selection, Electric Water Heating",3]
["102","Qualifying Electric","No Gas Selection","Gas Water Heating","Qualifying Electric, No Gas Selection, Gas Water Heating"]
["103","Qualifying Electric","No Gas Selection","Other Water Heating","Qualifying Electric, No Gas Selection, Other Water Heating","Does Not Qualify - Site's water heating fuel is not electric or gas"]
["110","Qualifying Electric","Qualifying Gas","No Water Heating Selection","Qualifying Electric, Qualifying Gas, No Water Heating Selection"]
["111","Qualifying Electric","Qualifying Gas","Electric Water Heating","Qualifying Electric, Qualifying Gas, Electric Water Heating",3]
["112","Qualifying Electric","Qualifying Gas","Gas Water Heating","Qualifying Electric, Qualifying Gas, Gas Water Heating",3]
["113","Qualifying Electric","Qualifying Gas","Other Water Heating","Qualifying Electric, Qualifying Gas, Other Water Heating","Does Not Qualify - Site's water heating fuel is not electric or gas"]
["120","Qualifying Electric","Other Gas","No Water Heating Selection","Qualifying Electric, Other Gas, No Water Heating Selection"]
["121","Qualifying Electric","Other Gas","Electric Water Heating","Qualifying Electric, Other Gas, Electric Water Heating",3]
["122","Qualifying Electric","Other Gas","Gas Water Heating","Qualifying Electric, Other Gas, Gas Water Heating","Does Not Qualify - Site's water heating fuel is not provided by a participating utility"]
["123","Qualifying Electric","Other Gas","Other Water Heating","Qualifying Electric, Other Gas, Other Water Heating","Does Not Qualify - Site's water heating fuel is not electric or gas"]
["200","Other Electric","No Gas Selection","No Water Heating Selection",{"$f":"B29&\", \"&C29&\", \"&D29","v":"Other Electric, No Gas Selection, No Water Heating Selection"}]
["201","Other Electric","No Gas Selection","Electric Water Heating","Other Electric, No Gas Selection, Electric Water Heating","Does Not Qualify - Site's water heating fuel is not provided by a participating utility"]
["202","Other Electric","No Gas Selection","Gas Water Heating","Other Electric, No Gas Selection, Gas Water Heating"]
["203","Other Electric","No Gas Selection","Other Water Heating","Other Electric, No Gas Selection, Other Water Heating","Does Not Qualify - Site's water heating fuel is not electric or gas"]
["210","Other Electric","Qualifying Gas","No Water Heating Selection","Other Electric, Qualifying Gas, No Water Heating Selection"]
["211","Other Electric","Qualifying Gas","Electric Water Heating","Other Electric, Qualifying Gas, Electric Water Heating","Does Not Qualify - Site's water heating fuel is not provided by a participating utility"]
["212","Other Electric","Qualifying Gas","Gas Water Heating","Other Electric, Qualifying Gas, Gas Water Heating",3]
["213","Other Electric","Qualifying Gas","Other Water Heating","Other Electric, Qualifying Gas, Other Water Heating","Does Not Qualify - Site's water heating fuel is not electric or gas"]
["220","Other Electric","Other Gas","No Water Heating Selection","Other Electric, Other Gas, No Water Heating Selection","Does Not Qualify - Site's utility providers are not participating utilities"]
["221","Other Electric","Other Gas","Electric Water Heating","Other Electric, Other Gas, Electric Water Heating","Does Not Qualify - Site's utility providers are not participating utilities"]
["222","Other Electric","Other Gas","Gas Water Heating","Other Electric, Other Gas, Gas Water Heating","Does Not Qualify - Site's utility providers are not participating utilities"]
["223","Other Electric","Other Gas","Other Water Heating","Other Electric, Other Gas, Other Water Heating","Does Not Qualify - Site's utility providers are not participating utilities"]

{"sheet":"Kitchen Aerator Lookup","index":15,"n_rows":40,"n_cols":6,"rows_kept":40,"cut":false,"hidden":true,"merged":[[0,0,0,5]]}
["Kitchen Faucet Aerator"]
["Combined","Electric Utility","Gas Utility","Water Heating","Combined","Incentive"]
[{"$f":"CONCATENATE(B3,C3,D3)","v":"000"},{"$f":"IF(OR(ELE_NUM=1,ELE_NUM=2),1,IF(ELE_NUM=0,0,2))","v":0},{"$f":"IF(OR(GAS_NUM=1,GAS_NUM=2,GAS_NUM=3),1,(IF(GAS_NUM=0,0,2)))","v":0},{"$f":"WATERHEAT_NUM","v":0},{"$f":"VLOOKUP(A3,A5:F40,5)","v":"No Electric Selection, No Gas Selection, No Water Heating Selection"},{"$f":"VLOOKUP(A3,A5:F40,6)","v":0}]
["Combined","Electric Utility","Gas Utility","Water Heating","Combined","Incentive"]
["000","No Electric Selection","No Gas Selection","No Water Heating Selection",{"$f":"B5&\", \"&C5&\", \"&D5","v":"No Electric Selection, No Gas Selection, No Water Heating Selection"}]
["001","No Electric Selection","No Gas Selection","Electric Water Heating",{"$f":"B6&\", \"&C6&\", \"&D6","v":"No Electric Selection, No Gas Selection, Electric Water Heating"}]
["002","No Electric Selection","No Gas Selection","Gas Water Heating","No Electric Selection, No Gas Selection, Gas Water Heating"]
["003","No Electric Selection","No Gas Selection","Other Water Heating","No Electric Selection, No Gas Selection, Other Water Heating","Does Not Qualify - Site's water heating fuel is not electric or gas"]
["010","No Electric Selection","Qualifying Gas","No Water Heating Selection","No Electric Selection, Qualifying Gas, No Water Heating Selection"]
["011","No Electric Selection","Qualifying Gas","Electric Water Heating","No Electric Selection, Qualifying Gas, Electric Water Heating"]
["012","No Electric Selection","Qualifying Gas","Gas Water Heating","No Electric Selection, Qualifying Gas, Gas Water Heating"]
["013","No Electric Selection","Qualifying Gas","Other Water Heating","No Electric Selection, Qualifying Gas, Other Water Heating","Does Not Qualify - Site's water heating fuel is not electric or gas"]
["020","No Electric Selection","Other Gas","No Water Heating Selection","No Electric Selection, Other Gas, No Water Heating Selection"]
["021","No Electric Selection","Other Gas","Electric Water Heating","No Electric Selection, Other Gas, Electric Water Heating"]
["022","No Electric Selection","Other Gas","Gas Water Heating","No Electric Selection, Other Gas, Gas Water Heating","Does Not Qualify - Site's water heating fuel is not provided by a participating utility"]
["023","No Electric Selection","Other Gas","Other Water Heating","No Electric Selection, Other Gas, Other Water Heating","Does Not Qualify - Site's water heating fuel is not electric or gas"]
["100","Qualifying Electric","No Gas Selection","No Water Heating Selection","Qualifying Electric, No Gas Selection, No Water Heating Selection"]
["101","Qualifying Electric","No Gas Selection","Electric Water Heating","Qualifying Electric, No Gas Selection, Electric Water Heating",5]
["102","Qualifying Electric","No Gas Selection","Gas Water Heating","Qualifying Electric, No Gas Selection, Gas Water Heating"]
["103","Qualifying Electric","No Gas Selection","Other Water Heating","Qualifying Electric, No Gas Selection, Other Water Heating","Does Not Qualify - Site's water heating fuel is not electric or gas"]
["110","Qualifying Electric","Qualifying Gas","No Water Heating Selection","Qualifying Electric, Qualifying Gas, No Water Heating Selection"]
["111","Qualifying Electric","Qualifying Gas","Electric Water Heating","Qualifying Electric, Qualifying Gas, Electric Water Heating",5]
["112","Qualifying Electric","Qualifying Gas","Gas Water Heating","Qualifying Electric, Qualifying Gas, Gas Water Heating",5]
["113","Qualifying Electric","Qualifying Gas","Other Water Heating","Qualifying Electric, Qualifying Gas, Other Water Heating",5]
["120","Qualifying Electric","Other Gas","No Water Heating Selection","Qualifying Electric, Other Gas, No Water Heating Selection"]
["121","Qualifying Electric","Other Gas","Electric Water Heating","Qualifying Electric, Other Gas, Electric Water Heating",5]
["122","Qualifying Electric","Other Gas","Gas Water Heating","Qualifying Electric, Other Gas, Gas Water Heating","Does Not Qualify - Site's water heating fuel is not provided by a participating utility"]
["123","Qualifying Electric","Other Gas","Other Water Heating","Qualifying Electric, Other Gas, Other Water Heating","Does Not Qualify - Site's water heating fuel is not electric or gas"]
["200","Other Electric","No Gas Selection","No Water Heating Selection",{"$f":"B29&\", \"&C29&\", \"&D29","v":"Other Electric, No Gas Selection, No Water Heating Selection"}]
["201","Other Electric","No Gas Selection","Electric Water Heating","Other Electric, No Gas Selection, Electric Water Heating","Does Not Qualify - Site's water heating fuel is not provided by a participating utility"]
["202","Other Electric","No Gas Selection","Gas Water Heating","Other Electric, No Gas Selection, Gas Water Heating"]
["203","Other Electric","No Gas Selection","Other Water Heating","Other Electric, No Gas Selection, Other Water Heating","Does Not Qualify - Site's water heating fuel is not electric or gas"]
["210","Other Electric","Qualifying Gas","No Water Heating Selection","Other Electric, Qualifying Gas, No Water Heating Selection"]
["211","Other Electric","Qualifying Gas","Electric Water Heating","Other Electric, Qualifying Gas, Electric Water Heating","Does Not Qualify - Site's water heating fuel is not provided by a participating utility"]
["212","Other Electric","Qualifying Gas","Gas Water Heating","Other Electric, Qualifying Gas, Gas Water Heating",5]
["213","Other Electric","Qualifying Gas","Other Water Heating","Other Electric, Qualifying Gas, Other Water Heating","Does Not Qualify - Site's water heating fuel is not electric or gas"]
["220","Other Electric","Other Gas","No Water Heating Selection","Other Electric, Other Gas, No Water Heating Selection","Does Not Qualify - Site's utility providers are not participating utilities"]
["221","Other Electric","Other Gas","Electric Water Heating","Other Electric, Other Gas, Electric Water Heating","Does Not Qualify - Site's utility providers are not participating utilities"]
["222","Other Electric","Other Gas","Gas Water Heating","Other Electric, Other Gas, Gas Water Heating","Does Not Qualify - Site's utility providers are not participating utilities"]
["223","Other Electric","Other Gas","Other Water Heating","Other Electric, Other Gas, Other Water Heating","Does Not Qualify - Site's utility providers are not participating utilities"]

{"sheet":"Laundry Lookup","index":16,"n_rows":40,"n_cols":6,"rows_kept":40,"cut":false,"hidden":true,"merged":[[0,0,0,5]]}
["Commercial Laundry Washer"]
["Combined","Electric Utility","Gas Utility","Water Heating","Combined","Incentive"]
[{"$f":"CONCATENATE(B3,C3,D3)","v":"000"},{"$f":"IF(OR(ELE_NUM=1,ELE_NUM=2),1,IF(ELE_NUM=0,0,2))","v":0},{"$f":"IF(OR(GAS_NUM=1,GAS_NUM=2,GAS_NUM=3),1,(IF(GAS_NUM=0,0,2)))","v":0},{"$f":"WATERHEAT_NUM","v":0},{"$f":"VLOOKUP(A3,A5:F40,5)","v":"No Electric Selection, No Gas Selection, No Water Heating Selection"},{"$f":"VLOOKUP(A3,A5:F40,6)","v":0}]
["Combined","Electric Utility","Gas Utility","Water Heating","Combined","Incentive"]
["000","No Electric Selection","No Gas Selection","No Water Heating Selection",{"$f":"B5&\", \"&C5&\", \"&D5","v":"No Electric Selection, No Gas Selection, No Water Heating Selection"}]
["001","No Electric Selection","No Gas Selection","Electric Water Heating",{"$f":"B6&\", \"&C6&\", \"&D6","v":"No Electric Selection, No Gas Selection, Electric Water Heating"}]
["002","No Electric Selection","No Gas Selection","Gas Water Heating","No Electric Selection, No Gas Selection, Gas Water Heating"]
["003","No Electric Selection","No Gas Selection","Other Water Heating","No Electric Selection, No Gas Selection, Other Water Heating","Does Not Qualify - Site's water heating fuel is not electric or gas"]
["010","No Electric Selection","Qualifying Gas","No Water Heating Selection","No Electric Selection, Qualifying Gas, No Water Heating Selection"]
["011","No Electric Selection","Qualifying Gas","Electric Water Heating","No Electric Selection, Qualifying Gas, Electric Water Heating"]
["012","No Electric Selection","Qualifying Gas","Gas Water Heating","No Electric Selection, Qualifying Gas, Gas Water Heating"]
["013","No Electric Selection","Qualifying Gas","Other Water Heating","No Electric Selection, Qualifying Gas, Other Water Heating","Does Not Qualify - Site's water heating fuel is not electric or gas"]
["020","No Electric Selection","Other Gas","No Water Heating Selection","No Electric Selection, Other Gas, No Water Heating Selection"]
["021","No Electric Selection","Other Gas","Electric Water Heating","No Electric Selection, Other Gas, Electric Water Heating"]
["022","No Electric Selection","Other Gas","Gas Water Heating","No Electric Selection, Other Gas, Gas Water Heating","Does Not Qualify - Site's water heating fuel is not provided by a participating utility"]
["023","No Electric Selection","Other Gas","Other Water Heating","No Electric Selection, Other Gas, Other Water Heating","Does Not Qualify - Site's water heating fuel is not electric or gas"]
["100","Qualifying Electric","No Gas Selection","No Water Heating Selection","Qualifying Electric, No Gas Selection, No Water Heating Selection"]
["101","Qualifying Electric","No Gas Selection","Electric Water Heating","Qualifying Electric, No Gas Selection, Electric Water Heating","$200 each"]
["102","Qualifying Electric","No Gas Selection","Gas Water Heating","Qualifying Electric, No Gas Selection, Gas Water Heating"]
["103","Qualifying Electric","No Gas Selection","Other Water Heating","Qualifying Electric, No Gas Selection, Other Water Heating","Does Not Qualify - Site's water heating fuel is not electric or gas"]
["110","Qualifying Electric","Qualifying Gas","No Water Heating Selection","Qualifying Electric, Qualifying Gas, No Water Heating Selection"]
["111","Qualifying Electric","Qualifying Gas","Electric Water Heating","Qualifying Electric, Qualifying Gas, Electric Water Heating","$200 each"]
["112","Qualifying Electric","Qualifying Gas","Gas Water Heating","Qualifying Electric, Qualifying Gas, Gas Water Heating","$200 each"]
["113","Qualifying Electric","Qualifying Gas","Other Water Heating","Qualifying Electric, Qualifying Gas, Other Water Heating","Does Not Qualify - Site's water heating fuel is not electric or gas"]
["120","Qualifying Electric","Other Gas","No Water Heating Selection","Qualifying Electric, Other Gas, No Water Heating Selection"]
["121","Qualifying Electric","Other Gas","Electric Water Heating","Qualifying Electric, Other Gas, Electric Water Heating","$200 each"]
["122","Qualifying Electric","Other Gas","Gas Water Heating","Qualifying Electric, Other Gas, Gas Water Heating","Does Not Qualify - Site's water heating fuel is not provided by a participating utility"]
["123","Qualifying Electric","Other Gas","Other Water Heating","Qualifying Electric, Other Gas, Other Water Heating","Does Not Qualify - Site's water heating fuel is not electric or gas"]
["200","Other Electric","No Gas Selection","No Water Heating Selection",{"$f":"B29&\", \"&C29&\", \"&D29","v":"Other Electric, No Gas Selection, No Water Heating Selection"}]
["201","Other Electric","No Gas Selection","Electric Water Heating","Other Electric, No Gas Selection, Electric Water Heating","Does Not Qualify - Site's water heating fuel is not provided by a participating utility"]
["202","Other Electric","No Gas Selection","Gas Water Heating","Other Electric, No Gas Selection, Gas Water Heating"]
["203","Other Electric","No Gas Selection","Other Water Heating","Other Electric, No Gas Selection, Other Water Heating","Does Not Qualify - Site's water heating fuel is not electric or gas"]
["210","Other Electric","Qualifying Gas","No Water Heating Selection","Other Electric, Qualifying Gas, No Water Heating Selection"]
["211","Other Electric","Qualifying Gas","Electric Water Heating","Other Electric, Qualifying Gas, Electric Water Heating","Does Not Qualify - Site's water heating fuel is not provided by a participating utility"]
["212","Other Electric","Qualifying Gas","Gas Water Heating","Other Electric, Qualifying Gas, Gas Water Heating","$65 each"]
["213","Other Electric","Qualifying Gas","Other Water Heating","Other Electric, Qualifying Gas, Other Water Heating","Does Not Qualify - Site's water heating fuel is not electric or gas"]
["220","Other Electric","Other Gas","No Water Heating Selection","Other Electric, Other Gas, No Water Heating Selection","Does Not Qualify - Site's utility providers are not participating utilities"]
["221","Other Electric","Other Gas","Electric Water Heating","Other Electric, Other Gas, Electric Water Heating","Does Not Qualify - Site's utility providers are not participating utilities"]
["222","Other Electric","Other Gas","Gas Water Heating","Other Electric, Other Gas, Gas Water Heating","Does Not Qualify - Site's utility providers are not participating utilities"]
["223","Other Electric","Other Gas","Other Water Heating","Other Electric, Other Gas, Other Water Heating","Does Not Qualify - Site's utility providers are not participating utilities"]

{"sheet":"Vent Hood Lookup","index":17,"n_rows":40,"n_cols":6,"rows_kept":40,"cut":false,"hidden":true,"merged":[[0,0,0,5]]}
["Commercial Vent Hood with VFD"]
["Combined","Electric Utility","Gas Utility","Primary Space Heating","Combined","Incentive"]
[{"$f":"CONCATENATE(B3,C3,D3)","v":"000"},{"$f":"IF(OR(ELE_NUM=1,ELE_NUM=2),1,IF(ELE_NUM=0,0,2))","v":0},{"$f":"IF(OR(GAS_NUM=1,GAS_NUM=2,GAS_NUM=3),1,(IF(GAS_NUM=0,0,2)))","v":0},{"$f":"HEAT_NUM","v":0},{"$f":"VLOOKUP(A3,A5:F40,5)","v":"No Electric Selection, No Gas Selection, No Primary Space Heating Selection"},{"$f":"VLOOKUP(A3,A5:F40,6)","v":"Select site's Utility Providers and Primary Space Heating Fuel, on 'Form 120P'"}]
["Combined","Electric Utility","Gas Utility","Primary Space Heating","Combined","Incentive"]
["000","No Electric Selection","No Gas Selection","No Primary Space Heating Selection",{"$f":"B5&\", \"&C5&\", \"&D5","v":"No Electric Selection, No Gas Selection, No Primary Space Heating Selection"},"Select site's Utility Providers and Primary Space Heating Fuel, on 'Form 120P'"]
["001","No Electric Selection","No Gas Selection","Electric Primary Space Heating",{"$f":"B6&\", \"&C6&\", \"&D6","v":"No Electric Selection, No Gas Selection, Electric Primary Space Heating"},"Select site's Electric Utility Provider, on 'Form 120P'"]
["002","No Electric Selection","No Gas Selection","Gas Primary Space Heating","No Electric Selection, No Gas Selection, Gas Primary Space Heating","Select site's Utility Providers, on 'Form 120P'"]
["003","No Electric Selection","No Gas Selection","Other Primary Space Heating","No Electric Selection, No Gas Selection, Other Primary Space Heating","Does Not Qualify - Site's primary space heating fuel is not electric or gas"]
["010","No Electric Selection","Qualifying Gas","No Primary Space Heating Selection","No Electric Selection, Qualifying Gas, No Primary Space Heating Selection","Select site's Electric Utility Provider and Primary Space Heating Fuel, on 'Form 120P'"]
["011","No Electric Selection","Qualifying Gas","Electric Primary Space Heating","No Electric Selection, Qualifying Gas, Electric Primary Space Heating","Select site's Electric Utility Provider, on 'Form 120P'"]
["012","No Electric Selection","Qualifying Gas","Gas Primary Space Heating","No Electric Selection, Qualifying Gas, Gas Primary Space Heating","Select site's Electric Utility provider, on 'Form 120P'"]
["013","No Electric Selection","Qualifying Gas","Other Primary Space Heating","No Electric Selection, Qualifying Gas, Other Primary Space Heating","Does Not Qualify - Site's primary space heating fuel is not electric or gas"]
["020","No Electric Selection","Other Gas","No Primary Space Heating Selection","No Electric Selection, Other Gas, No Primary Space Heating Selection","Select site's Electric Utility Provider and Primary Space Heating Fuel, on 'Form 120P'"]
["021","No Electric Selection","Other Gas","Electric Primary Space Heating","No Electric Selection, Other Gas, Electric Primary Space Heating","Select site's Electric Utility Provider, on 'Form 120P'"]
["022","No Electric Selection","Other Gas","Gas Primary Space Heating","No Electric Selection, Other Gas, Gas Primary Space Heating","Does Not Qualify - Site's primary space heating fuel is not provided by a participating utility"]
["023","No Electric Selection","Other Gas","Other Primary Space Heating","No Electric Selection, Other Gas, Other Primary Space Heating","Does Not Qualify - Site's primary space heating fuel is not electric or gas"]
["100","Qualifying Electric","No Gas Selection","No Primary Space Heating Selection","Qualifying Electric, No Gas Selection, No Primary Space Heating Selection","Select site's Gas Utility Provider and Primary Space Heating Fuel, on 'Form 120P'"]
["101","Qualifying Electric","No Gas Selection","Electric Primary Space Heating","Qualifying Electric, No Gas Selection, Electric Primary Space Heating",750]
["102","Qualifying Electric","No Gas Selection","Gas Primary Space Heating","Qualifying Electric, No Gas Selection, Gas Primary Space Heating","Select site's Gas Utility Provider, on 'Form 120P'"]
["103","Qualifying Electric","No Gas Selection","Other Primary Space Heating","Qualifying Electric, No Gas Selection, Other Primary Space Heating","Does Not Qualify - Site's primary space heating fuel is not electric or gas"]
["110","Qualifying Electric","Qualifying Gas","No Primary Space Heating Selection","Qualifying Electric, Qualifying Gas, No Primary Space Heating Selection","Select site's Primary Space Heating Fuel, on 'Form 120P'"]
["111","Qualifying Electric","Qualifying Gas","Electric Primary Space Heating","Qualifying Electric, Qualifying Gas, Electric Primary Space Heating",750]
["112","Qualifying Electric","Qualifying Gas","Gas Primary Space Heating","Qualifying Electric, Qualifying Gas, Gas Primary Space Heating",750]
["113","Qualifying Electric","Qualifying Gas","Other Primary Space Heating","Qualifying Electric, Qualifying Gas, Other Primary Space Heating","Does Not Qualify - Site's primary space heating fuel is not electric or gas"]
["120","Qualifying Electric","Other Gas","No Primary Space Heating Selection","Qualifying Electric, Other Gas, No Primary Space Heating Selection","Select site's Primary Space Heating Fuel, on 'Form 120P'"]
["121","Qualifying Electric","Other Gas","Electric Primary Space Heating","Qualifying Electric, Other Gas, Electric Primary Space Heating",750]
["122","Qualifying Electric","Other Gas","Gas Primary Space Heating","Qualifying Electric, Other Gas, Gas Primary Space Heating","Does Not Qualify - Site's primary space heating fuel is not provided by a participating utility"]
["123","Qualifying Electric","Other Gas","Other Primary Space Heating","Qualifying Electric, Other Gas, Other Primary Space Heating","Does Not Qualify - Site's primary space heating fuel is not electric or gas"]
["200","Other Electric","No Gas Selection","No Primary Space Heating Selection",{"$f":"B29&\", \"&C29&\", \"&D29","v":"Other Electric, No Gas Selection, No Primary Space Heating Selection"},"Does Not Qualify - Site does not receive electricty from a participating utility"]
["201","Other Electric","No Gas Selection","Electric Primary Space Heating","Other Electric, No Gas Selection, Electric Primary Space Heating","Does Not Qualify - Site does not receive electricty from a participating utility"]
["202","Other Electric","No Gas Selection","Gas Primary Space Heating","Other Electric, No Gas Selection, Gas Primary Space Heating","Does Not Qualify - Site does not receive electricty from a participating utility"]
["203","Other Electric","No Gas Selection","Other Primary Space Heating","Other Electric, No Gas Selection, Other Primary Space Heating","Does Not Qualify - Site does not receive electricty from a participating utility"]
["210","Other Electric","Qualifying Gas","No Primary Space Heating Selection","Other Electric, Qualifying Gas, No Primary Space Heating Selection","Does Not Qualify - Site does not receive electricty from a participating utility"]
["211","Other Electric","Qualifying Gas","Electric Primary Space Heating","Other Electric, Qualifying Gas, Electric Primary Space Heating","Does Not Qualify - Site does not receive electricty from a participating utility"]
["212","Other Electric","Qualifying Gas","Gas Primary Space Heating","Other Electric, Qualifying Gas, Gas Primary Space Heating","Does Not Qualify - Site does not receive electricty from a participating utility"]
["213","Other Electric","Qualifying Gas","Other Primary Space Heating","Other Electric, Qualifying Gas, Other Primary Space Heating","Does Not Qualify - Site does not receive electricty from a participating utility"]
["220","Other Electric","Other Gas","No Primary Space Heating Selection","Other Electric, Other Gas, No Primary Space Heating Selection","Does Not Qualify - Site's utility providers are not participating utilities"]
["221","Other Electric","Other Gas","Electric Primary Space Heating","Other Electric, Other Gas, Electric Primary Space Heating","Does Not Qualify - Site's utility providers are not participating utilities"]
["222","Other Electric","Other Gas","Gas Primary Space Heating","Other Electric, Other Gas, Gas Primary Space Heating","Does Not Qualify - Site's utility providers are not participating utilities"]
["223","Other Electric","Other Gas","Other Primary Space Heating","Other Electric, Other Gas, Other Primary Space Heating","Does Not Qualify - Site's utility providers are not participating utilities"]

{"sheet":"Dish Under Counter Lookup","index":18,"n_rows":76,"n_cols":7,"rows_kept":76,"cut":false,"hidden":true,"merged":[[0,0,0,6]]}
["Dishwasher Under Counter"]
["Combined","Electric Utility","Gas Utility","Water Heating","Temp","Combined","Incentive"]
[{"$f":"CONCATENATE(B3,C3,D3,E3)","v":{"$error":"#NAME?"}},{"$f":"IF(OR(ELE_NUM=1,ELE_NUM=2),1,IF(ELE_NUM=0,0,2))","v":0},{"$f":"IF(OR(GAS_NUM=1,GAS_NUM=2,GAS_NUM=3),1,(IF(GAS_NUM=0,0,2)))","v":0},{"$f":"WATERHEAT_NUM","v":0},{"$f":"TEMPERATURE","v":{"$error":"#NAME?"}},{"$f":"VLOOKUP(A3,A5:G76,6)","v":{"$error":"#NAME?"}},{"$f":"VLOOKUP(A3,A5:G76,7)","v":{"$error":"#NAME?"}}]
["Combined","Electric Utility","Gas Utility","Water Heating","Temp","Combined","Incentive"]
["0001","No Electric Selection","No Gas Selection","No Water Heating Selection","Low Temp",{"$f":"B5&\", \"&C5&\", \"&D5&\", \"&E5","v":"No Electric Selection, No Gas Selection, No Water Heating Selection, Low Temp"}]
["0002","No Electric Selection","No Gas Selection","No Water Heating Selection","High Temp","No Electric Selection, No Gas Selection, No Water Heating Selection, High Temp"]
["0011","No Electric Selection","No Gas Selection","Electric Water Heating","Low Temp","No Electric Selection, No Gas Selection, Electric Water Heating, Low Temp"]
["0012","No Electric Selection","No Gas Selection","Electric Water Heating","High Temp","No Electric Selection, No Gas Selection, Electric Water Heating, High Temp"]
["0021","No Electric Selection","No Gas Selection","Gas Water Heating","Low Temp","No Electric Selection, No Gas Selection, Gas Water Heating, Low Temp"]
["0022","No Electric Selection","No Gas Selection","Gas Water Heating","High Temp","No Electric Selection, No Gas Selection, Gas Water Heating, High Temp","High Temp with gas water heating does not qualify"]
["0031","No Electric Selection","No Gas Selection","Other Water Heating","Low Temp","No Electric Selection, No Gas Selection, Other Water Heating, Low Temp","Does Not Qualify - Site's water heating fuel is not electric or gas"]
["0032","No Electric Selection","No Gas Selection","Other Water Heating","High Temp","No Electric Selection, No Gas Selection, Other Water Heating, High Temp","Does Not Qualify - Site's water heating fuel is not electric or gas"]
["0101","No Electric Selection","Qualifying Gas","No Water Heating Selection","Low Temp","No Electric Selection, Qualifying Gas, No Water Heating Selection, Low Temp"]
["0102","No Electric Selection","Qualifying Gas","No Water Heating Selection","High Temp","No Electric Selection, Qualifying Gas, No Water Heating Selection, High Temp"]
["0111","No Electric Selection","Qualifying Gas","Electric Water Heating","Low Temp","No Electric Selection, Qualifying Gas, Electric Water Heating, Low Temp"]
["0112","No Electric Selection","Qualifying Gas","Electric Water Heating","High Temp","No Electric Selection, Qualifying Gas, Electric Water Heating, High Temp"]
["0121","No Electric Selection","Qualifying Gas","Gas Water Heating","Low Temp","No Electric Selection, Qualifying Gas, Gas Water Heating, Low Temp"]
["0122","No Electric Selection","Qualifying Gas","Gas Water Heating","High Temp","No Electric Selection, Qualifying Gas, Gas Water Heating, High Temp","High Temp with gas water heating does not qualify"]
["0131","No Electric Selection","Qualifying Gas","Other Water Heating","Low Temp","No Electric Selection, Qualifying Gas, Other Water Heating, Low Temp","Does Not Qualify - Site's water heating fuel is not electric or gas"]
["0132","No Electric Selection","Qualifying Gas","Other Water Heating","High Temp","No Electric Selection, Qualifying Gas, Other Water Heating, High Temp","Does Not Qualify - Site's water heating fuel is not electric or gas"]
["0201","No Electric Selection","Other Gas","No Water Heating Selection","Low Temp","No Electric Selection, Other Gas, No Water Heating Selection, Low Temp"]
["0202","No Electric Selection","Other Gas","No Water Heating Selection","High Temp","No Electric Selection, Other Gas, No Water Heating Selection, High Temp"]
["0211","No Electric Selection","Other Gas","Electric Water Heating","Low Temp","No Electric Selection, Other Gas, Electric Water Heating, Low Temp"]
["0212","No Electric Selection","Other Gas","Electric Water Heating","High Temp","No Electric Selection, Other Gas, Electric Water Heating, High Temp"]
["0221","No Electric Selection","Other Gas","Gas Water Heating","Low Temp","No Electric Selection, Other Gas, Gas Water Heating, Low Temp","Does Not Qualify - Site's water heating fuel is not provided by a participating utility"]
["0222","No Electric Selection","Other Gas","Gas Water Heating","High Temp","No Electric Selection, Other Gas, Gas Water Heating, High Temp","High Temp with gas water heating does not qualify"]
["0231","No Electric Selection","Other Gas","Other Water Heating","Low Temp","No Electric Selection, Other Gas, Other Water Heating, Low Temp","Does Not Qualify - Site's water heating fuel is not electric or gas"]
["0232","No Electric Selection","Other Gas","Other Water Heating","High Temp","No Electric Selection, Other Gas, Other Water Heating, High Temp","Does Not Qualify - Site's water heating fuel is not electric or gas"]
["1001","Qualifying Electric","No Gas Selection","No Water Heating Selection","Low Temp","Qualifying Electric, No Gas Selection, No Water Heating Selection, Low Temp"]
["1002","Qualifying Electric","No Gas Selection","No Water Heating Selection","High Temp","Qualifying Electric, No Gas Selection, No Water Heating Selection, High Temp"]
["1011","Qualifying Electric","No Gas Selection","Electric Water Heating","Low Temp","Qualifying Electric, No Gas Selection, Electric Water Heating, Low Temp",195]
["1012","Qualifying Electric","No Gas Selection","Electric Water Heating","High Temp","Qualifying Electric, No Gas Selection, Electric Water Heating, High Temp",600]
["1021","Qualifying Electric","No Gas Selection","Gas Water Heating","Low Temp","Qualifying Electric, No Gas Selection, Gas Water Heating, Low Temp"]
["1022","Qualifying Electric","No Gas Selection","Gas Water Heating","High Temp","Qualifying Electric, No Gas Selection, Gas Water Heating, High Temp","High Temp with gas water heating does not qualify"]
["1031","Qualifying Electric","No Gas Selection","Other Water Heating","Low Temp","Qualifying Electric, No Gas Selection, Other Water Heating, Low Temp","Does Not Qualify - Site's water heating fuel is not electric or gas"]
["1032","Qualifying Electric","No Gas Selection","Other Water Heating","High Temp","Qualifying Electric, No Gas Selection, Other Water Heating, High Temp","Does Not Qualify - Site's water heating fuel is not electric or gas"]
["1101","Qualifying Electric","Qualifying Gas","No Water Heating Selection","Low Temp","Qualifying Electric, Qualifying Gas, No Water Heating Selection, Low Temp"]
["1102","Qualifying Electric","Qualifying Gas","No Water Heating Selection","High Temp","Qualifying Electric, Qualifying Gas, No Water Heating Selection, High Temp"]
["1111","Qualifying Electric","Qualifying Gas","Electric Water Heating","Low Temp","Qualifying Electric, Qualifying Gas, Electric Water Heating, Low Temp",195]
["1112","Qualifying Electric","Qualifying Gas","Electric Water Heating","High Temp","Qualifying Electric, Qualifying Gas, Electric Water Heating, High Temp",600]
["1121","Qualifying Electric","Qualifying Gas","Gas Water Heating","Low Temp","Qualifying Electric, Qualifying Gas, Gas Water Heating, Low Temp",195]
["1122","Qualifying Electric","Qualifying Gas","Gas Water Heating","High Temp","Qualifying Electric, Qualifying Gas, Gas Water Heating, High Temp","High Temp with gas water heating does not qualify"]
["1131","Qualifying Electric","Qualifying Gas","Other Water Heating","Low Temp","Qualifying Electric, Qualifying Gas, Other Water Heating, Low Temp","Does Not Qualify - Site's water heating fuel is not electric or gas"]
["1132","Qualifying Electric","Qualifying Gas","Other Water Heating","High Temp","Qualifying Electric, Qualifying Gas, Other Water Heating, High Temp","Does Not Qualify - Site's water heating fuel is not electric or gas"]
["1201","Qualifying Electric","Other Gas","No Water Heating Selection","Low Temp","Qualifying Electric, Other Gas, No Water Heating Selection, Low Temp"]
["1202","Qualifying Electric","Other Gas","No Water Heating Selection","High Temp","Qualifying Electric, Other Gas, No Water Heating Selection, High Temp"]
["1211","Qualifying Electric","Other Gas","Electric Water Heating","Low Temp","Qualifying Electric, Other Gas, Electric Water Heating, Low Temp",195]
["1212","Qualifying Electric","Other Gas","Electric Water Heating","High Temp","Qualifying Electric, Other Gas, Electric Water Heating, High Temp",600]
["1221","Qualifying Electric","Other Gas","Gas Water Heating","Low Temp","Qualifying Electric, Other Gas, Gas Water Heating, Low Temp","Does Not Qualify - Site's water heating fuel is not provided by a participating utility"]
["1222","Qualifying Electric","Other Gas","Gas Water Heating","High Temp","Qualifying Electric, Other Gas, Gas Water Heating, High Temp","High Temp with gas water heating does not qualify"]
["1231","Qualifying Electric","Other Gas","Other Water Heating","Low Temp","Qualifying Electric, Other Gas, Other Water Heating, Low Temp","Does Not Qualify - Site's water heating fuel is not electric or gas"]
["1232","Qualifying Electric","Other Gas","Other Water Heating","High Temp","Qualifying Electric, Other Gas, Other Water Heating, High Temp","Does Not Qualify - Site's water heating fuel is not electric or gas"]
["2001","Other Electric","No Gas Selection","No Water Heating Selection","Low Temp","Other Electric, No Gas Selection, No Water Heating Selection, Low Temp"]
["2002","Other Electric","No Gas Selection","No Water Heating Selection","High Temp","Other Electric, No Gas Selection, No Water Heating Selection, High Temp"]
["2011","Other Electric","No Gas Selection","Electric Water Heating","Low Temp","Other Electric, No Gas Selection, Electric Water Heating, Low Temp","Does Not Qualify - Site's water heating fuel is not provided by a participating utility"]
["2012","Other Electric","No Gas Selection","Electric Water Heating","High Temp","Other Electric, No Gas Selection, Electric Water Heating, High Temp","Does Not Qualify - Site's water heating fuel is not provided by a participating utility"]
["2021","Other Electric","No Gas Selection","Gas Water Heating","Low Temp","Other Electric, No Gas Selection, Gas Water Heating, Low Temp"]
["2022","Other Electric","No Gas Selection","Gas Water Heating","High Temp","Other Electric, No Gas Selection, Gas Water Heating, High Temp","High Temp with gas water heating does not qualify"]
["2031","Other Electric","No Gas Selection","Other Water Heating","Low Temp","Other Electric, No Gas Selection, Other Water Heating, Low Temp","Does Not Qualify - Site's water heating fuel is not electric or gas"]
["2032","Other Electric","No Gas Selection","Other Water Heating","High Temp","Other Electric, No Gas Selection, Other Water Heating, High Temp","Does Not Qualify - Site's water heating fuel is not electric or gas"]
["2101","Other Electric","Qualifying Gas","No Water Heating Selection","Low Temp","Other Electric, Qualifying Gas, No Water Heating Selection, Low Temp"]
["2102","Other Electric","Qualifying Gas","No Water Heating Selection","High Temp","Other Electric, Qualifying Gas, No Water Heating Selection, High Temp"]
["2111","Other Electric","Qualifying Gas","Electric Water Heating","Low Temp","Other Electric, Qualifying Gas, Electric Water Heating, Low Temp","Does Not Qualify - Site's water heating fuel is not provided by a participating utility"]
["2112","Other Electric","Qualifying Gas","Electric Water Heating","High Temp","Other Electric, Qualifying Gas, Electric Water Heating, High Temp","Does Not Qualify - Site's water heating fuel is not provided by a participating utility"]
["2121","Other Electric","Qualifying Gas","Gas Water Heating","Low Temp","Other Electric, Qualifying Gas, Gas Water Heating, Low Temp",195]
["2122","Other Electric","Qualifying Gas","Gas Water Heating","High Temp","Other Electric, Qualifying Gas, Gas Water Heating, High Temp","High Temp with gas water heating does not qualify"]
["2131","Other Electric","Qualifying Gas","Other Water Heating","Low Temp","Other Electric, Qualifying Gas, Other Water Heating, Low Temp","Does Not Qualify - Site's water heating fuel is not electric or gas"]
["2132","Other Electric","Qualifying Gas","Other Water Heating","High Temp","Other Electric, Qualifying Gas, Other Water Heating, High Temp","Does Not Qualify - Site's water heating fuel is not electric or gas"]
["2201","Other Electric","Other Gas","No Water Heating Selection","Low Temp",{"$f":"B69&\", \"&C69&\", \"&D69&\", \"&E69","v":"Other Electric, Other Gas, No Water Heating Selection, Low Temp"},"Does Not Qualify - Site's utility providers are not participating utilities"]
["2202","Other Electric","Other Gas","No Water Heating Selection","High Temp","Other Electric, Other Gas, No Water Heating Selection, High Temp","Does Not Qualify - Site's utility providers are not participating utilities"]
["2211","Other Electric","Other Gas","Electric Water Heating","Low Temp","Other Electric, Other Gas, Electric Water Heating, Low Temp","Does Not Qualify - Site's utility providers are not participating utilities"]
["2212","Other Electric","Other Gas","Electric Water Heating","High Temp","Other Electric, Other Gas, Electric Water Heating, High Temp","Does Not Qualify - Site's utility providers are not participating utilities"]
["2221","Other Electric","Other Gas","Gas Water Heating","Low Temp","Other Electric, Other Gas, Gas Water Heating, Low Temp","Does Not Qualify - Site's utility providers are not participating utilities"]
["2222","Other Electric","Other Gas","Gas Water Heating","High Temp","Other Electric, Other Gas, Gas Water Heating, High Temp","High Temp with gas water heating does not qualify"]
["2231","Other Electric","Other Gas","Other Water Heating","Low Temp","Other Electric, Other Gas, Other Water Heating, Low Temp","Does Not Qualify - Site's utility providers are not participating utilities"]
["2232","Other Electric","Other Gas","Other Water Heating","High Temp","Other Electric, Other Gas, Other Water Heating, High Temp","Does Not Qualify - Site's utility providers are not participating utilities"]

{"sheet":"Dish Single Upright Lookup","index":19,"n_rows":76,"n_cols":7,"rows_kept":76,"cut":false,"hidden":true,"merged":[[0,0,0,6]]}
["Dishwasher, Single Tank Door/Upright"]
["Combined","Electric Utility","Gas Utility","Water Heating","Temp","Combined","Incentive"]
[{"$f":"CONCATENATE(B3,C3,D3,E3)","v":{"$error":"#NAME?"}},{"$f":"IF(OR(ELE_NUM=1,ELE_NUM=2),1,IF(ELE_NUM=0,0,2))","v":0},{"$f":"IF(OR(GAS_NUM=1,GAS_NUM=2,GAS_NUM=3),1,(IF(GAS_NUM=0,0,2)))","v":0},{"$f":"WATERHEAT_NUM","v":0},{"$f":"TEMPERATURE","v":{"$error":"#NAME?"}},{"$f":"VLOOKUP(A3,A5:G76,6)","v":{"$error":"#NAME?"}},{"$f":"VLOOKUP(A3,A5:G76,7)","v":{"$error":"#NAME?"}}]
["Combined","Electric Utility","Gas Utility","Water Heating","Temp","Combined","Incentive"]
["0001","No Electric Selection","No Gas Selection","No Water Heating Selection","Low Temp",{"$f":"B5&\", \"&C5&\", \"&D5&\", \"&E5","v":"No Electric Selection, No Gas Selection, No Water Heating Selection, Low Temp"}]
["0002","No Electric Selection","No Gas Selection","No Water Heating Selection","High Temp",{"$f":"B6&\", \"&C6&\", \"&D6&\", \"&E6","v":"No Electric Selection, No Gas Selection, No Water Heating Selection, High Temp"}]
["0011","No Electric Selection","No Gas Selection","Electric Water Heating","Low Temp","No Electric Selection, No Gas Selection, Electric Water Heating, Low Temp"]
["0012","No Electric Selection","No Gas Selection","Electric Water Heating","High Temp","No Electric Selection, No Gas Selection, Electric Water Heating, High Temp"]
["0021","No Electric Selection","No Gas Selection","Gas Water Heating","Low Temp","No Electric Selection, No Gas Selection, Gas Water Heating, Low Temp"]
["0022","No Electric Selection","No Gas Selection","Gas Water Heating","High Temp","No Electric Selection, No Gas Selection, Gas Water Heating, High Temp"]
["0031","No Electric Selection","No Gas Selection","Other Water Heating","Low Temp","No Electric Selection, No Gas Selection, Other Water Heating, Low Temp","Does Not Qualify - Site's water heating fuel is not electric or gas"]
["0032","No Electric Selection","No Gas Selection","Other Water Heating","High Temp","No Electric Selection, No Gas Selection, Other Water Heating, High Temp","Does Not Qualify - Site's water heating fuel is not electric or gas"]
["0101","No Electric Selection","Qualifying Gas","No Water Heating Selection","Low Temp","No Electric Selection, Qualifying Gas, No Water Heating Selection, Low Temp"]
["0102","No Electric Selection","Qualifying Gas","No Water Heating Selection","High Temp","No Electric Selection, Qualifying Gas, No Water Heating Selection, High Temp"]
["0111","No Electric Selection","Qualifying Gas","Electric Water Heating","Low Temp","No Electric Selection, Qualifying Gas, Electric Water Heating, Low Temp"]
["0112","No Electric Selection","Qualifying Gas","Electric Water Heating","High Temp","No Electric Selection, Qualifying Gas, Electric Water Heating, High Temp"]
["0121","No Electric Selection","Qualifying Gas","Gas Water Heating","Low Temp","No Electric Selection, Qualifying Gas, Gas Water Heating, Low Temp"]
["0122","No Electric Selection","Qualifying Gas","Gas Water Heating","High Temp","No Electric Selection, Qualifying Gas, Gas Water Heating, High Temp"]
["0131","No Electric Selection","Qualifying Gas","Other Water Heating","Low Temp","No Electric Selection, Qualifying Gas, Other Water Heating, Low Temp","Does Not Qualify - Site's water heating fuel is not electric or gas"]
["0132","No Electric Selection","Qualifying Gas","Other Water Heating","High Temp","No Electric Selection, Qualifying Gas, Other Water Heating, High Temp","Does Not Qualify - Site's water heating fuel is not electric or gas"]
["0201","No Electric Selection","Other Gas","No Water Heating Selection","Low Temp","No Electric Selection, Other Gas, No Water Heating Selection, Low Temp"]
["0202","No Electric Selection","Other Gas","No Water Heating Selection","High Temp","No Electric Selection, Other Gas, No Water Heating Selection, High Temp"]
["0211","No Electric Selection","Other Gas","Electric Water Heating","Low Temp","No Electric Selection, Other Gas, Electric Water Heating, Low Temp"]
["0212","No Electric Selection","Other Gas","Electric Water Heating","High Temp","No Electric Selection, Other Gas, Electric Water Heating, High Temp"]
["0221","No Electric Selection","Other Gas","Gas Water Heating","Low Temp","No Electric Selection, Other Gas, Gas Water Heating, Low Temp","Does Not Qualify - Site's water heating fuel is not provided by a participating utility"]
["0222","No Electric Selection","Other Gas","Gas Water Heating","High Temp","No Electric Selection, Other Gas, Gas Water Heating, High Temp","Does Not Qualify - Site's water heating fuel is not provided by a participating utility"]
["0231","No Electric Selection","Other Gas","Other Water Heating","Low Temp","No Electric Selection, Other Gas, Other Water Heating, Low Temp","Does Not Qualify - Site's water heating fuel is not electric or gas"]
["0232","No Electric Selection","Other Gas","Other Water Heating","High Temp","No Electric Selection, Other Gas, Other Water Heating, High Temp","Does Not Qualify - Site's water heating fuel is not electric or gas"]
["1001","Qualifying Electric","No Gas Selection","No Water Heating Selection","Low Temp","Qualifying Electric, No Gas Selection, No Water Heating Selection, Low Temp"]
["1002","Qualifying Electric","No Gas Selection","No Water Heating Selection","High Temp","Qualifying Electric, No Gas Selection, No Water Heating Selection, High Temp"]
["1011","Qualifying Electric","No Gas Selection","Electric Water Heating","Low Temp","Qualifying Electric, No Gas Selection, Electric Water Heating, Low Temp",550]
["1012","Qualifying Electric","No Gas Selection","Electric Water Heating","High Temp","Qualifying Electric, No Gas Selection, Electric Water Heating, High Temp",825]
["1021","Qualifying Electric","No Gas Selection","Gas Water Heating","Low Temp","Qualifying Electric, No Gas Selection, Gas Water Heating, Low Temp"]
["1022","Qualifying Electric","No Gas Selection","Gas Water Heating","High Temp","Qualifying Electric, No Gas Selection, Gas Water Heating, High Temp"]
["1031","Qualifying Electric","No Gas Selection","Other Water Heating","Low Temp","Qualifying Electric, No Gas Selection, Other Water Heating, Low Temp","Does Not Qualify - Site's water heating fuel is not electric or gas"]
["1032","Qualifying Electric","No Gas Selection","Other Water Heating","High Temp","Qualifying Electric, No Gas Selection, Other Water Heating, High Temp","Does Not Qualify - Site's water heating fuel is not electric or gas"]
["1101","Qualifying Electric","Qualifying Gas","No Water Heating Selection","Low Temp",{"$f":"B37&\", \"&C37&\", \"&D37&\", \"&E37","v":"Qualifying Electric, Qualifying Gas, No Water Heating Selection, Low Temp"}]
["1102","Qualifying Electric","Qualifying Gas","No Water Heating Selection","High Temp","Qualifying Electric, Qualifying Gas, No Water Heating Selection, High Temp"]
["1111","Qualifying Electric","Qualifying Gas","Electric Water Heating","Low Temp","Qualifying Electric, Qualifying Gas, Electric Water Heating, Low Temp",550]
["1112","Qualifying Electric","Qualifying Gas","Electric Water Heating","High Temp","Qualifying Electric, Qualifying Gas, Electric Water Heating, High Temp",825]
["1121","Qualifying Electric","Qualifying Gas","Gas Water Heating","Low Temp","Qualifying Electric, Qualifying Gas, Gas Water Heating, Low Temp",550]
["1122","Qualifying Electric","Qualifying Gas","Gas Water Heating","High Temp","Qualifying Electric, Qualifying Gas, Gas Water Heating, High Temp",825]
["1131","Qualifying Electric","Qualifying Gas","Other Water Heating","Low Temp","Qualifying Electric, Qualifying Gas, Other Water Heating, Low Temp","Does Not Qualify - Site's water heating fuel is not electric or gas"]
["1132","Qualifying Electric","Qualifying Gas","Other Water Heating","High Temp","Qualifying Electric, Qualifying Gas, Other Water Heating, High Temp","Does Not Qualify - Site's water heating fuel is not electric or gas"]
["1201","Qualifying Electric","Other Gas","No Water Heating Selection","Low Temp","Qualifying Electric, Other Gas, No Water Heating Selection, Low Temp"]
["1202","Qualifying Electric","Other Gas","No Water Heating Selection","High Temp","Qualifying Electric, Other Gas, No Water Heating Selection, High Temp"]
["1211","Qualifying Electric","Other Gas","Electric Water Heating","Low Temp","Qualifying Electric, Other Gas, Electric Water Heating, Low Temp",550]
["1212","Qualifying Electric","Other Gas","Electric Water Heating","High Temp","Qualifying Electric, Other Gas, Electric Water Heating, High Temp",825]
["1221","Qualifying Electric","Other Gas","Gas Water Heating","Low Temp","Qualifying Electric, Other Gas, Gas Water Heating, Low Temp","Does Not Qualify - Site's water heating fuel is not provided by a participating utility"]
["1222","Qualifying Electric","Other Gas","Gas Water Heating","High Temp","Qualifying Electric, Other Gas, Gas Water Heating, High Temp","Does Not Qualify - Site's water heating fuel is not provided by a participating utility"]
["1231","Qualifying Electric","Other Gas","Other Water Heating","Low Temp","Qualifying Electric, Other Gas, Other Water Heating, Low Temp","Does Not Qualify - Site's water heating fuel is not electric or gas"]
["1232","Qualifying Electric","Other Gas","Other Water Heating","High Temp","Qualifying Electric, Other Gas, Other Water Heating, High Temp","Does Not Qualify - Site's water heating fuel is not electric or gas"]
["2001","Other Electric","No Gas Selection","No Water Heating Selection","Low Temp","Other Electric, No Gas Selection, No Water Heating Selection, Low Temp"]
["2002","Other Electric","No Gas Selection","No Water Heating Selection","High Temp","Other Electric, No Gas Selection, No Water Heating Selection, High Temp"]
["2011","Other Electric","No Gas Selection","Electric Water Heating","Low Temp","Other Electric, No Gas Selection, Electric Water Heating, Low Temp","Does Not Qualify - Site's water heating fuel is not provided by a participating utility"]
["2012","Other Electric","No Gas Selection","Electric Water Heating","High Temp","Other Electric, No Gas Selection, Electric Water Heating, High Temp","Does Not Qualify - Site's water heating fuel is not provided by a participating utility"]
["2021","Other Electric","No Gas Selection","Gas Water Heating","Low Temp","Other Electric, No Gas Selection, Gas Water Heating, Low Temp"]
["2022","Other Electric","No Gas Selection","Gas Water Heating","High Temp","Other Electric, No Gas Selection, Gas Water Heating, High Temp"]
["2031","Other Electric","No Gas Selection","Other Water Heating","Low Temp","Other Electric, No Gas Selection, Other Water Heating, Low Temp","Does Not Qualify - Site's water heating fuel is not electric or gas"]
["2032","Other Electric","No Gas Selection","Other Water Heating","High Temp","Other Electric, No Gas Selection, Other Water Heating, High Temp","Does Not Qualify - Site's water heating fuel is not electric or gas"]
["2101","Other Electric","Qualifying Gas","No Water Heating Selection","Low Temp","Other Electric, Qualifying Gas, No Water Heating Selection, Low Temp"]
["2102","Other Electric","Qualifying Gas","No Water Heating Selection","High Temp","Other Electric, Qualifying Gas, No Water Heating Selection, High Temp"]
["2111","Other Electric","Qualifying Gas","Electric Water Heating","Low Temp","Other Electric, Qualifying Gas, Electric Water Heating, Low Temp","Does Not Qualify - Site's water heating fuel is not provided by a participating utility"]
["2112","Other Electric","Qualifying Gas","Electric Water Heating","High Temp","Other Electric, Qualifying Gas, Electric Water Heating, High Temp","Does Not Qualify - Site's water heating fuel is not provided by a participating utility"]
["2121","Other Electric","Qualifying Gas","Gas Water Heating","Low Temp","Other Electric, Qualifying Gas, Gas Water Heating, Low Temp",550]
["2122","Other Electric","Qualifying Gas","Gas Water Heating","High Temp","Other Electric, Qualifying Gas, Gas Water Heating, High Temp",825]
["2131","Other Electric","Qualifying Gas","Other Water Heating","Low Temp","Other Electric, Qualifying Gas, Other Water Heating, Low Temp","Does Not Qualify - Site's water heating fuel is not electric or gas"]
["2132","Other Electric","Qualifying Gas","Other Water Heating","High Temp","Other Electric, Qualifying Gas, Other Water Heating, High Temp","Does Not Qualify - Site's water heating fuel is not electric or gas"]
["2201","Other Electric","Other Gas","No Water Heating Selection","Low Temp",{"$f":"B69&\", \"&C69&\", \"&D69&\", \"&E69","v":"Other Electric, Other Gas, No Water Heating Selection, Low Temp"},"Does Not Qualify - Site's utility providers are not participating utilities"]
["2202","Other Electric","Other Gas","No Water Heating Selection","High Temp","Other Electric, Other Gas, No Water Heating Selection, High Temp","Does Not Qualify - Site's utility providers are not participating utilities"]
["2211","Other Electric","Other Gas","Electric Water Heating","Low Temp","Other Electric, Other Gas, Electric Water Heating, Low Temp","Does Not Qualify - Site's utility providers are not participating utilities"]
["2212","Other Electric","Other Gas","Electric Water Heating","High Temp","Other Electric, Other Gas, Electric Water Heating, High Temp","Does Not Qualify - Site's utility providers are not participating utilities"]
["2221","Other Electric","Other Gas","Gas Water Heating","Low Temp","Other Electric, Other Gas, Gas Water Heating, Low Temp","Does Not Qualify - Site's utility providers are not participating utilities"]
["2222","Other Electric","Other Gas","Gas Water Heating","High Temp","Other Electric, Other Gas, Gas Water Heating, High Temp","Does Not Qualify - Site's utility providers are not participating utilities"]
["2231","Other Electric","Other Gas","Other Water Heating","Low Temp","Other Electric, Other Gas, Other Water Heating, Low Temp","Does Not Qualify - Site's utility providers are not participating utilities"]
["2232","Other Electric","Other Gas","Other Water Heating","High Temp","Other Electric, Other Gas, Other Water Heating, High Temp","Does Not Qualify - Site's utility providers are not participating utilities"]

{"sheet":"Dish Single Conveyor Lookup","index":20,"n_rows":76,"n_cols":7,"rows_kept":76,"cut":false,"hidden":true,"merged":[[0,0,0,6]]}
["Dishwasher, Single Tank Conveyor"]
["Combined","Electric Utility","Gas Utility","Water Heating","Temp","Combined","Incentive"]
[{"$f":"CONCATENATE(B3,C3,D3,E3)","v":{"$error":"#NAME?"}},{"$f":"IF(OR(ELE_NUM=1,ELE_NUM=2),1,IF(ELE_NUM=0,0,2))","v":0},{"$f":"IF(OR(GAS_NUM=1,GAS_NUM=2,GAS_NUM=3),1,(IF(GAS_NUM=0,0,2)))","v":0},{"$f":"WATERHEAT_NUM","v":0},{"$f":"TEMPERATURE","v":{"$error":"#NAME?"}},{"$f":"VLOOKUP(A3,A5:G76,6)","v":{"$error":"#NAME?"}},{"$f":"VLOOKUP(A3,A5:G76,7)","v":{"$error":"#NAME?"}}]
["Combined","Electric Utility","Gas Utility","Water Heating","Temp","Combined","Incentive"]
["0001","No Electric Selection","No Gas Selection","No Water Heating Selection","Low Temp",{"$f":"B5&\", \"&C5&\", \"&D5&\", \"&E5","v":"No Electric Selection, No Gas Selection, No Water Heating Selection, Low Temp"}]
["0002","No Electric Selection","No Gas Selection","No Water Heating Selection","High Temp",{"$f":"B6&\", \"&C6&\", \"&D6&\", \"&E6","v":"No Electric Selection, No Gas Selection, No Water Heating Selection, High Temp"}]
["0011","No Electric Selection","No Gas Selection","Electric Water Heating","Low Temp",{"$f":"B7&\", \"&C7&\", \"&D7&\", \"&E7","v":"No Electric Selection, No Gas Selection, Electric Water Heating, Low Temp"}]
["0012","No Electric Selection","No Gas Selection","Electric Water Heating","High Temp","No Electric Selection, No Gas Selection, Electric Water Heating, High Temp"]
["0021","No Electric Selection","No Gas Selection","Gas Water Heating","Low Temp","No Electric Selection, No Gas Selection, Gas Water Heating, Low Temp"]
["0022","No Electric Selection","No Gas Selection","Gas Water Heating","High Temp","No Electric Selection, No Gas Selection, Gas Water Heating, High Temp"]
["0031","No Electric Selection","No Gas Selection","Other Water Heating","Low Temp","No Electric Selection, No Gas Selection, Other Water Heating, Low Temp","Does Not Qualify - Site's water heating fuel is not electric or gas"]
["0032","No Electric Selection","No Gas Selection","Other Water Heating","High Temp","No Electric Selection, No Gas Selection, Other Water Heating, High Temp","Does Not Qualify - Site's water heating fuel is not electric or gas"]
["0101","No Electric Selection","Qualifying Gas","No Water Heating Selection","Low Temp","No Electric Selection, Qualifying Gas, No Water Heating Selection, Low Temp"]
["0102","No Electric Selection","Qualifying Gas","No Water Heating Selection","High Temp","No Electric Selection, Qualifying Gas, No Water Heating Selection, High Temp"]
["0111","No Electric Selection","Qualifying Gas","Electric Water Heating","Low Temp","No Electric Selection, Qualifying Gas, Electric Water Heating, Low Temp"]
["0112","No Electric Selection","Qualifying Gas","Electric Water Heating","High Temp","No Electric Selection, Qualifying Gas, Electric Water Heating, High Temp"]
["0121","No Electric Selection","Qualifying Gas","Gas Water Heating","Low Temp","No Electric Selection, Qualifying Gas, Gas Water Heating, Low Temp"]
["0122","No Electric Selection","Qualifying Gas","Gas Water Heating","High Temp","No Electric Selection, Qualifying Gas, Gas Water Heating, High Temp"]
["0131","No Electric Selection","Qualifying Gas","Other Water Heating","Low Temp","No Electric Selection, Qualifying Gas, Other Water Heating, Low Temp","Does Not Qualify - Site's water heating fuel is not electric or gas"]
["0132","No Electric Selection","Qualifying Gas","Other Water Heating","High Temp","No Electric Selection, Qualifying Gas, Other Water Heating, High Temp","Does Not Qualify - Site's water heating fuel is not electric or gas"]
["0201","No Electric Selection","Other Gas","No Water Heating Selection","Low Temp","No Electric Selection, Other Gas, No Water Heating Selection, Low Temp"]
["0202","No Electric Selection","Other Gas","No Water Heating Selection","High Temp","No Electric Selection, Other Gas, No Water Heating Selection, High Temp"]
["0211","No Electric Selection","Other Gas","Electric Water Heating","Low Temp","No Electric Selection, Other Gas, Electric Water Heating, Low Temp"]
["0212","No Electric Selection","Other Gas","Electric Water Heating","High Temp","No Electric Selection, Other Gas, Electric Water Heating, High Temp"]
["0221","No Electric Selection","Other Gas","Gas Water Heating","Low Temp","No Electric Selection, Other Gas, Gas Water Heating, Low Temp","Does Not Qualify - Site's water heating fuel is not provided by a participating utility"]
["0222","No Electric Selection","Other Gas","Gas Water Heating","High Temp","No Electric Selection, Other Gas, Gas Water Heating, High Temp","Does Not Qualify - Site's water heating fuel is not provided by a participating utility"]
["0231","No Electric Selection","Other Gas","Other Water Heating","Low Temp","No Electric Selection, Other Gas, Other Water Heating, Low Temp","Does Not Qualify - Site's water heating fuel is not electric or gas"]
["0232","No Electric Selection","Other Gas","Other Water Heating","High Temp","No Electric Selection, Other Gas, Other Water Heating, High Temp","Does Not Qualify - Site's water heating fuel is not electric or gas"]
["1001","Qualifying Electric","No Gas Selection","No Water Heating Selection","Low Temp","Qualifying Electric, No Gas Selection, No Water Heating Selection, Low Temp"]
["1002","Qualifying Electric","No Gas Selection","No Water Heating Selection","High Temp","Qualifying Electric, No Gas Selection, No Water Heating Selection, High Temp"]
["1011","Qualifying Electric","No Gas Selection","Electric Water Heating","Low Temp","Qualifying Electric, No Gas Selection, Electric Water Heating, Low Temp",900]
["1012","Qualifying Electric","No Gas Selection","Electric Water Heating","High Temp","Qualifying Electric, No Gas Selection, Electric Water Heating, High Temp",900]
["1021","Qualifying Electric","No Gas Selection","Gas Water Heating","Low Temp","Qualifying Electric, No Gas Selection, Gas Water Heating, Low Temp"]
["1022","Qualifying Electric","No Gas Selection","Gas Water Heating","High Temp","Qualifying Electric, No Gas Selection, Gas Water Heating, High Temp"]
["1031","Qualifying Electric","No Gas Selection","Other Water Heating","Low Temp","Qualifying Electric, No Gas Selection, Other Water Heating, Low Temp","Does Not Qualify - Site's water heating fuel is not electric or gas"]
["1032","Qualifying Electric","No Gas Selection","Other Water Heating","High Temp","Qualifying Electric, No Gas Selection, Other Water Heating, High Temp","Does Not Qualify - Site's water heating fuel is not electric or gas"]
["1101","Qualifying Electric","Qualifying Gas","No Water Heating Selection","Low Temp","Qualifying Electric, Qualifying Gas, No Water Heating Selection, Low Temp"]
["1102","Qualifying Electric","Qualifying Gas","No Water Heating Selection","High Temp","Qualifying Electric, Qualifying Gas, No Water Heating Selection, High Temp"]
["1111","Qualifying Electric","Qualifying Gas","Electric Water Heating","Low Temp","Qualifying Electric, Qualifying Gas, Electric Water Heating, Low Temp",900]
["1112","Qualifying Electric","Qualifying Gas","Electric Water Heating","High Temp","Qualifying Electric, Qualifying Gas, Electric Water Heating, High Temp",900]
["1121","Qualifying Electric","Qualifying Gas","Gas Water Heating","Low Temp","Qualifying Electric, Qualifying Gas, Gas Water Heating, Low Temp",900]
["1122","Qualifying Electric","Qualifying Gas","Gas Water Heating","High Temp","Qualifying Electric, Qualifying Gas, Gas Water Heating, High Temp",900]
["1131","Qualifying Electric","Qualifying Gas","Other Water Heating","Low Temp","Qualifying Electric, Qualifying Gas, Other Water Heating, Low Temp","Does Not Qualify - Site's water heating fuel is not electric or gas"]
["1132","Qualifying Electric","Qualifying Gas","Other Water Heating","High Temp","Qualifying Electric, Qualifying Gas, Other Water Heating, High Temp","Does Not Qualify - Site's water heating fuel is not electric or gas"]
["1201","Qualifying Electric","Other Gas","No Water Heating Selection","Low Temp","Qualifying Electric, Other Gas, No Water Heating Selection, Low Temp"]
["1202","Qualifying Electric","Other Gas","No Water Heating Selection","High Temp","Qualifying Electric, Other Gas, No Water Heating Selection, High Temp"]
["1211","Qualifying Electric","Other Gas","Electric Water Heating","Low Temp","Qualifying Electric, Other Gas, Electric Water Heating, Low Temp",900]
["1212","Qualifying Electric","Other Gas","Electric Water Heating","High Temp","Qualifying Electric, Other Gas, Electric Water Heating, High Temp",900]
["1221","Qualifying Electric","Other Gas","Gas Water Heating","Low Temp","Qualifying Electric, Other Gas, Gas Water Heating, Low Temp","Does Not Qualify - Site's water heating fuel is not provided by a participating utility"]
["1222","Qualifying Electric","Other Gas","Gas Water Heating","High Temp","Qualifying Electric, Other Gas, Gas Water Heating, High Temp","Does Not Qualify - Site's water heating fuel is not provided by a participating utility"]
["1231","Qualifying Electric","Other Gas","Other Water Heating","Low Temp","Qualifying Electric, Other Gas, Other Water Heating, Low Temp","Does Not Qualify - Site's water heating fuel is not electric or gas"]
["1232","Qualifying Electric","Other Gas","Other Water Heating","High Temp","Qualifying Electric, Other Gas, Other Water Heating, High Temp","Does Not Qualify - Site's water heating fuel is not electric or gas"]
["2001","Other Electric","No Gas Selection","No Water Heating Selection","Low Temp","Other Electric, No Gas Selection, No Water Heating Selection, Low Temp"]
["2002","Other Electric","No Gas Selection","No Water Heating Selection","High Temp","Other Electric, No Gas Selection, No Water Heating Selection, High Temp"]
["2011","Other Electric","No Gas Selection","Electric Water Heating","Low Temp","Other Electric, No Gas Selection, Electric Water Heating, Low Temp","Does Not Qualify - Site's water heating fuel is not provided by a participating utility"]
["2012","Other Electric","No Gas Selection","Electric Water Heating","High Temp","Other Electric, No Gas Selection, Electric Water Heating, High Temp","Does Not Qualify - Site's water heating fuel is not provided by a participating utility"]
["2021","Other Electric","No Gas Selection","Gas Water Heating","Low Temp","Other Electric, No Gas Selection, Gas Water Heating, Low Temp"]
["2022","Other Electric","No Gas Selection","Gas Water Heating","High Temp","Other Electric, No Gas Selection, Gas Water Heating, High Temp"]
["2031","Other Electric","No Gas Selection","Other Water Heating","Low Temp","Other Electric, No Gas Selection, Other Water Heating, Low Temp","Does Not Qualify - Site's water heating fuel is not electric or gas"]
["2032","Other Electric","No Gas Selection","Other Water Heating","High Temp","Other Electric, No Gas Selection, Other Water Heating, High Temp","Does Not Qualify - Site's water heating fuel is not electric or gas"]
["2101","Other Electric","Qualifying Gas","No Water Heating Selection","Low Temp","Other Electric, Qualifying Gas, No Water Heating Selection, Low Temp"]
["2102","Other Electric","Qualifying Gas","No Water Heating Selection","High Temp","Other Electric, Qualifying Gas, No Water Heating Selection, High Temp"]
["2111","Other Electric","Qualifying Gas","Electric Water Heating","Low Temp","Other Electric, Qualifying Gas, Electric Water Heating, Low Temp","Does Not Qualify - Site's water heating fuel is not provided by a participating utility"]
["2112","Other Electric","Qualifying Gas","Electric Water Heating","High Temp","Other Electric, Qualifying Gas, Electric Water Heating, High Temp","Does Not Qualify - Site's water heating fuel is not provided by a participating utility"]
["2121","Other Electric","Qualifying Gas","Gas Water Heating","Low Temp","Other Electric, Qualifying Gas, Gas Water Heating, Low Temp",900]
["2122","Other Electric","Qualifying Gas","Gas Water Heating","High Temp","Other Electric, Qualifying Gas, Gas Water Heating, High Temp",900]
["2131","Other Electric","Qualifying Gas","Other Water Heating","Low Temp","Other Electric, Qualifying Gas, Other Water Heating, Low Temp","Does Not Qualify - Site's water heating fuel is not electric or gas"]
["2132","Other Electric","Qualifying Gas","Other Water Heating","High Temp","Other Electric, Qualifying Gas, Other Water Heating, High Temp","Does Not Qualify - Site's water heating fuel is not electric or gas"]
["2201","Other Electric","Other Gas","No Water Heating Selection","Low Temp","Other Electric, Other Gas, No Water Heating Selection, Low Temp","Does Not Qualify - Site's utility providers are not participating utilities"]
["2202","Other Electric","Other Gas","No Water Heating Selection","High Temp","Other Electric, Other Gas, No Water Heating Selection, High Temp","Does Not Qualify - Site's utility providers are not participating utilities"]
["2211","Other Electric","Other Gas","Electric Water Heating","Low Temp",{"$f":"B71&\", \"&C71&\", \"&D71&\", \"&E71","v":"Other Electric, Other Gas, Electric Water Heating, Low Temp"},"Does Not Qualify - Site's utility providers are not participating utilities"]
["2212","Other Electric","Other Gas","Electric Water Heating","High Temp","Other Electric, Other Gas, Electric Water Heating, High Temp","Does Not Qualify - Site's utility providers are not participating utilities"]
["2221","Other Electric","Other Gas","Gas Water Heating","Low Temp","Other Electric, Other Gas, Gas Water Heating, Low Temp","Does Not Qualify - Site's utility providers are not participating utilities"]
["2222","Other Electric","Other Gas","Gas Water Heating","High Temp","Other Electric, Other Gas, Gas Water Heating, High Temp","Does Not Qualify - Site's utility providers are not participating utilities"]
["2231","Other Electric","Other Gas","Other Water Heating","Low Temp","Other Electric, Other Gas, Other Water Heating, Low Temp","Does Not Qualify - Site's utility providers are not participating utilities"]
["2232","Other Electric","Other Gas","Other Water Heating","High Temp","Other Electric, Other Gas, Other Water Heating, High Temp","Does Not Qualify - Site's utility providers are not participating utilities"]

{"sheet":"Dish Multi Conveyor Lookup","index":21,"n_rows":76,"n_cols":7,"rows_kept":76,"cut":false,"hidden":true,"merged":[[0,0,0,6]]}
["Dishwasher, Multi-Tank Conveyor"]
["Combined","Electric Utility","Gas Utility","Water Heating","Temp","Combined","Incentive"]
[{"$f":"CONCATENATE(B3,C3,D3,E3)","v":{"$error":"#NAME?"}},{"$f":"IF(OR(ELE_NUM=1,ELE_NUM=2),1,IF(ELE_NUM=0,0,2))","v":0},{"$f":"IF(OR(GAS_NUM=1,GAS_NUM=2,GAS_NUM=3),1,(IF(GAS_NUM=0,0,2)))","v":0},{"$f":"WATERHEAT_NUM","v":0},{"$f":"TEMPERATURE","v":{"$error":"#NAME?"}},{"$f":"VLOOKUP(A3,A5:G76,6)","v":{"$error":"#NAME?"}},{"$f":"VLOOKUP(A3,A5:G76,7)","v":{"$error":"#NAME?"}}]
["Combined","Electric Utility","Gas Utility","Water Heating","Temp","Combined","Incentive"]
["0001","No Electric Selection","No Gas Selection","No Water Heating Selection","Low Temp",{"$f":"B5&\", \"&C5&\", \"&D5&\", \"&E5","v":"No Electric Selection, No Gas Selection, No Water Heating Selection, Low Temp"}]
["0002","No Electric Selection","No Gas Selection","No Water Heating Selection","High Temp",{"$f":"B6&\", \"&C6&\", \"&D6&\", \"&E6","v":"No Electric Selection, No Gas Selection, No Water Heating Selection, High Temp"}]
["0011","No Electric Selection","No Gas Selection","Electric Water Heating","Low Temp",{"$f":"B7&\", \"&C7&\", \"&D7&\", \"&E7","v":"No Electric Selection, No Gas Selection, Electric Water Heating, Low Temp"}]
["0012","No Electric Selection","No Gas Selection","Electric Water Heating","High Temp","No Electric Selection, No Gas Selection, Electric Water Heating, High Temp"]
["0021","No Electric Selection","No Gas Selection","Gas Water Heating","Low Temp","No Electric Selection, No Gas Selection, Gas Water Heating, Low Temp"]
["0022","No Electric Selection","No Gas Selection","Gas Water Heating","High Temp","No Electric Selection, No Gas Selection, Gas Water Heating, High Temp"]
["0031","No Electric Selection","No Gas Selection","Other Water Heating","Low Temp","No Electric Selection, No Gas Selection, Other Water Heating, Low Temp","Does Not Qualify - Site's water heating fuel is not electric or gas"]
["0032","No Electric Selection","No Gas Selection","Other Water Heating","High Temp","No Electric Selection, No Gas Selection, Other Water Heating, High Temp","Does Not Qualify - Site's water heating fuel is not electric or gas"]
["0101","No Electric Selection","Qualifying Gas","No Water Heating Selection","Low Temp","No Electric Selection, Qualifying Gas, No Water Heating Selection, Low Temp"]
["0102","No Electric Selection","Qualifying Gas","No Water Heating Selection","High Temp","No Electric Selection, Qualifying Gas, No Water Heating Selection, High Temp"]
["0111","No Electric Selection","Qualifying Gas","Electric Water Heating","Low Temp","No Electric Selection, Qualifying Gas, Electric Water Heating, Low Temp"]
["0112","No Electric Selection","Qualifying Gas","Electric Water Heating","High Temp","No Electric Selection, Qualifying Gas, Electric Water Heating, High Temp"]
["0121","No Electric Selection","Qualifying Gas","Gas Water Heating","Low Temp","No Electric Selection, Qualifying Gas, Gas Water Heating, Low Temp"]
["0122","No Electric Selection","Qualifying Gas","Gas Water Heating","High Temp","No Electric Selection, Qualifying Gas, Gas Water Heating, High Temp"]
["0131","No Electric Selection","Qualifying Gas","Other Water Heating","Low Temp","No Electric Selection, Qualifying Gas, Other Water Heating, Low Temp","Does Not Qualify - Site's water heating fuel is not electric or gas"]
["0132","No Electric Selection","Qualifying Gas","Other Water Heating","High Temp","No Electric Selection, Qualifying Gas, Other Water Heating, High Temp","Does Not Qualify - Site's water heating fuel is not electric or gas"]
["0201","No Electric Selection","Other Gas","No Water Heating Selection","Low Temp","No Electric Selection, Other Gas, No Water Heating Selection, Low Temp"]
["0202","No Electric Selection","Other Gas","No Water Heating Selection","High Temp","No Electric Selection, Other Gas, No Water Heating Selection, High Temp"]
["0211","No Electric Selection","Other Gas","Electric Water Heating","Low Temp","No Electric Selection, Other Gas, Electric Water Heating, Low Temp"]
["0212","No Electric Selection","Other Gas","Electric Water Heating","High Temp","No Electric Selection, Other Gas, Electric Water Heating, High Temp"]
["0221","No Electric Selection","Other Gas","Gas Water Heating","Low Temp","No Electric Selection, Other Gas, Gas Water Heating, Low Temp","Does Not Qualify - Site's water heating fuel is not provided by a participating utility"]
["0222","No Electric Selection","Other Gas","Gas Water Heating","High Temp","No Electric Selection, Other Gas, Gas Water Heating, High Temp","Does Not Qualify - Site's water heating fuel is not provided by a participating utility"]
["0231","No Electric Selection","Other Gas","Other Water Heating","Low Temp","No Electric Selection, Other Gas, Other Water Heating, Low Temp","Does Not Qualify - Site's water heating fuel is not electric or gas"]
["0232","No Electric Selection","Other Gas","Other Water Heating","High Temp","No Electric Selection, Other Gas, Other Water Heating, High Temp","Does Not Qualify - Site's water heating fuel is not electric or gas"]
["1001","Qualifying Electric","No Gas Selection","No Water Heating Selection","Low Temp","Qualifying Electric, No Gas Selection, No Water Heating Selection, Low Temp"]
["1002","Qualifying Electric","No Gas Selection","No Water Heating Selection","High Temp","Qualifying Electric, No Gas Selection, No Water Heating Selection, High Temp"]
["1011","Qualifying Electric","No Gas Selection","Electric Water Heating","Low Temp","Qualifying Electric, No Gas Selection, Electric Water Heating, Low Temp",800]
["1012","Qualifying Electric","No Gas Selection","Electric Water Heating","High Temp","Qualifying Electric, No Gas Selection, Electric Water Heating, High Temp",800]
["1021","Qualifying Electric","No Gas Selection","Gas Water Heating","Low Temp","Qualifying Electric, No Gas Selection, Gas Water Heating, Low Temp"]
["1022","Qualifying Electric","No Gas Selection","Gas Water Heating","High Temp","Qualifying Electric, No Gas Selection, Gas Water Heating, High Temp"]
["1031","Qualifying Electric","No Gas Selection","Other Water Heating","Low Temp","Qualifying Electric, No Gas Selection, Other Water Heating, Low Temp","Does Not Qualify - Site's water heating fuel is not electric or gas"]
["1032","Qualifying Electric","No Gas Selection","Other Water Heating","High Temp","Qualifying Electric, No Gas Selection, Other Water Heating, High Temp","Does Not Qualify - Site's water heating fuel is not electric or gas"]
["1101","Qualifying Electric","Qualifying Gas","No Water Heating Selection","Low Temp","Qualifying Electric, Qualifying Gas, No Water Heating Selection, Low Temp"]
["1102","Qualifying Electric","Qualifying Gas","No Water Heating Selection","High Temp","Qualifying Electric, Qualifying Gas, No Water Heating Selection, High Temp"]
["1111","Qualifying Electric","Qualifying Gas","Electric Water Heating","Low Temp","Qualifying Electric, Qualifying Gas, Electric Water Heating, Low Temp",800]
["1112","Qualifying Electric","Qualifying Gas","Electric Water Heating","High Temp","Qualifying Electric, Qualifying Gas, Electric Water Heating, High Temp",800]
["1121","Qualifying Electric","Qualifying Gas","Gas Water Heating","Low Temp","Qualifying Electric, Qualifying Gas, Gas Water Heating, Low Temp",800]
["1122","Qualifying Electric","Qualifying Gas","Gas Water Heating","High Temp","Qualifying Electric, Qualifying Gas, Gas Water Heating, High Temp",800]
["1131","Qualifying Electric","Qualifying Gas","Other Water Heating","Low Temp","Qualifying Electric, Qualifying Gas, Other Water Heating, Low Temp","Does Not Qualify - Site's water heating fuel is not electric or gas"]
["1132","Qualifying Electric","Qualifying Gas","Other Water Heating","High Temp","Qualifying Electric, Qualifying Gas, Other Water Heating, High Temp","Does Not Qualify - Site's water heating fuel is not electric or gas"]
["1201","Qualifying Electric","Other Gas","No Water Heating Selection","Low Temp","Qualifying Electric, Other Gas, No Water Heating Selection, Low Temp"]
["1202","Qualifying Electric","Other Gas","No Water Heating Selection","High Temp","Qualifying Electric, Other Gas, No Water Heating Selection, High Temp"]
["1211","Qualifying Electric","Other Gas","Electric Water Heating","Low Temp","Qualifying Electric, Other Gas, Electric Water Heating, Low Temp",800]
["1212","Qualifying Electric","Other Gas","Electric Water Heating","High Temp","Qualifying Electric, Other Gas, Electric Water Heating, High Temp",800]
["1221","Qualifying Electric","Other Gas","Gas Water Heating","Low Temp","Qualifying Electric, Other Gas, Gas Water Heating, Low Temp","Does Not Qualify - Site's water heating fuel is not provided by a participating utility"]
["1222","Qualifying Electric","Other Gas","Gas Water Heating","High Temp","Qualifying Electric, Other Gas, Gas Water Heating, High Temp","Does Not Qualify - Site's water heating fuel is not provided by a participating utility"]
["1231","Qualifying Electric","Other Gas","Other Water Heating","Low Temp","Qualifying Electric, Other Gas, Other Water Heating, Low Temp","Does Not Qualify - Site's water heating fuel is not electric or gas"]
["1232","Qualifying Electric","Other Gas","Other Water Heating","High Temp","Qualifying Electric, Other Gas, Other Water Heating, High Temp","Does Not Qualify - Site's water heating fuel is not electric or gas"]
["2001","Other Electric","No Gas Selection","No Water Heating Selection","Low Temp","Other Electric, No Gas Selection, No Water Heating Selection, Low Temp"]
["2002","Other Electric","No Gas Selection","No Water Heating Selection","High Temp","Other Electric, No Gas Selection, No Water Heating Selection, High Temp"]
["2011","Other Electric","No Gas Selection","Electric Water Heating","Low Temp","Other Electric, No Gas Selection, Electric Water Heating, Low Temp","Does Not Qualify - Site's water heating fuel is not provided by a participating utility"]
["2012","Other Electric","No Gas Selection","Electric Water Heating","High Temp","Other Electric, No Gas Selection, Electric Water Heating, High Temp","Does Not Qualify - Site's water heating fuel is not provided by a participating utility"]
["2021","Other Electric","No Gas Selection","Gas Water Heating","Low Temp","Other Electric, No Gas Selection, Gas Water Heating, Low Temp"]
["2022","Other Electric","No Gas Selection","Gas Water Heating","High Temp","Other Electric, No Gas Selection, Gas Water Heating, High Temp"]
["2031","Other Electric","No Gas Selection","Other Water Heating","Low Temp","Other Electric, No Gas Selection, Other Water Heating, Low Temp","Does Not Qualify - Site's water heating fuel is not electric or gas"]
["2032","Other Electric","No Gas Selection","Other Water Heating","High Temp","Other Electric, No Gas Selection, Other Water Heating, High Temp","Does Not Qualify - Site's water heating fuel is not electric or gas"]
["2101","Other Electric","Qualifying Gas","No Water Heating Selection","Low Temp","Other Electric, Qualifying Gas, No Water Heating Selection, Low Temp"]
["2102","Other Electric","Qualifying Gas","No Water Heating Selection","High Temp","Other Electric, Qualifying Gas, No Water Heating Selection, High Temp"]
["2111","Other Electric","Qualifying Gas","Electric Water Heating","Low Temp","Other Electric, Qualifying Gas, Electric Water Heating, Low Temp","Does Not Qualify - Site's water heating fuel is not provided by a participating utility"]
["2112","Other Electric","Qualifying Gas","Electric Water Heating","High Temp","Other Electric, Qualifying Gas, Electric Water Heating, High Temp","Does Not Qualify - Site's water heating fuel is not provided by a participating utility"]
["2121","Other Electric","Qualifying Gas","Gas Water Heating","Low Temp","Other Electric, Qualifying Gas, Gas Water Heating, Low Temp",800]
["2122","Other Electric","Qualifying Gas","Gas Water Heating","High Temp","Other Electric, Qualifying Gas, Gas Water Heating, High Temp",800]
["2131","Other Electric","Qualifying Gas","Other Water Heating","Low Temp","Other Electric, Qualifying Gas, Other Water Heating, Low Temp","Does Not Qualify - Site's water heating fuel is not electric or gas"]
["2132","Other Electric","Qualifying Gas","Other Water Heating","High Temp","Other Electric, Qualifying Gas, Other Water Heating, High Temp","Does Not Qualify - Site's water heating fuel is not electric or gas"]
["2201","Other Electric","Other Gas","No Water Heating Selection","Low Temp","Other Electric, Other Gas, No Water Heating Selection, Low Temp","Does Not Qualify - Site's utility providers are not participating utilities"]
["2202","Other Electric","Other Gas","No Water Heating Selection","High Temp","Other Electric, Other Gas, No Water Heating Selection, High Temp","Does Not Qualify - Site's utility providers are not participating utilities"]
["2211","Other Electric","Other Gas","Electric Water Heating","Low Temp",{"$f":"B71&\", \"&C71&\", \"&D71&\", \"&E71","v":"Other Electric, Other Gas, Electric Water Heating, Low Temp"},"Does Not Qualify - Site's utility providers are not participating utilities"]
["2212","Other Electric","Other Gas","Electric Water Heating","High Temp","Other Electric, Other Gas, Electric Water Heating, High Temp","Does Not Qualify - Site's utility providers are not participating utilities"]
["2221","Other Electric","Other Gas","Gas Water Heating","Low Temp","Other Electric, Other Gas, Gas Water Heating, Low Temp","Does Not Qualify - Site's utility providers are not participating utilities"]
["2222","Other Electric","Other Gas","Gas Water Heating","High Temp","Other Electric, Other Gas, Gas Water Heating, High Temp","Does Not Qualify - Site's utility providers are not participating utilities"]
["2231","Other Electric","Other Gas","Other Water Heating","Low Temp","Other Electric, Other Gas, Other Water Heating, Low Temp","Does Not Qualify - Site's utility providers are not participating utilities"]
["2232","Other Electric","Other Gas","Other Water Heating","High Temp","Other Electric, Other Gas, Other Water Heating, High Temp","Does Not Qualify - Site's utility providers are not participating utilities"]

{"sheet":"Dish Pot Pan Lookup","index":22,"n_rows":40,"n_cols":6,"rows_kept":40,"cut":false,"hidden":true,"merged":[[0,0,0,5]]}
["Dishwasher, Pot, Pan and Utensil"]
["Combined","Electric Utility","Gas Utility","Water Heating","Combined","Incentive"]
[{"$f":"CONCATENATE(B3,C3,D3)","v":"000"},{"$f":"IF(OR(ELE_NUM=1,ELE_NUM=2),1,IF(ELE_NUM=0,0,2))","v":0},{"$f":"IF(OR(GAS_NUM=1,GAS_NUM=2,GAS_NUM=3),1,(IF(GAS_NUM=0,0,2)))","v":0},{"$f":"WATERHEAT_NUM","v":0},{"$f":"VLOOKUP(A3,A5:F40,5)","v":"No Electric Selection, No Gas Selection, No Water Heating Selection"},{"$f":"VLOOKUP(A3,A5:F40,6)","v":0}]
["Combined","Electric Utility","Gas Utility","Water Heating","Combined","Incentive"]
["000","No Electric Selection","No Gas Selection","No Water Heating Selection",{"$f":"B5&\", \"&C5&\", \"&D5","v":"No Electric Selection, No Gas Selection, No Water Heating Selection"}]
["001","No Electric Selection","No Gas Selection","Electric Water Heating",{"$f":"B6&\", \"&C6&\", \"&D6","v":"No Electric Selection, No Gas Selection, Electric Water Heating"}]
["002","No Electric Selection","No Gas Selection","Gas Water Heating","No Electric Selection, No Gas Selection, Gas Water Heating"]
["003","No Electric Selection","No Gas Selection","Other Water Heating","No Electric Selection, No Gas Selection, Other Water Heating","Does Not Qualify - Site's water heating fuel is not electric or gas"]
["010","No Electric Selection","Qualifying Gas","No Water Heating Selection","No Electric Selection, Qualifying Gas, No Water Heating Selection"]
["011","No Electric Selection","Qualifying Gas","Electric Water Heating","No Electric Selection, Qualifying Gas, Electric Water Heating"]
["012","No Electric Selection","Qualifying Gas","Gas Water Heating","No Electric Selection, Qualifying Gas, Gas Water Heating"]
["013","No Electric Selection","Qualifying Gas","Other Water Heating","No Electric Selection, Qualifying Gas, Other Water Heating","Does Not Qualify - Site's water heating fuel is not electric or gas"]
["020","No Electric Selection","Other Gas","No Water Heating Selection","No Electric Selection, Other Gas, No Water Heating Selection"]
["021","No Electric Selection","Other Gas","Electric Water Heating","No Electric Selection, Other Gas, Electric Water Heating"]
["022","No Electric Selection","Other Gas","Gas Water Heating","No Electric Selection, Other Gas, Gas Water Heating","Does Not Qualify - Site's water heating fuel is not provided by a participating utility"]
["023","No Electric Selection","Other Gas","Other Water Heating","No Electric Selection, Other Gas, Other Water Heating","Does Not Qualify - Site's water heating fuel is not electric or gas"]
["100","Qualifying Electric","No Gas Selection","No Water Heating Selection","Qualifying Electric, No Gas Selection, No Water Heating Selection"]
["101","Qualifying Electric","No Gas Selection","Electric Water Heating","Qualifying Electric, No Gas Selection, Electric Water Heating",350]
["102","Qualifying Electric","No Gas Selection","Gas Water Heating","Qualifying Electric, No Gas Selection, Gas Water Heating"]
["103","Qualifying Electric","No Gas Selection","Other Water Heating","Qualifying Electric, No Gas Selection, Other Water Heating","Does Not Qualify - Site's water heating fuel is not electric or gas"]
["110","Qualifying Electric","Qualifying Gas","No Water Heating Selection","Qualifying Electric, Qualifying Gas, No Water Heating Selection"]
["111","Qualifying Electric","Qualifying Gas","Electric Water Heating","Qualifying Electric, Qualifying Gas, Electric Water Heating",350]
["112","Qualifying Electric","Qualifying Gas","Gas Water Heating","Qualifying Electric, Qualifying Gas, Gas Water Heating",350]
["113","Qualifying Electric","Qualifying Gas","Other Water Heating","Qualifying Electric, Qualifying Gas, Other Water Heating","Does Not Qualify - Site's water heating fuel is not electric or gas"]
["120","Qualifying Electric","Other Gas","No Water Heating Selection","Qualifying Electric, Other Gas, No Water Heating Selection"]
["121","Qualifying Electric","Other Gas","Electric Water Heating","Qualifying Electric, Other Gas, Electric Water Heating",350]
["122","Qualifying Electric","Other Gas","Gas Water Heating","Qualifying Electric, Other Gas, Gas Water Heating","Does Not Qualify - Site's water heating fuel is not provided by a participating utility"]
["123","Qualifying Electric","Other Gas","Other Water Heating","Qualifying Electric, Other Gas, Other Water Heating","Does Not Qualify - Site's water heating fuel is not electric or gas"]
["200","Other Electric","No Gas Selection","No Water Heating Selection",{"$f":"B29&\", \"&C29&\", \"&D29","v":"Other Electric, No Gas Selection, No Water Heating Selection"}]
["201","Other Electric","No Gas Selection","Electric Water Heating","Other Electric, No Gas Selection, Electric Water Heating","Does Not Qualify - Site's water heating fuel is not provided by a participating utility"]
["202","Other Electric","No Gas Selection","Gas Water Heating","Other Electric, No Gas Selection, Gas Water Heating"]
["203","Other Electric","No Gas Selection","Other Water Heating","Other Electric, No Gas Selection, Other Water Heating","Does Not Qualify - Site's water heating fuel is not electric or gas"]
["210","Other Electric","Qualifying Gas","No Water Heating Selection","Other Electric, Qualifying Gas, No Water Heating Selection"]
["211","Other Electric","Qualifying Gas","Electric Water Heating","Other Electric, Qualifying Gas, Electric Water Heating","Does Not Qualify - Site's water heating fuel is not provided by a participating utility"]
["212","Other Electric","Qualifying Gas","Gas Water Heating","Other Electric, Qualifying Gas, Gas Water Heating",350]
["213","Other Electric","Qualifying Gas","Other Water Heating","Other Electric, Qualifying Gas, Other Water Heating","Does Not Qualify - Site's water heating fuel is not electric or gas"]
["220","Other Electric","Other Gas","No Water Heating Selection","Other Electric, Other Gas, No Water Heating Selection","Does Not Qualify - Site's utility providers are not participating utilities"]
["221","Other Electric","Other Gas","Electric Water Heating","Other Electric, Other Gas, Electric Water Heating","Does Not Qualify - Site's utility providers are not participating utilities"]
["222","Other Electric","Other Gas","Gas Water Heating","Other Electric, Other Gas, Gas Water Heating","Does Not Qualify - Site's utility providers are not participating utilities"]
["223","Other Electric","Other Gas","Other Water Heating","Other Electric, Other Gas, Other Water Heating","Does Not Qualify - Site's utility providers are not participating utilities"]

{"sheet":"Add Doors Lookup","index":23,"n_rows":40,"n_cols":6,"rows_kept":40,"cut":false,"hidden":true,"merged":[[0,0,0,5]]}
["Add Doors to Open Refrigerated Cases"]
["Combined","Electric Utility","Gas Utility","Primary Space Heatinging","Combined","Incentive"]
[{"$f":"CONCATENATE(B3,C3,D3)","v":"000"},{"$f":"IF(OR(ELE_NUM=1,ELE_NUM=2),1,IF(ELE_NUM=0,0,2))","v":0},{"$f":"IF(OR(GAS_NUM=1,GAS_NUM=2,GAS_NUM=3),1,(IF(GAS_NUM=0,0,2)))","v":0},{"$f":"WATERHEAT_NUM","v":0},{"$f":"VLOOKUP(A3,A5:F40,5)","v":"No Electric Selection, No Gas Selection, No Primary Space Heating Selected"},{"$f":"VLOOKUP(A3,A5:F40,6)","v":" "}]
["Combined","Electric Utility","Gas Utility","Primary Space Heatinging","Combined","Incentive"]
["000","No Electric Selection","No Gas Selection","No Primary Space Heating Selected",{"$f":"B5&\", \"&C5&\", \"&D5","v":"No Electric Selection, No Gas Selection, No Primary Space Heating Selected"}," "]
["001","No Electric Selection","No Gas Selection","Electric Primary Space Heating","No Electric Selection, No Gas Selection, Electric Primary Space Heating"," "]
["002","No Electric Selection","No Gas Selection","Gas Primary Space Heating","No Electric Selection, No Gas Selection, Gas Primary Space Heating"," "]
["003","No Electric Selection","No Gas Selection","Other Primary Space Heating","No Electric Selection, No Gas Selection, Other Primary Space Heating","Does Not Qualify - Site's primary space heating fuel is not electric or gas"]
["010","No Electric Selection","Qualifying Gas","No Primary Space Heating Selection","No Electric Selection, Qualifying Gas, No Primary Space Heating Selection"," "]
["011","No Electric Selection","Qualifying Gas","Electric Primary Space Heating","No Electric Selection, Qualifying Gas, Electric Primary Space Heating"," "]
["012","No Electric Selection","Qualifying Gas","Gas Primary Space Heating","No Electric Selection, Qualifying Gas, Gas Primary Space Heating"," "]
["013","No Electric Selection","Qualifying Gas","Other Primary Space Heating","No Electric Selection, Qualifying Gas, Other Primary Space Heating","Does Not Qualify - Site's primary space heating fuel is not electric or gas"]
["020","No Electric Selection","Other Gas","No Primary Space Heating Selection","No Electric Selection, Other Gas, No Primary Space Heating Selection"," "]
["021","No Electric Selection","Other Gas","Electric Primary Space Heating","No Electric Selection, Other Gas, Electric Primary Space Heating"," "]
["022","No Electric Selection","Other Gas","Gas Primary Space Heating","No Electric Selection, Other Gas, Gas Primary Space Heating","Does Not Qualify - Site's primary space heating fuel is not provided by a participating utility"]
["023","No Electric Selection","Other Gas","Other Primary Space Heating","No Electric Selection, Other Gas, Other Primary Space Heating","Does Not Qualify - Site's primary space heating fuel is not electric or gas"]
["100","Qualifying Electric","No Gas Selection","No Primary Space Heating Selection","Qualifying Electric, No Gas Selection, No Primary Space Heating Selection"," "]
["101","Qualifying Electric","No Gas Selection","Electric Primary Space Heating","Qualifying Electric, No Gas Selection, Electric Primary Space Heating",200]
["102","Qualifying Electric","No Gas Selection","Gas Primary Space Heating","Qualifying Electric, No Gas Selection, Gas Primary Space Heating"," "]
["103","Qualifying Electric","No Gas Selection","Other Primary Space Heating","Qualifying Electric, No Gas Selection, Other Primary Space Heating","Does Not Qualify - Site's primary space heating fuel is not electric or gas"]
["110","Qualifying Electric","Qualifying Gas","No Primary Space Heating Selection","Qualifying Electric, Qualifying Gas, No Primary Space Heating Selection"," "]
["111","Qualifying Electric","Qualifying Gas","Electric Primary Space Heating","Qualifying Electric, Qualifying Gas, Electric Primary Space Heating",200]
["112","Qualifying Electric","Qualifying Gas","Gas Primary Space Heating","Qualifying Electric, Qualifying Gas, Gas Primary Space Heating",200]
["113","Qualifying Electric","Qualifying Gas","Other Primary Space Heating","Qualifying Electric, Qualifying Gas, Other Primary Space Heating","Does Not Qualify - Site's primary space heating fuel is not electric or gas"]
["120","Qualifying Electric","Other Gas","No Primary Space Heating Selection","Qualifying Electric, Other Gas, No Primary Space Heating Selection"," "]
["121","Qualifying Electric","Other Gas","Electric Primary Space Heating","Qualifying Electric, Other Gas, Electric Primary Space Heating",200]
["122","Qualifying Electric","Other Gas","Gas Primary Space Heating","Qualifying Electric, Other Gas, Gas Primary Space Heating","Does Not Qualify - Site's primary space heating fuel is not provided by a participating utility"]
["123","Qualifying Electric","Other Gas","Other Primary Space Heating","Qualifying Electric, Other Gas, Other Primary Space Heating","Does Not Qualify - Site's primary space heating fuel is not electric or gas"]
["200","Other Electric","No Gas Selection","No Primary Space Heating Selection","Other Electric, No Gas Selection, No Primary Space Heating Selection"," "]
["201","Other Electric","No Gas Selection","Electric Primary Space Heating","Other Electric, No Gas Selection, Electric Primary Space Heating","Does Not Qualify - Site's primary space heating fuel is not provided by a participating utility"]
["202","Other Electric","No Gas Selection","Gas Primary Space Heating","Other Electric, No Gas Selection, Gas Primary Space Heating"," "]
["203","Other Electric","No Gas Selection","Other Primary Space Heating","Other Electric, No Gas Selection, Other Primary Space Heating","Does Not Qualify - Site's primary space heating fuel is not electric or gas"]
["210","Other Electric","Qualifying Gas","No Primary Space Heating Selection","Other Electric, Qualifying Gas, No Primary Space Heating Selection"," "]
["211","Other Electric","Qualifying Gas","Electric Primary Space Heating","Other Electric, Qualifying Gas, Electric Primary Space Heating","Does Not Qualify - Site's primary space heating fuel is not provided by a participating utility"]
["212","Other Electric","Qualifying Gas","Gas Primary Space Heating","Other Electric, Qualifying Gas, Gas Primary Space Heating",100]
["213","Other Electric","Qualifying Gas","Other Primary Space Heating","Other Electric, Qualifying Gas, Other Primary Space Heating","Does Not Qualify - Site's primary space heating fuel is not electric or gas"]
["220","Other Electric","Other Gas","No Primary Space Heating Selection","Other Electric, Other Gas, No Primary Space Heating Selection","Does Not Qualify - Site's utility providers are not participating utilities"]
["221","Other Electric","Other Gas","Electric Primary Space Heating","Other Electric, Other Gas, Electric Primary Space Heating","Does Not Qualify - Site's utility providers are not participating utilities"]
["222","Other Electric","Other Gas","Gas Primary Space Heating","Other Electric, Other Gas, Gas Primary Space Heating","Does Not Qualify - Site's utility providers are not participating utilities"]
["223","Other Electric","Other Gas","Other Primary Space Heating","Other Electric, Other Gas, Other Primary Space Heating","Does Not Qualify - Site's utility providers are not participating utilities"]

{"sheet":"New Doors Lookup","index":24,"n_rows":112,"n_cols":7,"rows_kept":112,"cut":false,"hidden":true,"merged":[[0,0,0,6]]}
["New Refrigerated Cases with Doors"]
["Combined","Electric Utility","Gas Utility","Primary Space Heatinging","Store Type (Size)","Combined","Incentive"]
[{"$f":"CONCATENATE(B3,C3,D3,E3)","v":{"$error":"#REF!"}},{"$f":"IF(OR(ELE_NUM=1,ELE_NUM=2),1,IF(ELE_NUM=0,0,2))","v":0},{"$f":"IF(OR(GAS_NUM=1,GAS_NUM=2,GAS_NUM=3),1,(IF(GAS_NUM=0,0,2)))","v":0},{"$f":"HEAT_NUM","v":0},{"$f":"'Grocery Equipment'!#REF!","v":{"$error":"#REF!"}},{"$f":"VLOOKUP(A3,A5:G112,6)","v":{"$error":"#REF!"}},{"$f":"VLOOKUP(A3,A5:G112,7)","v":{"$error":"#REF!"}}]
["Combined","Electric Utility","Gas Utility","Primary Space Heatinging","Store Type (Size)","Combined","Incentive"]
["0001","No Electric Selection","No Gas Selection","No Primary Space Heating Selected","Convenience Stores/Small Grocery (< 14,000 sq ft)",{"$f":"B5&\", \"&C5&\", \"&D5&\", \"&E5","v":"No Electric Selection, No Gas Selection, No Primary Space Heating Selected, Convenience Stores/Small Grocery (< 14,000 sq ft)"}]
["0002","No Electric Selection","No Gas Selection","No Primary Space Heating Selected","Medium Grocery (> 14,000 and < 75,000 sq ft)",{"$f":"B6&\", \"&C6&\", \"&D6&\", \"&E6","v":"No Electric Selection, No Gas Selection, No Primary Space Heating Selected, Medium Grocery (> 14,000 and < 75,000 sq ft)"}]
["0003","No Electric Selection","No Gas Selection","No Primary Space Heating Selected","Large Grocery (< 75,000 sq ft)","No Electric Selection, No Gas Selection, No Primary Space Heating Selected, Large Grocery (< 75,000 sq ft)"]
["0011","No Electric Selection","No Gas Selection","Electric Primary Space Heating","Convenience Stores/Small Grocery (< 14,000 sq ft)","No Electric Selection, No Gas Selection, Electric Primary Space Heating, Convenience Stores/Small Grocery (< 14,000 sq ft)"]
["0012","No Electric Selection","No Gas Selection","Electric Primary Space Heating","Medium Grocery (> 14,000 and < 75,000 sq ft)","No Electric Selection, No Gas Selection, Electric Primary Space Heating, Medium Grocery (> 14,000 and < 75,000 sq ft)"]
["0013","No Electric Selection","No Gas Selection","Electric Primary Space Heating","Large Grocery (< 75,000 sq ft)","No Electric Selection, No Gas Selection, Electric Primary Space Heating, Large Grocery (< 75,000 sq ft)"]
["0021","No Electric Selection","No Gas Selection","Gas Primary Space Heating","Convenience Stores/Small Grocery (< 14,000 sq ft)","No Electric Selection, No Gas Selection, Gas Primary Space Heating, Convenience Stores/Small Grocery (< 14,000 sq ft)"]
["0022","No Electric Selection","No Gas Selection","Gas Primary Space Heating","Medium Grocery (> 14,000 and < 75,000 sq ft)","No Electric Selection, No Gas Selection, Gas Primary Space Heating, Medium Grocery (> 14,000 and < 75,000 sq ft)"]
["0023","No Electric Selection","No Gas Selection","Gas Primary Space Heating","Large Grocery (< 75,000 sq ft)","No Electric Selection, No Gas Selection, Gas Primary Space Heating, Large Grocery (< 75,000 sq ft)"]
["0031","No Electric Selection","No Gas Selection","Other Primary Space Heating","Convenience Stores/Small Grocery (< 14,000 sq ft)","No Electric Selection, No Gas Selection, Other Primary Space Heating, Convenience Stores/Small Grocery (< 14,000 sq ft)","Does Not Qualify - Site's primary space heating fuel is not electric or gas"]
["0032","No Electric Selection","No Gas Selection","Other Primary Space Heating","Medium Grocery (> 14,000 and < 75,000 sq ft)","No Electric Selection, No Gas Selection, Other Primary Space Heating, Medium Grocery (> 14,000 and < 75,000 sq ft)","Does Not Qualify - Site's primary space heating fuel is not electric or gas"]
["0033","No Electric Selection","No Gas Selection","Other Primary Space Heating","Large Grocery (< 75,000 sq ft)","No Electric Selection, No Gas Selection, Other Primary Space Heating, Large Grocery (< 75,000 sq ft)","Does Not Qualify - Site's primary space heating fuel is not electric or gas"]
["0101","No Electric Selection","Qualifying Gas","No Primary Space Heating Selection","Convenience Stores/Small Grocery (< 14,000 sq ft)","No Electric Selection, Qualifying Gas, No Primary Space Heating Selection, Convenience Stores/Small Grocery (< 14,000 sq ft)"]
["0102","No Electric Selection","Qualifying Gas","No Primary Space Heating Selection","Medium Grocery (> 14,000 and < 75,000 sq ft)","No Electric Selection, Qualifying Gas, No Primary Space Heating Selection, Medium Grocery (> 14,000 and < 75,000 sq ft)"]
["0103","No Electric Selection","Qualifying Gas","No Primary Space Heating Selection","Large Grocery (< 75,000 sq ft)","No Electric Selection, Qualifying Gas, No Primary Space Heating Selection, Large Grocery (< 75,000 sq ft)"]
["0111","No Electric Selection","Qualifying Gas","Electric Primary Space Heating","Convenience Stores/Small Grocery (< 14,000 sq ft)","No Electric Selection, Qualifying Gas, Electric Primary Space Heating, Convenience Stores/Small Grocery (< 14,000 sq ft)"]
["0112","No Electric Selection","Qualifying Gas","Electric Primary Space Heating","Medium Grocery (> 14,000 and < 75,000 sq ft)","No Electric Selection, Qualifying Gas, Electric Primary Space Heating, Medium Grocery (> 14,000 and < 75,000 sq ft)"]
["0113","No Electric Selection","Qualifying Gas","Electric Primary Space Heating","Large Grocery (< 75,000 sq ft)","No Electric Selection, Qualifying Gas, Electric Primary Space Heating, Large Grocery (< 75,000 sq ft)"]
["0121","No Electric Selection","Qualifying Gas","Gas Primary Space Heating","Convenience Stores/Small Grocery (< 14,000 sq ft)","No Electric Selection, Qualifying Gas, Gas Primary Space Heating, Convenience Stores/Small Grocery (< 14,000 sq ft)"]
["0122","No Electric Selection","Qualifying Gas","Gas Primary Space Heating","Medium Grocery (> 14,000 and < 75,000 sq ft)","No Electric Selection, Qualifying Gas, Gas Primary Space Heating, Medium Grocery (> 14,000 and < 75,000 sq ft)"]
["0123","No Electric Selection","Qualifying Gas","Gas Primary Space Heating","Large Grocery (< 75,000 sq ft)","No Electric Selection, Qualifying Gas, Gas Primary Space Heating, Large Grocery (< 75,000 sq ft)"]
["0131","No Electric Selection","Qualifying Gas","Other Primary Space Heating","Convenience Stores/Small Grocery (< 14,000 sq ft)","No Electric Selection, Qualifying Gas, Other Primary Space Heating, Convenience Stores/Small Grocery (< 14,000 sq ft)","Does Not Qualify - Site's primary space heating fuel is not electric or gas"]
["0132","No Electric Selection","Qualifying Gas","Other Primary Space Heating","Medium Grocery (> 14,000 and < 75,000 sq ft)","No Electric Selection, Qualifying Gas, Other Primary Space Heating, Medium Grocery (> 14,000 and < 75,000 sq ft)","Does Not Qualify - Site's primary space heating fuel is not electric or gas"]
["0133","No Electric Selection","Qualifying Gas","Other Primary Space Heating","Large Grocery (< 75,000 sq ft)","No Electric Selection, Qualifying Gas, Other Primary Space Heating, Large Grocery (< 75,000 sq ft)","Does Not Qualify - Site's primary space heating fuel is not electric or gas"]
["0201","No Electric Selection","Other Gas","No Primary Space Heating Selection","Convenience Stores/Small Grocery (< 14,000 sq ft)","No Electric Selection, Other Gas, No Primary Space Heating Selection, Convenience Stores/Small Grocery (< 14,000 sq ft)"]
["0202","No Electric Selection","Other Gas","No Primary Space Heating Selection","Medium Grocery (> 14,000 and < 75,000 sq ft)","No Electric Selection, Other Gas, No Primary Space Heating Selection, Medium Grocery (> 14,000 and < 75,000 sq ft)"]
["0203","No Electric Selection","Other Gas","No Primary Space Heating Selection","Large Grocery (< 75,000 sq ft)","No Electric Selection, Other Gas, No Primary Space Heating Selection, Large Grocery (< 75,000 sq ft)"]
["0211","No Electric Selection","Other Gas","Electric Primary Space Heating","Convenience Stores/Small Grocery (< 14,000 sq ft)","No Electric Selection, Other Gas, Electric Primary Space Heating, Convenience Stores/Small Grocery (< 14,000 sq ft)"]
["0212","No Electric Selection","Other Gas","Electric Primary Space Heating","Medium Grocery (> 14,000 and < 75,000 sq ft)","No Electric Selection, Other Gas, Electric Primary Space Heating, Medium Grocery (> 14,000 and < 75,000 sq ft)"]
["0213","No Electric Selection","Other Gas","Electric Primary Space Heating","Large Grocery (< 75,000 sq ft)","No Electric Selection, Other Gas, Electric Primary Space Heating, Large Grocery (< 75,000 sq ft)"]
["0221","No Electric Selection","Other Gas","Gas Primary Space Heating","Convenience Stores/Small Grocery (< 14,000 sq ft)","No Electric Selection, Other Gas, Gas Primary Space Heating, Convenience Stores/Small Grocery (< 14,000 sq ft)","Does Not Qualify - Site's primary space heating fuel is not provided by a participating utility"]
["0222","No Electric Selection","Other Gas","Gas Primary Space Heating","Medium Grocery (> 14,000 and < 75,000 sq ft)","No Electric Selection, Other Gas, Gas Primary Space Heating, Medium Grocery (> 14,000 and < 75,000 sq ft)","Does Not Qualify - Site's primary space heating fuel is not provided by a participating utility"]
["0223","No Electric Selection","Other Gas","Gas Primary Space Heating","Large Grocery (< 75,000 sq ft)","No Electric Selection, Other Gas, Gas Primary Space Heating, Large Grocery (< 75,000 sq ft)","Does Not Qualify - Site's primary space heating fuel is not provided by a participating utility"]
["0231","No Electric Selection","Other Gas","Other Primary Space Heating","Convenience Stores/Small Grocery (< 14,000 sq ft)","No Electric Selection, Other Gas, Other Primary Space Heating, Convenience Stores/Small Grocery (< 14,000 sq ft)","Does Not Qualify - Site's primary space heating fuel is not electric or gas"]
["0232","No Electric Selection","Other Gas","Other Primary Space Heating","Medium Grocery (> 14,000 and < 75,000 sq ft)","No Electric Selection, Other Gas, Other Primary Space Heating, Medium Grocery (> 14,000 and < 75,000 sq ft)","Does Not Qualify - Site's primary space heating fuel is not electric or gas"]
["0233","No Electric Selection","Other Gas","Other Primary Space Heating","Large Grocery (< 75,000 sq ft)","No Electric Selection, Other Gas, Other Primary Space Heating, Large Grocery (< 75,000 sq ft)","Does Not Qualify - Site's primary space heating fuel is not electric or gas"]
["1001","Qualifying Electric","No Gas Selection","No Primary Space Heating Selection","Convenience Stores/Small Grocery (< 14,000 sq ft)","Qualifying Electric, No Gas Selection, No Primary Space Heating Selection, Convenience Stores/Small Grocery (< 14,000 sq ft)"]
["1002","Qualifying Electric","No Gas Selection","No Primary Space Heating Selection","Medium Grocery (> 14,000 and < 75,000 sq ft)","Qualifying Electric, No Gas Selection, No Primary Space Heating Selection, Medium Grocery (> 14,000 and < 75,000 sq ft)"]
["1003","Qualifying Electric","No Gas Selection","No Primary Space Heating Selection","Large Grocery (< 75,000 sq ft)","Qualifying Electric, No Gas Selection, No Primary Space Heating Selection, Large Grocery (< 75,000 sq ft)"]
["1011","Qualifying Electric","No Gas Selection","Electric Primary Space Heating","Convenience Stores/Small Grocery (< 14,000 sq ft)","Qualifying Electric, No Gas Selection, Electric Primary Space Heating, Convenience Stores/Small Grocery (< 14,000 sq ft)","$70 per linear ft of door"]
["1012","Qualifying Electric","No Gas Selection","Electric Primary Space Heating","Medium Grocery (> 14,000 and < 75,000 sq ft)","Qualifying Electric, No Gas Selection, Electric Primary Space Heating, Medium Grocery (> 14,000 and < 75,000 sq ft)","$70 per linear ft of door"]
["1013","Qualifying Electric","No Gas Selection","Electric Primary Space Heating","Large Grocery (< 75,000 sq ft)","Qualifying Electric, No Gas Selection, Electric Primary Space Heating, Large Grocery (< 75,000 sq ft)","$70 per linear ft of door"]
["1021","Qualifying Electric","No Gas Selection","Gas Primary Space Heating","Convenience Stores/Small Grocery (< 14,000 sq ft)","Qualifying Electric, No Gas Selection, Gas Primary Space Heating, Convenience Stores/Small Grocery (< 14,000 sq ft)"]
["1022","Qualifying Electric","No Gas Selection","Gas Primary Space Heating","Medium Grocery (> 14,000 and < 75,000 sq ft)","Qualifying Electric, No Gas Selection, Gas Primary Space Heating, Medium Grocery (> 14,000 and < 75,000 sq ft)"]
["1023","Qualifying Electric","No Gas Selection","Gas Primary Space Heating","Large Grocery (< 75,000 sq ft)","Qualifying Electric, No Gas Selection, Gas Primary Space Heating, Large Grocery (< 75,000 sq ft)"]
["1031","Qualifying Electric","No Gas Selection","Other Primary Space Heating","Convenience Stores/Small Grocery (< 14,000 sq ft)","Qualifying Electric, No Gas Selection, Other Primary Space Heating, Convenience Stores/Small Grocery (< 14,000 sq ft)","Does Not Qualify - Site's primary space heating fuel is not electric or gas"]
["1032","Qualifying Electric","No Gas Selection","Other Primary Space Heating","Medium Grocery (> 14,000 and < 75,000 sq ft)","Qualifying Electric, No Gas Selection, Other Primary Space Heating, Medium Grocery (> 14,000 and < 75,000 sq ft)","Does Not Qualify - Site's primary space heating fuel is not electric or gas"]
["1033","Qualifying Electric","No Gas Selection","Other Primary Space Heating","Large Grocery (< 75,000 sq ft)","Qualifying Electric, No Gas Selection, Other Primary Space Heating, Large Grocery (< 75,000 sq ft)","Does Not Qualify - Site's primary space heating fuel is not electric or gas"]
["1101","Qualifying Electric","Qualifying Gas","No Primary Space Heating Selection","Convenience Stores/Small Grocery (< 14,000 sq ft)","Qualifying Electric, Qualifying Gas, No Primary Space Heating Selection, Convenience Stores/Small Grocery (< 14,000 sq ft)"]
["1102","Qualifying Electric","Qualifying Gas","No Primary Space Heating Selection","Medium Grocery (> 14,000 and < 75,000 sq ft)","Qualifying Electric, Qualifying Gas, No Primary Space Heating Selection, Medium Grocery (> 14,000 and < 75,000 sq ft)"]
["1103","Qualifying Electric","Qualifying Gas","No Primary Space Heating Selection","Large Grocery (< 75,000 sq ft)","Qualifying Electric, Qualifying Gas, No Primary Space Heating Selection, Large Grocery (< 75,000 sq ft)"]
["1111","Qualifying Electric","Qualifying Gas","Electric Primary Space Heating","Convenience Stores/Small Grocery (< 14,000 sq ft)","Qualifying Electric, Qualifying Gas, Electric Primary Space Heating, Convenience Stores/Small Grocery (< 14,000 sq ft)","$70 per linear ft of door"]
["1112","Qualifying Electric","Qualifying Gas","Electric Primary Space Heating","Medium Grocery (> 14,000 and < 75,000 sq ft)","Qualifying Electric, Qualifying Gas, Electric Primary Space Heating, Medium Grocery (> 14,000 and < 75,000 sq ft)","$70 per linear ft of door"]
["1113","Qualifying Electric","Qualifying Gas","Electric Primary Space Heating","Large Grocery (< 75,000 sq ft)","Qualifying Electric, Qualifying Gas, Electric Primary Space Heating, Large Grocery (< 75,000 sq ft)","$70 per linear ft of door"]
["1121","Qualifying Electric","Qualifying Gas","Gas Primary Space Heating","Convenience Stores/Small Grocery (< 14,000 sq ft)","Qualifying Electric, Qualifying Gas, Gas Primary Space Heating, Convenience Stores/Small Grocery (< 14,000 sq ft)","$70 per linear ft of door"]
["1122","Qualifying Electric","Qualifying Gas","Gas Primary Space Heating","Medium Grocery (> 14,000 and < 75,000 sq ft)","Qualifying Electric, Qualifying Gas, Gas Primary Space Heating, Medium Grocery (> 14,000 and < 75,000 sq ft)","$70 per linear ft of door"]
["1123","Qualifying Electric","Qualifying Gas","Gas Primary Space Heating","Large Grocery (< 75,000 sq ft)","Qualifying Electric, Qualifying Gas, Gas Primary Space Heating, Large Grocery (< 75,000 sq ft)","$70 per linear ft of door"]
["1131","Qualifying Electric","Qualifying Gas","Other Primary Space Heating","Convenience Stores/Small Grocery (< 14,000 sq ft)","Qualifying Electric, Qualifying Gas, Other Primary Space Heating, Convenience Stores/Small Grocery (< 14,000 sq ft)","Does Not Qualify - Site's primary space heating fuel is not electric or gas"]
["1132","Qualifying Electric","Qualifying Gas","Other Primary Space Heating","Medium Grocery (> 14,000 and < 75,000 sq ft)","Qualifying Electric, Qualifying Gas, Other Primary Space Heating, Medium Grocery (> 14,000 and < 75,000 sq ft)","Does Not Qualify - Site's primary space heating fuel is not electric or gas"]
["1133","Qualifying Electric","Qualifying Gas","Other Primary Space Heating","Large Grocery (< 75,000 sq ft)","Qualifying Electric, Qualifying Gas, Other Primary Space Heating, Large Grocery (< 75,000 sq ft)","Does Not Qualify - Site's primary space heating fuel is not electric or gas"]
["1201","Qualifying Electric","Other Gas","No Primary Space Heating Selection","Convenience Stores/Small Grocery (< 14,000 sq ft)","Qualifying Electric, Other Gas, No Primary Space Heating Selection, Convenience Stores/Small Grocery (< 14,000 sq ft)"]
["1202","Qualifying Electric","Other Gas","No Primary Space Heating Selection","Medium Grocery (> 14,000 and < 75,000 sq ft)","Qualifying Electric, Other Gas, No Primary Space Heating Selection, Medium Grocery (> 14,000 and < 75,000 sq ft)"]
["1203","Qualifying Electric","Other Gas","No Primary Space Heating Selection","Large Grocery (< 75,000 sq ft)","Qualifying Electric, Other Gas, No Primary Space Heating Selection, Large Grocery (< 75,000 sq ft)"]
["1211","Qualifying Electric","Other Gas","Electric Primary Space Heating","Convenience Stores/Small Grocery (< 14,000 sq ft)","Qualifying Electric, Other Gas, Electric Primary Space Heating, Convenience Stores/Small Grocery (< 14,000 sq ft)","$70 per linear ft of door"]
["1212","Qualifying Electric","Other Gas","Electric Primary Space Heating","Medium Grocery (> 14,000 and < 75,000 sq ft)","Qualifying Electric, Other Gas, Electric Primary Space Heating, Medium Grocery (> 14,000 and < 75,000 sq ft)","$70 per linear ft of door"]
["1213","Qualifying Electric","Other Gas","Electric Primary Space Heating","Large Grocery (< 75,000 sq ft)",{"$f":"B70&\", \"&C70&\", \"&D70&\", \"&E70","v":"Qualifying Electric, Other Gas, Electric Primary Space Heating, Large Grocery (< 75,000 sq ft)"},"$70 per linear ft of door"]
["1221","Qualifying Electric","Other Gas","Gas Primary Space Heating","Convenience Stores/Small Grocery (< 14,000 sq ft)","Qualifying Electric, Other Gas, Gas Primary Space Heating, Convenience Stores/Small Grocery (< 14,000 sq ft)","Does Not Qualify - Site's primary space heating fuel is not provided by a participating utility"]
["1222","Qualifying Electric","Other Gas","Gas Primary Space Heating","Medium Grocery (> 14,000 and < 75,000 sq ft)","Qualifying Electric, Other Gas, Gas Primary Space Heating, Medium Grocery (> 14,000 and < 75,000 sq ft)","Does Not Qualify - Site's primary space heating fuel is not provided by a participating utility"]
["1223","Qualifying Electric","Other Gas","Gas Primary Space Heating","Large Grocery (< 75,000 sq ft)","Qualifying Electric, Other Gas, Gas Primary Space Heating, Large Grocery (< 75,000 sq ft)","Does Not Qualify - Site's primary space heating fuel is not provided by a participating utility"]
["1231","Qualifying Electric","Other Gas","Other Primary Space Heating","Convenience Stores/Small Grocery (< 14,000 sq ft)","Qualifying Electric, Other Gas, Other Primary Space Heating, Convenience Stores/Small Grocery (< 14,000 sq ft)","Does Not Qualify - Site's primary space heating fuel is not electric or gas"]
["1232","Qualifying Electric","Other Gas","Other Primary Space Heating","Medium Grocery (> 14,000 and < 75,000 sq ft)","Qualifying Electric, Other Gas, Other Primary Space Heating, Medium Grocery (> 14,000 and < 75,000 sq ft)","Does Not Qualify - Site's primary space heating fuel is not electric or gas"]
["1233","Qualifying Electric","Other Gas","Other Primary Space Heating","Large Grocery (< 75,000 sq ft)","Qualifying Electric, Other Gas, Other Primary Space Heating, Large Grocery (< 75,000 sq ft)","Does Not Qualify - Site's primary space heating fuel is not electric or gas"]
["2001","Other Electric","No Gas Selection","No Primary Space Heating Selection","Convenience Stores/Small Grocery (< 14,000 sq ft)","Other Electric, No Gas Selection, No Primary Space Heating Selection, Convenience Stores/Small Grocery (< 14,000 sq ft)"]
["2002","Other Electric","No Gas Selection","No Primary Space Heating Selection","Medium Grocery (> 14,000 and < 75,000 sq ft)","Other Electric, No Gas Selection, No Primary Space Heating Selection, Medium Grocery (> 14,000 and < 75,000 sq ft)"]
["2003","Other Electric","No Gas Selection","No Primary Space Heating Selection","Large Grocery (< 75,000 sq ft)","Other Electric, No Gas Selection, No Primary Space Heating Selection, Large Grocery (< 75,000 sq ft)"]
["2011","Other Electric","No Gas Selection","Electric Primary Space Heating","Convenience Stores/Small Grocery (< 14,000 sq ft)","Other Electric, No Gas Selection, Electric Primary Space Heating, Convenience Stores/Small Grocery (< 14,000 sq ft)","Does Not Qualify - Site's primary space heating fuel is not provided by a participating utility"]
["2012","Other Electric","No Gas Selection","Electric Primary Space Heating","Medium Grocery (> 14,000 and < 75,000 sq ft)","Other Electric, No Gas Selection, Electric Primary Space Heating, Medium Grocery (> 14,000 and < 75,000 sq ft)","Does Not Qualify - Site's primary space heating fuel is not provided by a participating utility"]
["2013","Other Electric","No Gas Selection","Electric Primary Space Heating","Large Grocery (< 75,000 sq ft)","Other Electric, No Gas Selection, Electric Primary Space Heating, Large Grocery (< 75,000 sq ft)","Does Not Qualify - Site's primary space heating fuel is not provided by a participating utility"]
["2021","Other Electric","No Gas Selection","Gas Primary Space Heating","Convenience Stores/Small Grocery (< 14,000 sq ft)","Other Electric, No Gas Selection, Gas Primary Space Heating, Convenience Stores/Small Grocery (< 14,000 sq ft)"]
["2022","Other Electric","No Gas Selection","Gas Primary Space Heating","Medium Grocery (> 14,000 and < 75,000 sq ft)","Other Electric, No Gas Selection, Gas Primary Space Heating, Medium Grocery (> 14,000 and < 75,000 sq ft)"]
["2023","Other Electric","No Gas Selection","Gas Primary Space Heating","Large Grocery (< 75,000 sq ft)","Other Electric, No Gas Selection, Gas Primary Space Heating, Large Grocery (< 75,000 sq ft)"]
["2031","Other Electric","No Gas Selection","Other Primary Space Heating","Convenience Stores/Small Grocery (< 14,000 sq ft)","Other Electric, No Gas Selection, Other Primary Space Heating, Convenience Stores/Small Grocery (< 14,000 sq ft)","Does Not Qualify - Site's primary space heating fuel is not electric or gas"]
["2032","Other Electric","No Gas Selection","Other Primary Space Heating","Medium Grocery (> 14,000 and < 75,000 sq ft)","Other Electric, No Gas Selection, Other Primary Space Heating, Medium Grocery (> 14,000 and < 75,000 sq ft)","Does Not Qualify - Site's primary space heating fuel is not electric or gas"]
["2033","Other Electric","No Gas Selection","Other Primary Space Heating","Large Grocery (< 75,000 sq ft)","Other Electric, No Gas Selection, Other Primary Space Heating, Large Grocery (< 75,000 sq ft)","Does Not Qualify - Site's primary space heating fuel is not electric or gas"]
["2101","Other Electric","Qualifying Gas","No Primary Space Heating Selection","Convenience Stores/Small Grocery (< 14,000 sq ft)","Other Electric, Qualifying Gas, No Primary Space Heating Selection, Convenience Stores/Small Grocery (< 14,000 sq ft)"]
["2102","Other Electric","Qualifying Gas","No Primary Space Heating Selection","Medium Grocery (> 14,000 and < 75,000 sq ft)","Other Electric, Qualifying Gas, No Primary Space Heating Selection, Medium Grocery (> 14,000 and < 75,000 sq ft)"]
["2103","Other Electric","Qualifying Gas","No Primary Space Heating Selection","Large Grocery (< 75,000 sq ft)","Other Electric, Qualifying Gas, No Primary Space Heating Selection, Large Grocery (< 75,000 sq ft)"]
["2111","Other Electric","Qualifying Gas","Electric Primary Space Heating","Convenience Stores/Small Grocery (< 14,000 sq ft)","Other Electric, Qualifying Gas, Electric Primary Space Heating, Convenience Stores/Small Grocery (< 14,000 sq ft)","Does Not Qualify - Site's primary space heating fuel is not provided by a participating utility"]
["2112","Other Electric","Qualifying Gas","Electric Primary Space Heating","Medium Grocery (> 14,000 and < 75,000 sq ft)","Other Electric, Qualifying Gas, Electric Primary Space Heating, Medium Grocery (> 14,000 and < 75,000 sq ft)","Does Not Qualify - Site's primary space heating fuel is not provided by a participating utility"]
["2113","Other Electric","Qualifying Gas","Electric Primary Space Heating","Large Grocery (< 75,000 sq ft)","Other Electric, Qualifying Gas, Electric Primary Space Heating, Large Grocery (< 75,000 sq ft)","Does Not Qualify - Site's primary space heating fuel is not provided by a participating utility"]
["2121","Other Electric","Qualifying Gas","Gas Primary Space Heating","Convenience Stores/Small Grocery (< 14,000 sq ft)","Other Electric, Qualifying Gas, Gas Primary Space Heating, Convenience Stores/Small Grocery (< 14,000 sq ft)","$35 per linear ft of door"]
["2122","Other Electric","Qualifying Gas","Gas Primary Space Heating","Medium Grocery (> 14,000 and < 75,000 sq ft)","Other Electric, Qualifying Gas, Gas Primary Space Heating, Medium Grocery (> 14,000 and < 75,000 sq ft)","$35 per linear ft of door"]
["2123","Other Electric","Qualifying Gas","Gas Primary Space Heating","Large Grocery (< 75,000 sq ft)","Other Electric, Qualifying Gas, Gas Primary Space Heating, Large Grocery (< 75,000 sq ft)","$35 per linear ft of door"]
["2131","Other Electric","Qualifying Gas","Other Primary Space Heating","Convenience Stores/Small Grocery (< 14,000 sq ft)","Other Electric, Qualifying Gas, Other Primary Space Heating, Convenience Stores/Small Grocery (< 14,000 sq ft)","Does Not Qualify - Site's primary space heating fuel is not electric or gas"]
["2132","Other Electric","Qualifying Gas","Other Primary Space Heating","Medium Grocery (> 14,000 and < 75,000 sq ft)","Other Electric, Qualifying Gas, Other Primary Space Heating, Medium Grocery (> 14,000 and < 75,000 sq ft)","Does Not Qualify - Site's primary space heating fuel is not electric or gas"]
["2133","Other Electric","Qualifying Gas","Other Primary Space Heating","Large Grocery (< 75,000 sq ft)","Other Electric, Qualifying Gas, Other Primary Space Heating, Large Grocery (< 75,000 sq ft)","Does Not Qualify - Site's primary space heating fuel is not electric or gas"]
["2201","Other Electric","Other Gas","No Primary Space Heating Selection","Convenience Stores/Small Grocery (< 14,000 sq ft)","Other Electric, Other Gas, No Primary Space Heating Selection, Convenience Stores/Small Grocery (< 14,000 sq ft)","Does Not Qualify - Site's utility providers are not participating utilities"]
["2202","Other Electric","Other Gas","No Primary Space Heating Selection","Medium Grocery (> 14,000 and < 75,000 sq ft)","Other Electric, Other Gas, No Primary Space Heating Selection, Medium Grocery (> 14,000 and < 75,000 sq ft)","Does Not Qualify - Site's utility providers are not participating utilities"]
["2203","Other Electric","Other Gas","No Primary Space Heating Selection","Large Grocery (< 75,000 sq ft)","Other Electric, Other Gas, No Primary Space Heating Selection, Large Grocery (< 75,000 sq ft)","Does Not Qualify - Site's utility providers are not participating utilities"]
["2211","Other Electric","Other Gas","Electric Primary Space Heating","Convenience Stores/Small Grocery (< 14,000 sq ft)","Other Electric, Other Gas, Electric Primary Space Heating, Convenience Stores/Small Grocery (< 14,000 sq ft)","Does Not Qualify - Site's utility providers are not participating utilities"]
["2212","Other Electric","Other Gas","Electric Primary Space Heating","Medium Grocery (> 14,000 and < 75,000 sq ft)","Other Electric, Other Gas, Electric Primary Space Heating, Medium Grocery (> 14,000 and < 75,000 sq ft)","Does Not Qualify - Site's utility providers are not participating utilities"]
["2213","Other Electric","Other Gas","Electric Primary Space Heating","Large Grocery (< 75,000 sq ft)","Other Electric, Other Gas, Electric Primary Space Heating, Large Grocery (< 75,000 sq ft)","Does Not Qualify - Site's utility providers are not participating utilities"]
["2221","Other Electric","Other Gas","Gas Primary Space Heating","Convenience Stores/Small Grocery (< 14,000 sq ft)","Other Electric, Other Gas, Gas Primary Space Heating, Convenience Stores/Small Grocery (< 14,000 sq ft)","Does Not Qualify - Site's utility providers are not participating utilities"]
["2222","Other Electric","Other Gas","Gas Primary Space Heating","Medium Grocery (> 14,000 and < 75,000 sq ft)","Other Electric, Other Gas, Gas Primary Space Heating, Medium Grocery (> 14,000 and < 75,000 sq ft)","Does Not Qualify - Site's utility providers are not participating utilities"]
["2223","Other Electric","Other Gas","Gas Primary Space Heating","Large Grocery (< 75,000 sq ft)","Other Electric, Other Gas, Gas Primary Space Heating, Large Grocery (< 75,000 sq ft)","Does Not Qualify - Site's utility providers are not participating utilities"]
["2231","Other Electric","Other Gas","Other Primary Space Heating","Convenience Stores/Small Grocery (< 14,000 sq ft)","Other Electric, Other Gas, Other Primary Space Heating, Convenience Stores/Small Grocery (< 14,000 sq ft)","Does Not Qualify - Site's utility providers are not participating utilities"]
["2232","Other Electric","Other Gas","Other Primary Space Heating","Medium Grocery (> 14,000 and < 75,000 sq ft)","Other Electric, Other Gas, Other Primary Space Heating, Medium Grocery (> 14,000 and < 75,000 sq ft)","Does Not Qualify - Site's utility providers are not participating utilities"]
["2233","Other Electric","Other Gas","Other Primary Space Heating","Large Grocery (< 75,000 sq ft)","Other Electric, Other Gas, Other Primary Space Heating, Large Grocery (< 75,000 sq ft)","Does Not Qualify - Site's utility providers are not participating utilities"]

{"sheet":"Eligible Spaces","index":25,"n_rows":25,"n_cols":1,"rows_kept":25,"cut":false,"hidden":true,"merged":[]}
["(Select)"]
["Arcade"]
["Art classroom"]
["Bank vaults/safe deposit room"]
["Coin-operated Laundromat"]
["Commercial Laundromat"]
["Computer room (without printing)"]
["Copy/printing room"]
["Grocery Store"]
["Guard Stations"]
["Health club/weight room"]
["Hotel Rooms"]
["Library"]
["Main entry lobby"]
["Medical operating room"]
["Medical procedure room"]
["Office spaces"]
["Other"]
["Patient room"]
["Pet shop (animal areas) "]
["Photo studio"]
["Physical therapy"]
["Recovery and ICU area"]
["Sales floor (except mall common areas)"]
["Wood/metal shop"]